Workbook

Sheet CALCULATIONS
C1: An object experiences a force perpendicular to its velocity. | L1: 376 | AB1: 250 | AC1: 539
C3: Name | D3: symbol | E3: input | F3: unit
C4: mass | D4: m | E4: 1 | F4: kg | G4: MI1 | H4: =-(epsilon+D)/2 -> -10 | J4: m1f | K4: =-D/2 -> -7.5
C5: Charge | D5: q | E5: 1 | G5: mi2 | H5: =-(epsilon-D)/2 -> 5 | J5: m2f | K5: =D/2 -> 7.5
C6: initial x | D6: x0 | E6: 0 | F6: m | G6: Dm=mi1-mi2 | H6: =miia-miib -> -15 | J6: Foucault | M6: VINITIAL X
C7: initial y | D7: y0 | E7: =Aktina -> 70 | F7: m | G7: Alfa1 | H7: =(vxin+Aktina*miib)/Dm -> -23.33333333 | J7: Alfa1F | K7: =(VINFOUCAULT-Aktina*miib)/Dm -> 35
C8: initial x-velocity | D8: vx0 | E8: 0 | F8: m/s | G8: Alfa2 | H8: =(vxin+Aktina*miia)/Dm -> 46.66666667 | J8: Alfa2F | K8: =-(VINFOUCAULT-Aktina*miia)/Dm -> 35 | M8: Time
C9: initial y-velocity | D9: vy0 | E9: 0 | F9: m/s | G9: k/m = λ, ε =q.B/m | I9: =Alfa1-Alfa2 -> -70 | M9: =AC1*dt -> 5.39 | AO9: VERTICAL | AP9: COSTH | AQ9: SINTH | AR9: AKATHETOS
C10: net force | D10: F | E10: 12 | F10: N | G10: vxin | H10: =AB1/1-250 -> 0 | J10: (vx0 – εR/2)2/Α=Δ | L10: =-epsilon*Aktina/2 -> -175 | M10: vinitial for Foucault | R10: 519 | AH10: FOUCAULT | AN10: N | AO10: =-Fcurrentvx/Fcurrent_vy -> -2.581563292 | AP10: =1/SQRT(1+AO10^2) -> 0.361209333 | AQ10: =AO10*AP10 -> -0.9324847547 | AR10: =axf*AP10+ayf*AQ10 -> -10240.99617
C11: time | D11: t | E11: 15 | F11: s | G11: show forces | H11: NO | AG11: =IF($AC$1<MAX_TIME,$AC$1*dt,MAX_TIME*dt) -> 5.19 | AH11: Fcurrent x | AI11: Fcurrenty | AJ11: Fcurrentvx | AK11: Fcurrent vy | AN11: =(Fcurrentvx^2+Fcurrent_vy^2)/AKATHETOS -> -50.71765183 | AO11: RADIUS OF CURVATURE
C12: time increment | D12: Dt | E12: 0.01 | F12: s | G12: resultant | H12: yes | K12: CURRENTX | L12: CURRENTY | M12: CURRENTVX | N12: CURRENTVY | O12: FX_MAGNET | P12: FY_MAGNET | Q12: F_Kx | R12: F_ky | AE12: axf | AF12: =Aktina*(-epsilon^2*SIN(epsilon*AG11)*COS(D*AG11)-2*D*epsilon*COS(epsilon*AG11)*SIN(D*AG11)-D^2*SIN(epsilon*AG11)*COS(D*AG11)) -> 3303.395599 | AH12: =Aktina*SIN(epsilon*AG11)*COS(D*AG11) -> -39.37738785 | AI12: =Aktina*COS(epsilon*AG11)*COS(D*AG11) -> -36.94489053 | AJ12: =Aktina*(epsilon*COS(epsilon*AG11)*COS(D*AG11)-SIN(epsilon*AG11)*D*SIN(D*AG11)) -> -672.0358032 | AK12: =Aktina*(-epsilon*SIN(epsilon*AG11)*COS(D*AG11)-D*COS(epsilon*AG11)*SIN(D*AG11)) -> -260.3212578 | AN12: FRX | AO12: =Fcurrent_x+F_CURV_R*AP10 -> -57.69707703
C13: epsilon | E13: =magnet/m -> 5 | J13: =VLOOKUP(1,A21:G881,2,FALSE) -> 539 | K13: =VLOOKUP(1,A21:G881,4,FALSE) -> -56.29791351 | L13: =VLOOKUP(1,A21:G881,5,FALSE) -> -31.94105207 | M13: =VLOOKUP(1,A21:G881,6,FALSE) -> -148.6281349 | N13: =VLOOKUP(1,A21:G881,7,FALSE) -> -115.8679586 | O13: =magnet*CURRENTVY -> -579.339793 | P13: =-magnet*CURRENTVX -> 743.1406746 | Q13: =Kappa*CURRENTX -> 2814.895676 | R13: =Kappa*CURRENTY -> 1597.052604 | AE13: ayf | AF13: =Aktina*(-epsilon^2*COS(epsilon*AG11)*COS(D*AG11)+2*epsilon*D*SIN(epsilon*AG11)*SIN(D*AG11)-D^2*COS(epsilon*AG11)*COS(D*AG11)) -> 12262.09161 | AH13: =Fcurrent_x -> -39.37738785 | AI13: =Fcurrenty -> -36.94489053 | AN13: FRY | AO13: =Fcurrenty+F_CURV_R*AQ10 -> 10.34854659
C14: lamda | E14: =Kappa/m -> -50 | G14: Kappa | H14: -50 | K14: =CURRENTX -> -56.29791351 | L14: =0 -> 0 | O14: fxtotal | P14: fytotal | Q14: ax_current | R14: ay_current
C15: period | E15: =4*PI()/SQRT(-4*lamda+epsilon^2) -> 0.837758041 | F15: 1/period | G15: =1/period*4*PI() -> 15 | L15: NX | M15: NY | O15: =FX_MAGNET+F_Kx -> 2235.555883 | P15: =FY_MAGNET+F_ky -> 2340.193278 | Q15: =fxtotal/m -> 2235.555883 | R15: =fytotal/m -> 2340.193278 | AP15: CURVATURE
C16: D= | E16: =SQRT(epsilon^2-4*lamda) -> 15 | I16: PERPENDICULAR | K16: =-CURRENTVX/CURRENTVY -> -1.282737149 | L16: =1/SQRT(1+K16^2) -> 0.6148272778 | M16: =K16*L16 -> -0.7886617896 | Y16: =lamda*CURRENTY-epsilon*magnet*CURRENTVX -> 5312.755976 | AC16: current x | AD16: currenty | AE16: currentvx | AF16: current vy | AO16: 0 | AP16: =FRX+F_CURV_R*COS(AO16) -> -108.4147289 | AQ16: =FRY+F_CURV_R*SIN(AO16) -> 10.34854659
C17: omega | E17: 15 | I17: acceleration Ʇ VELOCITY | L17: =ax_current*NX+ay_current*NY -> -471.1402811 | M17: =CURRENTVX^2+CURRENTVY^2 -> 35515.70632 | AO17: =AO16+2*PI()/100 -> 0.06283185307 | AP17: -108.3146492 | AQ17: 7.163958886
C18: Aktina | E18: 70 | K18: R_KAMP | L18: =VSQUARE/AKATH -> -75.38244498 | AC18: =CURRENTVX/10 -> -14.86281349 | AD18: =CURRENTVY/10 -> -11.58679586 | AE18: =ax_current/100 -> 22.35555883 | AF18: =ay_current/100 -> 23.40193278 | AH18: =Fcurrentvx/10 -> -67.20358032 | AI18: =Fcurrent_vy/10 -> -26.03212578 | AJ18: =axf/50 -> 66.06791198 | AK18: =ayf/50 -> 245.2418322 | AO18: =AO17+2*PI()/100 -> 0.1256637061 | AP18: -108.014805 | AQ18: 3.991939292
C19: magnet | E19: 5 | K19: RX | L19: =CURRENTX+R_KAMP*NX -> -102.645097 | M19: RY | N19: =CURRENTY+R_KAMP*NY -> 27.51020189 | T19: MAGNETIC FOUCAULT | AC19: currentvx | AD19: currentvy | AE19: currentax | AF19: currentay | AO19: 0.1884955592 | AP19: -107.5163798 | AQ19: 0.8450063216
C20: t | D20: X | E20: Y | F20: vx | G20: vy | T20: X | U20: Y | V20: vx | W20: vy | AC20: =CURRENTX -> -56.29791351 | AD20: =CURRENTY -> -31.94105207 | AE20: =CURRENTX -> -56.29791351 | AF20: =CURRENTY -> -31.94105207 | AH20: =Fcurrent_x -> -39.37738785 | AI20: =Fcurrenty -> -36.94489053 | AJ20: =Fcurrent_x -> -39.37738785 | AK20: =Fcurrenty -> -36.94489053 | AO20: 0.2513274123 | AP20: -106.8213406 | AQ20: -2.264420517
A21: =IF(B21=$AC$1,1,0) -> 0 | B21: 0 | C21: 0 | D21: =(Alfa1*SIN(miia*C21)-Alfa2*SIN(miib*C21)) -> 0 | E21: =-(Alfa1*COS(miia*C21)-Alfa2*COS(miib*C21)) -> 70 | F21: =(miia*Alfa1*COS(miia*C21)-miib*Alfa2*COS(miib*C21)) -> 0 | G21: =miia*Alfa1*SIN(miia*C21)-miib*Alfa2*SIN(miib*C21) -> 0 | Q21: =IF(R21=$AC$1,1,0) -> 0 | R21: =0 -> 0 | S21: 0 | T21: =Aktina*SIN(epsilon*S21)*COS(D*S21) -> 0 | U21: =Aktina*COS(epsilon*S21)*COS(D*S21) -> 70 | AC21: =AC20+AC18 -> -71.16072701 | AD21: =AD20+AD18 -> -43.52784793 | AE21: =AE20+AE18 -> -33.94235469 | AF21: =AF20+AF18 -> -8.539119291 | AH21: =AH20+AH18 -> -106.5809682 | AI21: =AI20+AI18 -> -62.97701631 | AJ21: =AJ20+AJ18 -> 26.69052414 | AK21: =AK20+AK18 -> 208.2969417 | AO21: 0.3141592654 | AP21: -105.9324303 | AQ21: -5.324069736
A22: =IF(B22=$AC$1,1,0) -> 0 | B22: =B21+1 -> 1 | C22: =C21+dt -> 0.01 | D22: =(Alfa1*SIN(miia*C22)-Alfa2*SIN(miib*C22)) -> -0.002914844206 | E22: =-(Alfa1*COS(miia*C22)-Alfa2*COS(miib*C22)) -> 69.82510934 | F22: =(miia*Alfa1*COS(miia*C22)-miib*Alfa2*COS(miib*C22)) -> -0.8740888606 | G22: =miia*Alfa1*SIN(miia*C22)-miib*Alfa2*SIN(miib*C22) -> -34.95627005 | Q22: =IF(R22=$AC$1,1,0) -> 0 | R22: =R21+1 -> 1 | S22: =S21+dt -> 0.01 | T22: =IF(R22<MAX_TIME,Aktina*SIN(epsilon*S22)*COS(D*S22),Aktina*SIN(epsilon*MAX_TIME*dt)*COS(D*MAX_TIME*dt)) -> 3.459256995 | U22: =IF(R22<MAX_TIME,Aktina*COS(epsilon*S22)*COS(D*S22),Aktina*COS(epsilon*MAX_TIME*dt)*COS(D*MAX_TIME*dt)) -> 69.12747601 | AC22: =-1/20*AD18+18/20*AC18+AC20 -> -69.09510586 | AD22: =1/20*AC18+18/20*AD18+AD20 -> -43.11230902 | AE22: =-1/20*AF18+18/20*AE18+AE20 -> -37.34800721 | AF22: =1/20*AE18+18/20*AF18+AF20 -> -9.761534628 | AH22: =-1/20*AI18+18/20*AH18+AH20 -> -98.55900384 | AI22: =1/20*AH18+18/20*AI18+AI20 -> -63.73398275 | AJ22: =-1/20*AK18+18/20*AJ18+AJ20 -> 7.821641326 | AK22: =1/20*AJ18+18/20*AK18+AK20 -> 187.0761541 | AO22: 0.3769911184 | AP22: -104.8531571 | AQ22: -8.321866299
A23: 0 | B23: =B22+1 -> 2 | C23: 0.02 | D23: =(Alfa1*SIN(miia*C23)-Alfa2*SIN(miib*C23)) -> -0.0232750583 | E23: =-(Alfa1*COS(miia*C23)-Alfa2*COS(miib*C23)) -> 69.30174786 | F23: =(miia*Alfa1*COS(miia*C23)-miib*Alfa2*COS(miib*C23)) -> -3.485437069 | G23: =miia*Alfa1*SIN(miia*C23)-miib*Alfa2*SIN(miib*C23) -> -69.65064107 | Q23: 0 | R23: =R22+1 -> 2 | S23: 0.02 | T23: 6.676215403 | U23: 66.53946501 | AC23: =1/20*AD18+18/20*AC18+AC20 -> -70.25378545 | AD23: =-1/20*AC18+18/20*AD18+AD20 -> -41.62602767 | AE23: =1/20*AF18+18/20*AE18+AE20 -> -35.00781393 | AF23: =-1/20*AE18+18/20*AF18+AF20 -> -11.99709051 | AH23: =1/20*AI18+18/20*AH18+AH20 -> -101.1622164 | AI23: =-1/20*AH18+18/20*AI18+AI20 -> -57.01362472 | AJ23: =1/20*AK18+18/20*AJ18+AJ20 -> 32.34582455 | AK23: =-1/20*AJ18+18/20*AK18+AK20 -> 180.4693629 | AO23: 0.4398229715 | AP23: -103.5877804 | AQ23: -11.24597927
A24: 0 | B24: 3 | C24: 0.03 | D24: =(Alfa1*SIN(miia*C24)-Alfa2*SIN(miib*C24)) -> -0.07830802667 | E24: =-(Alfa1*COS(miia*C24)-Alfa2*COS(miib*C24)) -> 68.43383505 | F24: =(miia*Alfa1*COS(miia*C24)-miib*Alfa2*COS(miib*C24)) -> -7.801404056 | G24: =miia*Alfa1*SIN(miia*C24)-miib*Alfa2*SIN(miib*C24) -> -103.8236125 | Q24: 0 | R24: 3 | S24: 0.03 | T24: 9.419279336 | U24: 62.32352364 | AC24: =AC21 -> -71.16072701 | AD24: =AD21 -> -43.52784793 | AE24: =AE21 -> -33.94235469 | AF24: =AF21 -> -8.539119291 | AH24: =AH21 -> -106.5809682 | AI24: =AI21 -> -62.97701631 | AJ24: =AJ21 -> 26.69052414 | AK24: =AK21 -> 208.2969417 | AO24: 0.5026548246 | AP24: -102.1412941 | AQ24: -14.08486852
A25: 0 | B25: 4 | C25: 0.04 | D25: =(Alfa1*SIN(miia*C25)-Alfa2*SIN(miib*C25)) -> -0.1848074499 | E25: =-(Alfa1*COS(miia*C25)-Alfa2*COS(miib*C25)) -> 67.22786349 | F25: =(miia*Alfa1*COS(miia*C25)-miib*Alfa2*COS(miib*C25)) -> -13.76796956 | G25: =miia*Alfa1*SIN(miia*C25)-miib*Alfa2*SIN(miib*C25) -> -137.2204571 | Q25: 0 | R25: 4 | S25: 0.04 | T25: 11.4778212 | U25: 56.62186962 | AO25: 0.5654866776 | AP25: -100.5194068 | AQ25: -16.82733023
A26: 0 | B26: 5 | C26: 0.05 | D26: =(Alfa1*SIN(miia*C26)-Alfa2*SIN(miib*C26)) -> -0.3589221978 | E26: =-(Alfa1*COS(miia*C26)-Alfa2*COS(miib*C26)) -> 65.69283946 | F26: =(miia*Alfa1*COS(miia*C26)-miib*Alfa2*COS(miib*C26)) -> -21.31030062 | G26: =miia*Alfa1*SIN(miia*C26)-miib*Alfa2*SIN(miib*C26) -> -169.5935495 | Q26: 0 | R26: 5 | S26: 0.05 | T26: 12.67159062 | U26: 49.62597037 | AO26: 0.6283185307 | AP26: -98.72851928 | AQ26: -19.46254118
A27: 0 | B27: 6 | C27: 0.06 | D27: =(Alfa1*SIN(miia*C27)-Alfa2*SIN(miib*C27)) -> -0.6159519316 | E27: =-(Alfa1*COS(miia*C27)-Alfa2*COS(miib*C27)) -> 63.84020051 | F27: =(miia*Alfa1*COS(miia*C27)-miib*Alfa2*COS(miib*C27)) -> -30.33353732 | G27: =miia*Alfa1*SIN(miia*C27)-miib*Alfa2*SIN(miib*C27) -> -200.7046253 | Q27: 0 | R27: 6 | S27: 0.06 | T27: 12.85888144 | U27: 41.56926793 | AC27: Magnet Forcex | AD27: Magnet force Y | AE27: K*x | AF27: K*y | AO27: 0.6911503838 | AP27: -96.77569941 | AQ27: -21.98010139
A28: 0 | B28: 7 | C28: 0.07 | D28: =(Alfa1*SIN(miia*C28)-Alfa2*SIN(miib*C28)) -> -0.9701516457 | E28: =-(Alfa1*COS(miia*C28)-Alfa2*COS(miib*C28)) -> 61.68371097 | F28: =(miia*Alfa1*COS(miia*C28)-miib*Alfa2*COS(miib*C28)) -> -40.7237893 | G28: =miia*Alfa1*SIN(miia*C28)-miib*Alfa2*SIN(miib*C28) -> -230.3269488 | Q28: 0 | R28: 7 | S28: 0.07 | T28: 11.9431215 | U28: 32.71832656 | AC28: =FX_MAGNET/10 -> -57.9339793 | AD28: =FY_MAGNET/10 -> 74.31406746 | AE28: =F_Kx/10 -> 281.4895676 | AF28: =F_ky/10 -> 159.7052604 | AO28: 0.7539822369 | AP28: -94.66865407 | AQ28: -24.37007518
A29: 0 | B29: 8 | C29: 0.08 | D29: =(Alfa1*SIN(miia*C29)-Alfa2*SIN(miib*C29)) -> -1.434547187 | E29: =-(Alfa1*COS(miia*C29)-Alfa2*COS(miib*C29)) -> 59.23933627 | F29: =(miia*Alfa1*COS(miia*C29)-miib*Alfa2*COS(miib*C29)) -> -52.34933309 | G29: =miia*Alfa1*SIN(miia*C29)-miib*Alfa2*SIN(miib*C29) -> -258.2473677 | Q29: 0 | R29: 8 | S29: 0.08 | T29: 9.877612925 | U29: 23.36275155 | AO29: 0.8168140899 | AP29: -92.41569881 | AQ29: -26.62303045
A30: 0 | B30: 9 | C30: 0.09 | D30: =(Alfa1*SIN(miia*C30)-Alfa2*SIN(miib*C30)) -> -2.020763701 | E30: =-(Alfa1*COS(miia*C30)-Alfa2*COS(miib*C30)) -> 56.52509737 | F30: =(miia*Alfa1*COS(miia*C30)-miib*Alfa2*COS(miib*C30)) -> -65.06199795 | G30: =miia*Alfa1*SIN(miia*C30)-miib*Alfa2*SIN(miib*C30) -> -284.2682369 | Q30: 0 | R30: 9 | S30: 0.09 | T30: 6.668225244 | U30: 13.80427558 | AC30: =FX_MAGNET/10 -> -57.9339793 | AD30: =FY_MAGNET/10 -> 74.31406746 | AE30: =F_Kx/10 -> 281.4895676 | AF30: =F_ky/10 -> 159.7052604 | AH30: Lines | AO30: 0.879645943 | AP30: -90.02572501 | AQ30: -28.73007578
A31: 0 | B31: 10 | C31: 0.1 | D31: =(Alfa1*SIN(miia*C31)-Alfa2*SIN(miib*C31)) -> -2.738868823 | E31: =-(Alfa1*COS(miia*C31)-Alfa2*COS(miib*C31)) -> 53.56090669 | F31: =(miia*Alfa1*COS(miia*C31)-miib*Alfa2*COS(miib*C31)) -> -78.69872641 | G31: =miia*Alfa1*SIN(miia*C31)-miib*Alfa2*SIN(miib*C31) -> -308.2091888 | Q31: 0 | R31: 10 | S31: 0.1 | T31: 2.373925471 | U31: 4.345441426 | AC31: =IF(H11="YES",CURRENTX,"") ->  | AD31: =IF(H11="Yes",CURRENTY,"") ->  | AE31: =IF(H11="Yes",CURRENTX,"") ->  | AF31: =IF(H11="yes",CURRENTY,"") ->  | AH31: =IF(H11="Yes",AC32,"") ->  | AI31: =AD32 ->  | AO31: 0.9424777961 | AP31: -87.50816481 | AQ31: -30.68289565
A32: 0 | B32: 11 | C32: 0.11 | D32: =(Alfa1*SIN(miia*C32)-Alfa2*SIN(miib*C32)) -> -3.597232282 | E32: =-(Alfa1*COS(miia*C32)-Alfa2*COS(miib*C32)) -> 50.3683872 | F32: =(miia*Alfa1*COS(miia*C32)-miib*Alfa2*COS(miib*C32)) -> -93.08329348 | G32: =miia*Alfa1*SIN(miia*C32)-miib*Alfa2*SIN(miib*C32) -> -329.9087374 | Q32: 0 | R32: 11 | S32: 0.11 | T32: -2.894883468 | U32: -4.721674854 | AC32: =IF(H11="yeS",AC31+AC30,"") ->  | AD32: =IF(H11="Yes",AD31+AD30,"") ->  | AE32: =IF(H11="yes",AE31+AE30,"") ->  | AF32: =IF(H11="yes",AF31+AF30,"") ->  | AH32: =IF(H11="Yes",AC40,"") ->  | AI32: =IF(H11="Yes",AD40,"") ->  | AO32: 1.005309649 | AP32: -84.87295386 | AQ32: -32.47378316
A33: 0 | B33: 12 | C33: 0.12 | D33: =(Alfa1*SIN(miia*C33)-Alfa2*SIN(miib*C33)) -> -4.602403419 | E33: =-(Alfa1*COS(miia*C33)-Alfa2*COS(miib*C33)) -> 46.9706763 | F33: =(miia*Alfa1*COS(miia*C33)-miib*Alfa2*COS(miib*C33)) -> -108.0281674 | G33: =miia*Alfa1*SIN(miia*C33)-miib*Alfa2*SIN(miib*C33) -> -349.2256972 | Q33: 0 | R33: 12 | S33: 0.12 | T33: -8.98015669 | U33: -13.12625864 | AC33: =IF(H11="YES",-1/20*AD30+18/20*AC30+AC31,"") ->  | AD33: =IF(H11="Yes",1/20*AC30+18/20*AD30+AD31,"") ->  | AE33: =IF(H11="yes",-1/20*AF30+18/20*AE30+AE31,"") ->  | AF33: =IF(H11="yes",1/20*AE30+18/20*AF30+AF31,"") ->  | AH33: =IF(H11="yes",AE32,"") ->  | AI33: =AF32 ->  | AO33: 1.068141502 | AP33: -82.13049214 | AQ33: -34.0956705
A34: 0 | B34: 13 | C34: 0.13 | D34: =(Alfa1*SIN(miia*C34)-Alfa2*SIN(miib*C34)) -> -5.759007941 | E34: =-(Alfa1*COS(miia*C34)-Alfa2*COS(miib*C34)) -> 43.3922166 | F34: =(miia*Alfa1*COS(miia*C34)-miib*Alfa2*COS(miib*C34)) -> -123.336493 | G34: =miia*Alfa1*SIN(miia*C34)-miib*Alfa2*SIN(miib*C34) -> -366.0404046 | Q34: 0 | R34: 13 | S34: 0.13 | T34: -15.68198848 | U34: -20.62864737 | AC34: =IF(H11="YES",1/20*AD30+18/20*AC30+AC31,"") ->  | AD34: =IF(H11="Yes",-1/20*AC30+18/20*AD30+AD31,"") ->  | AE34: =IF(H11="yes",1/20*AF30+18/20*AE30+AE31,"") ->  | AF34: =IF(H11="Yes",-1/20*AE30+18/20*AF30+AF31,"") ->  | AO34: 1.130973355 | AP34: -79.2916029 | AQ34: -35.54215682
A35: 0 | B35: 14 | C35: 0.14 | D35: =(Alfa1*SIN(miia*C35)-Alfa2*SIN(miib*C35)) -> -7.069665038 | E35: =-(Alfa1*COS(miia*C35)-Alfa2*COS(miib*C35)) -> 39.65853541 | F35: =(miia*Alfa1*COS(miia*C35)-miib*Alfa2*COS(miib*C35)) -> -138.804177 | G35: =miia*Alfa1*SIN(miia*C35)-miib*Alfa2*SIN(miib*C35) -> -380.2557307 | Q35: 0 | R35: 14 | S35: 0.14 | T35: -22.76615529 | U35: -27.02893192 | AC35: =IF(H11="YES",AC32,"") ->  | AD35: =AD32 ->  | AE35: =AE32 ->  | AF35: =AF32 ->  | AO35: 1.193805208 | AP35: -76.36748993 | AQ35: -36.8075335
A36: 0 | B36: 15 | C36: 0.15 | D36: =(Alfa1*SIN(miia*C36)-Alfa2*SIN(miib*C36)) -> -8.53492578 | E36: =-(Alfa1*COS(miia*C36)-Alfa2*COS(miib*C36)) -> 35.79601525 | F36: =(miia*Alfa1*COS(miia*C36)-miib*Alfa2*COS(miib*C36)) -> -154.2220557 | G36: =miia*Alfa1*SIN(miia*C36)-miib*Alfa2*SIN(miib*C36) -> -391.7978742 | Q36: 0 | R36: 15 | S36: 0.15 | T36: -29.97312425 | U36: -32.17393532 | AO36: 1.256637061 | AP36: -73.36969336 | AQ36: -37.88680667
A37: 0 | B37: 16 | C37: 0.16 | D37: =(Alfa1*SIN(miia*C37)-Alfa2*SIN(miib*C37)) -> -10.1532335 | E37: =-(Alfa1*COS(miia*C37)-Alfa2*COS(miib*C37)) -> 31.83165758 | F37: =(miia*Alfa1*COS(miia*C37)-miib*Alfa2*COS(miib*C37)) -> -169.3781207 | G37: =miia*Alfa1*SIN(miia*C37)-miib*Alfa2*SIN(miib*C37) -> -400.6169286 | Q37: 0 | R37: 16 | S37: 0.16 | T37: -37.02817113 | U37: -35.96230043 | AC37: resultant | AO37: 1.319468915 | AP37: -70.31004414 | AQ37: -38.77571694
A38: 0 | B38: 17 | C38: 0.17 | D38: =(Alfa1*SIN(miia*C38)-Alfa2*SIN(miib*C38)) -> -11.92090666 | E38: =-(Alfa1*COS(miia*C38)-Alfa2*COS(miib*C38)) -> 27.79284194 | F38: =(miia*Alfa1*COS(miia*C38)-miib*Alfa2*COS(miib*C38)) -> -184.0597827 | G38: =miia*Alfa1*SIN(miia*C38)-miib*Alfa2*SIN(miib*C38) -> -406.687217 | Q38: 0 | R38: 17 | S38: 0.17 | T38: -43.65220694 | U38: -38.34749404 | AC38: =(FX_MAGNET+F_Kx)/30 -> 74.51852942 | AD38: =(FY_MAGNET+F_ky)/30 -> 78.00644261 | AO38: 1.382300768 | AP38: -67.20061731 | AQ38: -39.47075618
A39: 0 | B39: 18 | C39: 0.18 | D39: =(Alfa1*SIN(miia*C39)-Alfa2*SIN(miib*C39)) -> -13.8321444 | E39: =-(Alfa1*COS(miia*C39)-Alfa2*COS(miib*C39)) -> 23.70708298 | F39: =(miia*Alfa1*COS(miia*C39)-miib*Alfa2*COS(miib*C39)) -> -198.056148 | G39: =miia*Alfa1*SIN(miia*C39)-miib*Alfa2*SIN(miib*C39) -> -410.0073928 | Q39: 0 | R39: 18 | S39: 0.18 | T39: -49.5728826 | U39: -39.33861789 | AC39: =IF(H12="yes",CURRENTX,"") -> -56.29791351 | AD39: =IF(H12="Yes",CURRENTY,"") -> -31.94105207 | AO39: 1.445132621 | AP39: -64.05368434 | AQ39: -39.9691814
A40: 0 | B40: 19 | C40: 0.19 | D40: =(Alfa1*SIN(miia*C40)-Alfa2*SIN(miib*C40)) -> -15.87905484 | E40: =-(Alfa1*COS(miia*C40)-Alfa2*COS(miib*C40)) -> 19.60178761 | F40: =(miia*Alfa1*COS(miia*C40)-miib*Alfa2*COS(miib*C40)) -> -211.1602865 | G40: =miia*Alfa1*SIN(miia*C40)-miib*Alfa2*SIN(miib*C40) -> -410.6003049 | Q40: 0 | R40: 19 | S40: 0.19 | T40: -54.53552925 | U40: -38.99900476 | AC40: =IF(H12="yes",AC39+AC38,"") -> 18.22061591 | AD40: =IF(H12="Yes",AD39+AD38,"") -> 46.06539053 | AO40: 1.507964474 | AP40: -60.88166474 | AQ40: -40.26902553
A41: 0 | B41: 20 | C41: 0.2 | D41: =(Alfa1*SIN(miia*C41)-Alfa2*SIN(miib*C41)) -> -18.051706 | E41: =-(Alfa1*COS(miia*C41)-Alfa2*COS(miib*C41)) -> 15.50401475 | F41: =(miia*Alfa1*COS(miia*C41)-miib*Alfa2*COS(miib*C41)) -> -223.1714666 | G41: =miia*Alfa1*SIN(miia*C41)-miib*Alfa2*SIN(miib*C41) -> -408.5126294 | Q41: 0 | R41: 20 | S41: 0.2 | T41: -58.31349727 | U41: -37.44266601 | AC41: =IF(H12="Yes",-1/20*AD38+18/20*AC38+AC39,"") -> 6.868440836 | AD41: =IF(H12="Yes",1/20*AC38+18/20*AD38+AD39,"") -> 41.99067274 | AO41: 1.570796327 | AP41: -57.69707703 | AQ41: -40.36910523
A42: 0 | B42: 21 | C42: 0.21 | D42: =(Alfa1*SIN(miia*C42)-Alfa2*SIN(miib*C42)) -> -20.33819864 | E42: =-(Alfa1*COS(miia*C42)-Alfa2*COS(miib*C42)) -> 11.44023979 | F42: =(miia*Alfa1*COS(miia*C42)-miib*Alfa2*COS(miib*C42)) -> -233.8973356 | G42: =miia*Alfa1*SIN(miia*C42)-miib*Alfa2*SIN(miib*C42) -> -403.8142715 | Q42: 0 | R42: 21 | S42: 0.21 | T42: -60.71747987 | U42: -34.82874241 | AC42: =IF(H12="Yes",1/20*AD38+18/20*AC38+AC39,"") -> 14.6690851 | AD42: =IF(H12="Yes",-1/20*AC38+18/20*AD38+AD39,"") -> 34.5388198 | AO42: 1.63362818 | AP42: -54.51248933 | AQ42: -40.26902553
A43: 0 | B43: 22 | C43: 0.22 | D43: =(Alfa1*SIN(miia*C43)-Alfa2*SIN(miib*C43)) -> -22.72476071 | E43: =-(Alfa1*COS(miia*C43)-Alfa2*COS(miib*C43)) -> 7.436126264 | F43: =(miia*Alfa1*COS(miia*C43)-miib*Alfa2*COS(miib*C43)) -> -243.1560224 | G43: =miia*Alfa1*SIN(miia*C43)-miib*Alfa2*SIN(miib*C43) -> -396.5975449 | Q43: 0 | R43: 22 | S43: 0.22 | T43: -61.60344672 | U43: -31.35418955 | AC43: =AC40 -> 18.22061591 | AD43: =AD40 -> 46.06539053 | AO43: 1.696460033 | AP43: -51.34046973 | AQ43: -39.9691814
A44: 0 | B44: 23 | C44: 0.23 | D44: =(Alfa1*SIN(miia*C44)-Alfa2*SIN(miib*C44)) -> -25.19586226 | E44: =-(Alfa1*COS(miia*C44)-Alfa2*COS(miib*C44)) -> 3.516306745 | F44: =(miia*Alfa1*COS(miia*C44)-miib*Alfa2*COS(miib*C44)) -> -250.7781412 | G44: =miia*Alfa1*SIN(miia*C44)-miib*Alfa2*SIN(miib*C44) -> -386.9761356 | Q44: 0 | R44: 23 | S44: 0.23 | T44: -60.87886755 | U44: -27.24499919 | AO44: 1.759291886 | AP44: -48.19353676 | AQ44: -39.47075618
A45: 0 | B45: 24 | C45: 0.24 | D45: =(Alfa1*SIN(miia*C45)-Alfa2*SIN(miib*C45)) -> -27.7343498 | E45: =-(Alfa1*COS(miia*C45)-Alfa2*COS(miib*C45)) -> -0.2958248204 | F45: =(miia*Alfa1*COS(miia*C45)-miib*Alfa2*COS(miib*C45)) -> -256.6086763 | G45: =miia*Alfa1*SIN(miia*C45)-miib*Alfa2*SIN(miib*C45) -> -375.0838622 | Q45: 0 | R45: 24 | S45: 0.24 | T45: -58.50697263 | U45: -22.74631562 | AO45: 1.822123739 | AP45: -45.08410992 | AQ45: -38.77571694
A46: 0 | B46: 25 | C46: 0.25 | D46: =(Alfa1*SIN(miia*C46)-Alfa2*SIN(miib*C46)) -> -30.32159887 | E46: =-(Alfa1*COS(miia*C46)-Alfa2*COS(miib*C46)) -> -3.978307451 | F46: =(miia*Alfa1*COS(miia*C46)-miib*Alfa2*COS(miib*C46)) -> -260.5087282 | G46: =miia*Alfa1*SIN(miia*C46)-miib*Alfa2*SIN(miib*C46) -> -361.0732448 | Q46: 0 | R46: 25 | S46: 0.25 | T46: -54.50887466 | U46: -18.11185005 | AO46: 1.884955592 | AP46: -42.0244607 | AQ46: -37.88680667
A47: 0 | B47: 26 | C47: 0.26 | D47: =(Alfa1*SIN(miia*C47)-Alfa2*SIN(miib*C47)) -> -32.93768331 | E47: =-(Alfa1*COS(miia*C47)-Alfa2*COS(miib*C47)) -> -7.510792243 | F47: =(miia*Alfa1*COS(miia*C47)-miib*Alfa2*COS(miib*C47)) -> -262.3571025 | G47: =miia*Alfa1*SIN(miia*C47)-miib*Alfa2*SIN(miib*C47) -> -345.1138967 | Q47: 0 | R47: 26 | S47: 0.26 | T47: -48.96346096 | U47: -13.59302287 | AO47: 1.947787445 | AP47: -39.02666414 | AQ47: -36.8075335
A48: 0 | B48: 27 | C48: 0.27 | D48: =(Alfa1*SIN(miia*C48)-Alfa2*SIN(miib*C48)) -> -35.56155949 | E48: =-(Alfa1*COS(miia*C48)-Alfa2*COS(miib*C48)) -> -10.87470458 | F48: =(miia*Alfa1*COS(miia*C48)-miib*Alfa2*COS(miib*C48)) -> -262.0517268 | G48: =miia*Alfa1*SIN(miia*C48)-miib*Alfa2*SIN(miib*C48) -> -327.3907555 | Q48: 0 | R48: 27 | S48: 0.27 | T48: -42.00505287 | U48: -9.428274313 | AO48: 2.010619298 | AP48: =FRX+F_CURV_R*COS(AO48) -> -36.10255117 | AQ48: =FRY+F_CURV_R*SIN(AO48) -> -35.54215682
A49: 0 | B49: 28 | C49: 0.28 | D49: =(Alfa1*SIN(miia*C49)-Alfa2*SIN(miib*C49)) -> -38.1712639 | E49: =-(Alfa1*COS(miia*C49)-Alfa2*COS(miib*C49)) -> -14.05338795 | F49: =(miia*Alfa1*COS(miia*C49)-miib*Alfa2*COS(miib*C49)) -> -259.5108795 | G49: =miia*Alfa1*SIN(miia*C49)-miib*Alfa2*SIN(miib*C49) -> -308.102172 | Q49: 0 | R49: 28 | S49: 0.28 | T49: -33.81891758 | U49: -5.832976176 | AO49: 2.073451151 | AP49: -33.26366192 | AQ49: -34.0956705
A50: 0 | B50: 29 | C50: 0.29 | D50: =(Alfa1*SIN(miia*C50)-Alfa2*SIN(miib*C50)) -> -40.7441219 | E50: =-(Alfa1*COS(miia*C50)-Alfa2*COS(miib*C50)) -> -17.03222795 | F50: =(miia*Alfa1*COS(miia*C50)-miib*Alfa2*COS(miib*C50)) -> -254.6742181 | G50: =miia*Alfa1*SIN(miia*C50)-miib*Alfa2*SIN(miib*C50) -> -287.4578747 | Q50: 0 | R50: 29 | S50: 0.29 | T50: -24.6348028 | U50: -2.990352687 | AO50: 2.136283004 | AP50: -30.5212002 | AQ50: -32.47378316
A51: 0 | B51: 30 | C51: 0.3 | D51: =(Alfa1*SIN(miia*C51)-Alfa2*SIN(miib*C51)) -> -43.25696585 | E51: =-(Alfa1*COS(miia*C51)-Alfa2*COS(miib*C51)) -> -19.79875551 | F51: =(miia*Alfa1*COS(miia*C51)-miib*Alfa2*COS(miib*C51)) -> -247.5035963 | G51: =miia*Alfa1*SIN(miia*C51)-miib*Alfa2*SIN(miib*C51) -> -265.6768321 | Q51: 0 | R51: 30 | S51: 0.3 | T51: -14.71874272 | U51: -1.043777348 | AO51: 2.199114858 | AP51: -27.88598926 | AQ51: -30.68289565
A52: 0 | B52: 31 | C52: 0.31 | D52: =(Alfa1*SIN(miia*C52)-Alfa2*SIN(miib*C52)) -> -45.68636021 | E52: =-(Alfa1*COS(miia*C52)-Alfa2*COS(miib*C52)) -> -22.34272821 | F52: =(miia*Alfa1*COS(miia*C52)-miib*Alfa2*COS(miib*C52)) -> -237.9836616 | G52: =miia*Alfa1*SIN(miia*C52)-miib*Alfa2*SIN(miib*C52) -> -242.9850329 | Q52: 0 | R52: 31 | S52: 0.31 | T52: -4.363452284 | U52: -0.09075686375 | AO52: 2.261946711 | AP52: -25.36842905 | AQ52: -28.73007578
A53: 0 | B53: 32 | C53: 0.32 | D53: =(Alfa1*SIN(miia*C53)-Alfa2*SIN(miib*C53)) -> -48.00883149 | E53: =-(Alfa1*COS(miia*C53)-Alfa2*COS(miib*C53)) -> -24.65618914 | F53: =(miia*Alfa1*COS(miia*C53)-miib*Alfa2*COS(miib*C53)) -> -226.1222258 | G53: =miia*Alfa1*SIN(miia*C53)-miib*Alfa2*SIN(miib*C53) -> -219.6132072 | Q53: 0 | R53: 32 | S53: 0.32 | T53: 6.12231719 | U53: -0.1788449963 | AO53: 2.324778564 | AP53: -22.97845525 | AQ53: -26.62303045
A54: 0 | B54: 33 | C54: 0.33 | D54: =(Alfa1*SIN(miia*C54)-Alfa2*SIN(miib*C54)) -> -50.20110086 | E54: =-(Alfa1*COS(miia*C54)-Alfa2*COS(miib*C54)) -> -26.73350278 | F54: =(miia*Alfa1*COS(miia*C54)-miib*Alfa2*COS(miib*C54)) -> -211.9504056 | G54: =miia*Alfa1*SIN(miia*C54)-miib*Alfa2*SIN(miib*C54) -> -195.7945113 | Q54: 0 | R54: 33 | S54: 0.33 | T54: 16.42504702 | U54: -1.303651228 | AO54: 2.387610417 | AP54: -20.72549999 | AQ54: -24.37007518
A55: 0 | B55: 34 | C55: 0.34 | D55: =(Alfa1*SIN(miia*C55)-Alfa2*SIN(miib*C55)) -> -52.24031687 | E55: =-(Alfa1*COS(miia*C55)-Alfa2*COS(miib*C55)) -> -28.57136756 | F55: =(miia*Alfa1*COS(miia*C55)-miib*Alfa2*COS(miib*C55)) -> -195.5225296 | G55: =miia*Alfa1*SIN(miia*C55)-miib*Alfa2*SIN(miib*C55) -> -171.7621986 | N55: dfi | O55: =PI()/50 -> 0.06283185307 | Q55: 0 | R55: 34 | S55: 0.34 | T55: 26.23790586 | U55: -3.409024578 | AO55: 2.45044227 | AP55: -18.61845466 | AQ55: -21.98010139
A56: 0 | B56: 35 | C56: 0.35 | D56: =(Alfa1*SIN(miia*C56)-Alfa2*SIN(miib*C56)) -> -54.10428617 | E56: =-(Alfa1*COS(miia*C56)-Alfa2*COS(miib*C56)) -> -30.1688053 | F56: =(miia*Alfa1*COS(miia*C56)-miib*Alfa2*COS(miib*C56)) -> -176.915814 | G56: =miia*Alfa1*SIN(miia*C56)-miib*Alfa2*SIN(miib*C56) -> -147.7473011 | Q56: 0 | R56: 35 | S56: 0.35 | T56: 35.27194392 | U56: -6.389405153 | AO56: 2.513274123 | AP56: -16.66563479 | AQ56: -19.46254118
A57: 0 | B57: 36 | C57: 0.36 | D57: =(Alfa1*SIN(miia*C57)-Alfa2*SIN(miib*C57)) -> -55.77169978 | E57: =-(Alfa1*COS(miia*C57)-Alfa2*COS(miib*C57)) -> -31.52712747 | F57: =(miia*Alfa1*COS(miia*C57)-miib*Alfa2*COS(miib*C57)) -> -156.2298084 | G57: =miia*Alfa1*SIN(miia*C57)-miib*Alfa2*SIN(miib*C57) -> -123.9763438 | N57: kyklos diskoy | Q57: 0 | R57: 36 | S57: 0.36 | T57: 43.26659075 | U57: -10.09424856 | AO57: 2.576105976 | AP57: -14.87474728 | AQ57: -16.82733023
A58: 0 | B58: 37 | C58: 0.37 | D58: =(Alfa1*SIN(miia*C58)-Alfa2*SIN(miib*C58)) -> -57.22235276 | E58: =-(Alfa1*COS(miia*C58)-Alfa2*COS(miib*C58)) -> -32.64987893 | F58: =(miia*Alfa1*COS(miia*C58)-miib*Alfa2*COS(miib*C58)) -> -133.5856165 | G58: =miia*Alfa1*SIN(miia*C58)-miib*Alfa2*SIN(miib*C58) -> -100.6691145 | L58: curvatue circle | N58: =0 -> 0 | O58: =Aktina*COS(N58) -> 70 | P58: =Aktina*(SIN(N58)) -> 0 | Q58: 0 | R58: 37 | S58: 0.37 | T58: 49.99904829 | U58: -14.33434464 | AO58: 2.638937829 | AP58: -13.25285994 | AQ58: -14.08486852
A59: 0 | B59: 38 | C59: 0.38 | D59: =(Alfa1*SIN(miia*C59)-Alfa2*SIN(miib*C59)) -> -58.43735488 | E59: =-(Alfa1*COS(miia*C59)-Alfa2*COS(miib*C59)) -> -33.54275973 | F59: =(miia*Alfa1*COS(miia*C59)-miib*Alfa2*COS(miib*C59)) -> -109.1249005 | G59: =miia*Alfa1*SIN(miia*C59)-miib*Alfa2*SIN(miib*C59) -> -78.03651257 | K59: =0 -> 0 | L59: =RX+R_KAMP*COS(K59) -> -178.0275419 | M59: =RY+R_KAMP*SIN(K59) -> 27.51020189 | N59: =N58+dfi -> 0.06283185307 | O59: =Aktina*COS(N59) -> 69.86187099 | P59: =Aktina*(SIN(N59)) -> 4.395336367 | Q59: 0 | R59: 38 | S59: 0.38 | T59: 55.2922147 | U59: -18.88977543 | AO59: 2.701769682 | AP59: -11.80637362 | AQ59: -11.24597927
A60: 0 | B60: 39 | C60: 0.39 | D60: =(Alfa1*SIN(miia*C60)-Alfa2*SIN(miib*C60)) -> -59.39933041 | E60: =-(Alfa1*COS(miia*C60)-Alfa2*COS(miib*C60)) -> -34.21352589 | F60: =(miia*Alfa1*COS(miia*C60)-miib*Alfa2*COS(miib*C60)) -> -83.008677 | G60: =miia*Alfa1*SIN(miia*C60)-miib*Alfa2*SIN(miib*C60) -> -56.27849636 | K60: =K59+2*PI()/80 -> 0.07853981634 | L60: -177.795163 | M60: 21.59576343 | N60: =N59+dfi -> 0.1256637061 | O60: =Aktina*COS(N60) -> 69.44802909 | P60: =Aktina*(SIN(N60)) -> 8.77332635 | Q60: 0 | R60: 39 | S60: 0.39 | T60: 59.02083266 | U60: -23.51919093 | AO60: 2.764601535 | AP60: -10.54099694 | AQ60: -8.321866299
A61: 0 | B61: 40 | C61: 0.4 | D61: =(Alfa1*SIN(miia*C61)-Alfa2*SIN(miib*C61)) -> -60.09260481 | E61: =-(Alfa1*COS(miia*C61)-Alfa2*COS(miib*C61)) -> -34.67187019 | F61: =(miia*Alfa1*COS(miia*C61)-miib*Alfa2*COS(miib*C61)) -> -55.41591634 | G61: =miia*Alfa1*SIN(miia*C61)-miib*Alfa2*SIN(miib*C61) -> -35.58215069 | K61: =K60+2*PI()/80 -> 0.1570796327 | L61: -177.0994589 | M61: 15.71778944 | N61: =N60+dfi -> 0.1884955592 | O61: =Aktina*COS(N61) -> 68.76010755 | P61: =Aktina*(SIN(N61)) -> 13.11669202 | Q61: 0 | R61: 40 | S61: 0.4 | T61: 61.11562597 | U61: -27.97002791 | AO61: 2.827433388 | AP61: -9.46172377 | AQ61: -5.324069736
A62: 0 | B62: 41 | C62: 0.41 | D62: =(Alfa1*SIN(miia*C62)-Alfa2*SIN(miib*C62)) -> -60.50337646 | E62: =-(Alfa1*COS(miia*C62)-Alfa2*COS(miib*C62)) -> -34.92928435 | F62: =(miia*Alfa1*COS(miia*C62)-miib*Alfa2*COS(miib*C62)) -> -26.54195954 | G62: =miia*Alfa1*SIN(miia*C62)-miib*Alfa2*SIN(miib*C62) -> -16.11989343 | K62: 0.235619449 | L62: -175.944719 | M62: 9.912519596 | N62: =N61+dfi -> 0.2513274123 | O62: =Aktina*COS(N62) -> 67.80082128 | P62: =Aktina*(SIN(N62)) -> 17.4082921 | Q62: 0 | R62: 41 | S62: 0.41 | T62: 61.56526837 | U62: -31.98925826 | AO62: 2.890265241 | AP62: -8.5728135 | AQ62: -2.264420517
A63: 0 | B63: 42 | C63: 0.42 | D63: =(Alfa1*SIN(miia*C63)-Alfa2*SIN(miib*C63)) -> -60.6198718 | E63: =-(Alfa1*COS(miia*C63)-Alfa2*COS(miib*C63)) -> -34.99890405 | F63: =(miia*Alfa1*COS(miia*C63)-miib*Alfa2*COS(miib*C63)) -> 3.40323276 | G63: =miia*Alfa1*SIN(miia*C63)-miib*Alfa2*SIN(miib*C63) -> 1.952161345 | K63: 0.3141592654 | L63: -174.3380625 | M63: 4.215745316 | N63: =N62+dfi -> 0.3141592654 | O63: =Aktina*COS(N63) -> 66.57395614 | P63: =Aktina*(SIN(N63)) -> 21.63118961 | Q63: 0 | R63: 42 | S63: 0.42 | T63: 60.41611382 | U63: -35.33423164 | AO63: 2.953097094 | AP63: -7.877774255 | AQ63: 0.8450063216
A64: 0 | B64: 43 | C64: 0.43 | D64: =(Alfa1*SIN(miia*C64)-Alfa2*SIN(miib*C64)) -> -60.43248209 | E64: =-(Alfa1*COS(miia*C64)-Alfa2*COS(miib*C64)) -> -34.8953384 | F64: =(miia*Alfa1*COS(miia*C64)-miib*Alfa2*COS(miib*C64)) -> 34.19698179 | G64: =miia*Alfa1*SIN(miia*C64)-miib*Alfa2*SIN(miib*C64) -> 18.49566739 | K64: 0.3926990817 | L64: -172.289395 | M64: -1.337410893 | N64: =N63+dfi -> 0.3769911184 | O64: =Aktina*COS(N64) -> 65.08435401 | P64: =Aktina*(SIN(N64)) -> 25.76871869 | Q64: 0 | R64: 43 | S64: 0.43 | T64: 57.76970621 | U64: -37.78317268 | AO64: 3.015928947 | AP64: -7.379349038 | AQ64: 3.991939292
A65: 0 | B65: 44 | C65: 0.44 | D65: =(Alfa1*SIN(miia*C65)-Alfa2*SIN(miib*C65)) -> -59.93388057 | E65: =-(Alfa1*COS(miia*C65)-Alfa2*COS(miib*C65)) -> -34.63448577 | F65: =(miia*Alfa1*COS(miia*C65)-miib*Alfa2*COS(miib*C65)) -> 65.60592436 | G65: =miia*Alfa1*SIN(miia*C65)-miib*Alfa2*SIN(miib*C65) -> 33.39132302 | K65: 0.471238898 | L65: -169.8113472 | M65: -6.712711976 | N65: =N64+dfi -> 0.4398229715 | O65: =Aktina*COS(N65) -> 63.33789367 | P65: =Aktina*(SIN(N65)) -> 29.80455041 | Q65: 0 | R65: 44 | S65: 0.44 | T65: 53.77817434 | U65: -39.14490594 | AO65: 3.078760801 | AP65: -7.079504905 | AQ65: 7.163958886
A66: 0 | B66: 45 | C66: 0.45 | D66: =(Alfa1*SIN(miia*C66)-Alfa2*SIN(miib*C66)) -> -59.1191186 | E66: =-(Alfa1*COS(miia*C66)-Alfa2*COS(miib*C66)) -> -34.23333771 | F66: =(miia*Alfa1*COS(miia*C66)-miib*Alfa2*COS(miib*C66)) -> 97.38815877 | G66: =miia*Alfa1*SIN(miia*C66)-miib*Alfa2*SIN(miib*C66) -> 46.53994818 | K66: 0.5497787144 | L66: -166.9191972 | M66: -11.87701741 | N66: =N65+dfi -> 0.5026548246 | O66: =Aktina*COS(N66) -> 61.3414676 | P66: =Aktina*(SIN(N66)) -> 33.72275719 | Q66: 0 | R66: 45 | S66: 0.45 | T66: 48.6377011 | U66: -39.26741215 | AO66: 3.141592654 | AP66: -6.979425204 | AQ66: 10.34854659
A67: 0 | B67: 46 | C67: 0.46 | D67: =(Alfa1*SIN(miia*C67)-Alfa2*SIN(miib*C67)) -> -57.98569999 | E67: =-(Alfa1*COS(miia*C67)-Alfa2*COS(miib*C67)) -> -33.70977329 | F67: =(miia*Alfa1*COS(miia*C67)-miib*Alfa2*COS(miib*C67)) -> 129.295482 | G67: =miia*Alfa1*SIN(miia*C67)-miib*Alfa2*SIN(miib*C67) -> 57.86335134 | K67: 0.6283185307 | L67: -163.630776 | M67: -16.79848755 | N67: =N66+dfi -> 0.5654866776 | O67: =Aktina*COS(N67) -> 59.10295479 | P67: =Aktina*(SIN(N67)) -> 37.50787565 | Q67: 0 | R67: 46 | S67: 0.46 | T67: 42.58033212 | U67: -38.04486519 | AO67: 3.204424507 | AP67: -7.079504905 | AQ67: 13.5331343
A68: 0 | B68: 47 | C68: 0.47 | D68: =(Alfa1*SIN(miia*C68)-Alfa2*SIN(miib*C68)) -> -56.53363247 | E68: =-(Alfa1*COS(miia*C68)-Alfa2*COS(miib*C68)) -> -33.08234573 | F68: =(miia*Alfa1*COS(miia*C68)-miib*Alfa2*COS(miib*C68)) -> 161.0756964 | G68: =miia*Alfa1*SIN(miia*C68)-miib*Alfa2*SIN(miib*C68) -> 67.30497778 | K68: 0.7068583471 | L68: -159.9663578 | M68: -21.44677988 | N68: =N67+dfi -> 0.6283185307 | O68: =Aktina*COS(N68) -> 56.63118961 | P68: =Aktina*(SIN(N68)) -> 41.14496766 | Q68: 0 | R68: 47 | S68: 0.47 | T68: 35.86445391 | U68: -35.42285969 | AO68: 3.26725636 | AP68: -7.379349038 | AQ68: 16.7051539
A69: 0 | B69: 48 | C69: 0.48 | D69: =(Alfa1*SIN(miia*C69)-Alfa2*SIN(miib*C69)) -> -54.76545597 | E69: =-(Alfa1*COS(miia*C69)-Alfa2*COS(miib*C69)) -> -32.37006378 | F69: =(miia*Alfa1*COS(miia*C69)-miib*Alfa2*COS(miib*C69)) -> 192.4749631 | G69: =miia*Alfa1*SIN(miia*C69)-miib*Alfa2*SIN(miib*C69) -> 74.83033327 | K69: 0.7853981634 | L69: -155.948535 | M69: -25.79323614 | N69: =N68+dfi -> 0.6911503838 | O69: =Aktina*COS(N69) -> 53.93592699 | P69: =Aktina*(SIN(N69)) -> 44.61967928 | Q69: 0 | R69: 48 | S69: 0.48 | T69: 28.76432397 | U69: -31.40161053 | AO69: 3.330088213 | AP69: -7.877774255 | AQ69: 19.85208687
A70: 0 | B70: 49 | C70: 0.49 | D70: =(Alfa1*SIN(miia*C70)-Alfa2*SIN(miib*C70)) -> -52.68624706 | E70: =-(Alfa1*COS(miia*C70)-Alfa2*COS(miib*C70)) -> -31.5921699 | F70: =(miia*Alfa1*COS(miia*C70)-miib*Alfa2*COS(miib*C70)) -> 223.2401788 | G70: =miia*Alfa1*SIN(miia*C70)-miib*Alfa2*SIN(miib*C70) -> 80.42717911 | K70: 0.8639379797 | L70: -151.6020787 | M70: -29.81105897 | N70: =N69+dfi -> 0.7539822369 | O70: =Aktina*COS(N70) -> 51.02780392 | P70: =Aktina*(SIN(N70)) -> 47.91829742 | Q70: 0 | R70: 49 | S70: 0.49 | T70: 21.55907192 | U70: -26.03698659 | AO70: 3.392920066 | AP70: -8.5728135 | AQ70: 22.9615137
A71: 0 | B71: 50 | C71: 0.5 | D71: =(Alfa1*SIN(miia*C71)-Alfa2*SIN(miib*C71)) -> -50.3035998 | E71: =-(Alfa1*COS(miia*C71)-Alfa2*COS(miib*C71)) -> -30.76791773 | F71: =(miia*Alfa1*COS(miia*C71)-miib*Alfa2*COS(miib*C71)) -> 253.1213536 | G71: =miia*Alfa1*SIN(miia*C71)-miib*Alfa2*SIN(miib*C71) -> 84.10549713 | K71: 0.9424777961 | L71: -146.9537864 | M71: -33.47547717 | N71: =N70+dfi -> 0.8168140899 | O71: =Aktina*COS(N71) -> 47.91829742 | P71: =Aktina*(SIN(N71)) -> 51.02780392 | Q71: 0 | R71: 50 | S71: 0.5 | T71: 14.52161073 | U71: -19.43932703 | AO71: 3.455751919 | AP71: -9.46172377 | AQ71: 26.02116292
A72: 0 | B72: 51 | C72: 0.51 | D72: =(Alfa1*SIN(miia*C72)-Alfa2*SIN(miib*C72)) -> -47.62758273 | E72: =-(Alfa1*COS(miia*C72)-Alfa2*COS(miib*C72)) -> -29.91635098 | F72: =(miia*Alfa1*COS(miia*C72)-miib*Alfa2*COS(miib*C72)) -> 281.8739649 | G72: =miia*Alfa1*SIN(miia*C72)-miib*Alfa2*SIN(miib*C72) -> 85.89722515 | K72: 1.021017612 | L72: -142.0323163 | M72: -36.76389838 | N72: =N71+dfi -> 0.879645943 | O72: =Aktina*COS(N72) -> 44.61967928 | P72: =Aktina*(SIN(N72)) -> 53.93592699 | Q72: 0 | R72: 51 | S72: 0.51 | T72: 7.907899816 | U72: -11.77007683 | AO72: 3.518583772 | AP72: -10.54099694 | AQ72: 29.01895949
A73: 0 | B73: 52 | C73: 0.52 | D73: =(Alfa1*SIN(miia*C73)-Alfa2*SIN(miib*C73)) -> -44.67067265 | E73: =-(Alfa1*COS(miia*C73)-Alfa2*COS(miib*C73)) -> -29.05608616 | F73: =(miia*Alfa1*COS(miia*C73)-miib*Alfa2*COS(miib*C73)) -> 309.2612658 | G73: =miia*Alfa1*SIN(miia*C73)-miib*Alfa2*SIN(miib*C73) -> 85.85576624 | K73: 1.099557429 | L73: -136.8680108 | M73: -39.65604839 | N73: =N72+dfi -> 0.9424777961 | O73: =Aktina*COS(N73) -> 41.14496766 | P73: =Aktina*(SIN(N73)) -> 56.63118961 | Q73: 0 | R73: 52 | S73: 0.52 | T73: 1.946986532 | U73: -3.236365514 | AO73: 3.581415625 | AP73: -11.80637362 | AQ73: 31.94307246
A74: 0 | B74: 53 | C74: 0.53 | D74: =(Alfa1*SIN(miia*C74)-Alfa2*SIN(miib*C74)) -> -41.44766558 | E74: =-(Alfa1*COS(miia*C74)-Alfa2*COS(miib*C74)) -> -28.2051013 | F74: =(miia*Alfa1*COS(miia*C74)-miib*Alfa2*COS(miib*C74)) -> 335.0565241 | G74: =miia*Alfa1*SIN(miia*C74)-miib*Alfa2*SIN(miib*C74) -> 84.05527688 | K74: 1.178097245 | L74: -131.4927097 | M74: -42.13409614 | N74: =N73+dfi -> 1.005309649 | O74: =Aktina*COS(N74) -> 37.50787565 | P74: =Aktina*(SIN(N74)) -> 59.10295479 | Q74: 0 | R74: 53 | S74: 0.53 | T74: -3.167779279 | U74: 5.916265089 | AO74: 3.644247478 | AP74: -13.25285994 | AQ74: 34.7819617
A75: 0 | B75: 54 | C75: 0.54 | D75: =(Alfa1*SIN(miia*C75)-Alfa2*SIN(miib*C75)) -> -37.97556579 | E75: =-(Alfa1*COS(miia*C75)-Alfa2*COS(miib*C75)) -> -27.38053286 | F75: =(miia*Alfa1*COS(miia*C75)-miib*Alfa2*COS(miib*C75)) -> 359.0451709 | G75: =miia*Alfa1*SIN(miia*C75)-miib*Alfa2*SIN(miib*C75) -> 80.58974171 | K75: 1.256637061 | L75: -125.9395535 | M75: -44.18276362 | N75: =N74+dfi -> 1.068141502 | O75: =Aktina*COS(N75) -> 33.72275719 | P75: =Aktina*(SIN(N75)) -> 61.3414676 | Q75: 0 | R75: 54 | S75: 0.54 | T75: -7.286010988 | U75: 15.41270393 | AO75: 3.707079331 | AP75: -14.87474728 | AQ75: 37.52442342
A76: 0 | B76: 55 | C76: 0.55 | D76: =(Alfa1*SIN(miia*C76)-Alfa2*SIN(miib*C76)) -> -34.27345389 | E76: =-(Alfa1*COS(miia*C76)-Alfa2*COS(miib*C76)) -> -26.59848294 | F76: =(miia*Alfa1*COS(miia*C76)-miib*Alfa2*COS(miib*C76)) -> 381.0268357 | G76: =miia*Alfa1*SIN(miia*C76)-miib*Alfa2*SIN(miib*C76) -> 75.57184449 | K76: 1.335176878 | L76: -120.2427793 | M76: -45.78942013 | N76: =N75+dfi -> 1.130973355 | O76: =Aktina*COS(N76) -> 29.80455041 | P76: =Aktina*(SIN(N76)) -> 63.33789367 | Q76: 0 | R76: 55 | S76: 0.55 | T76: -10.30574583 | U76: 24.95834153 | AO76: 3.769911184 | AP76: -16.66563479 | AQ76: 40.15963437
A77: 0 | B77: 56 | C77: 0.56 | D77: =(Alfa1*SIN(miia*C77)-Alfa2*SIN(miib*C77)) -> -30.36233522 | E77: =-(Alfa1*COS(miia*C77)-Alfa2*COS(miib*C77)) -> -25.87383873 | F77: =(miia*Alfa1*COS(miia*C77)-miib*Alfa2*COS(miib*C77)) -> 400.8172511 | G77: =miia*Alfa1*SIN(miia*C77)-miib*Alfa2*SIN(miib*C77) -> 69.13164713 | K77: 1.413716694 | L77: -114.4375094 | M77: -46.9441601 | N77: =N76+dfi -> 1.193805208 | O77: =Aktina*COS(N77) -> 25.76871869 | P77: =Aktina*(SIN(N77)) -> 65.08435401 | Q77: 0 | R77: 56 | S77: 0.56 | T77: -12.17688819 | U77: 34.24997598 | AO77: 3.832743037 | AP77: -18.61845466 | AQ77: 42.67719457
A78: 0 | B78: 57 | C78: 0.57 | D78: =(Alfa1*SIN(miia*C78)-Alfa2*SIN(miib*C78)) -> -26.2649699 | E78: =-(Alfa1*COS(miia*C78)-Alfa2*COS(miib*C78)) -> -25.22010611 | F78: =(miia*Alfa1*COS(miia*C78)-miib*Alfa2*COS(miib*C78)) -> 418.2500052 | G78: =miia*Alfa1*SIN(miia*C78)-miib*Alfa2*SIN(miib*C78) -> 61.41509039 | K78: 1.49225651 | L78: -108.5595354 | M78: -47.63986417 | N78: =N77+dfi -> 1.256637061 | O78: =Aktina*COS(N78) -> 21.63118961 | P78: =Aktina*(SIN(N78)) -> 66.57395614 | Q78: 0 | R78: 57 | S78: 0.57 | T78: -12.90250441 | U78: 42.98712779 | AO78: 3.89557489 | AP78: -20.72549999 | AQ78: 45.06716837
A79: 0 | B79: 58 | C79: 0.58 | D79: =(Alfa1*SIN(miia*C79)-Alfa2*SIN(miib*C79)) -> -22.00568622 | E79: =-(Alfa1*COS(miia*C79)-Alfa2*COS(miib*C79)) -> -24.64925898 | F79: =(miia*Alfa1*COS(miia*C79)-miib*Alfa2*COS(miib*C79)) -> 433.1781258 | G79: =miia*Alfa1*SIN(miia*C79)-miib*Alfa2*SIN(miib*C79) -> 52.58233171 | K79: 1.570796327 | L79: -102.645097 | M79: -47.87224309 | N79: =N78+dfi -> 1.319468915 | O79: =Aktina*COS(N79) -> 17.4082921 | P79: =Aktina*(SIN(N79)) -> 67.80082128 | Q79: 0 | R79: 58 | S79: 0.58 | T79: -12.53792454 | U79: 50.88332013 | AO79: 3.958406744 | AP79: -22.97845525 | AQ79: 47.32012363
A80: 0 | B80: 59 | C80: 0.59 | D80: =(Alfa1*SIN(miia*C80)-Alfa2*SIN(miib*C80)) -> -17.61017906 | E80: =-(Alfa1*COS(miia*C80)-Alfa2*COS(miib*C80)) -> -24.17160609 | F80: =(miia*Alfa1*COS(miia*C80)-miib*Alfa2*COS(miib*C80)) -> 445.4754812 | G80: =miia*Alfa1*SIN(miia*C80)-miib*Alfa2*SIN(miib*C80) -> 42.80593741 | K80: 1.649336143 | L80: -96.73065849 | M80: -47.63986417 | N80: =N79+dfi -> 1.382300768 | O80: =Aktina*COS(N80) -> 13.11669202 | P80: =Aktina*(SIN(N80)) -> 68.76010755 | Q80: 0 | R80: 59 | S80: 0.59 | T80: -11.1876947 | U80: 57.67688184 | AO80: 4.021238597 | AP80: =FRX+F_CURV_R*COS(AO80) -> -25.36842905 | AQ80: =FRY+F_CURV_R*SIN(AO80) -> 49.42716897
A81: 0 | B81: 60 | C81: 0.6 | D81: =(Alfa1*SIN(miia*C81)-Alfa2*SIN(miib*C81)) -> -13.10529533 | E81: =-(Alfa1*COS(miia*C81)-Alfa2*COS(miib*C81)) -> -23.79567649 | F81: =(miia*Alfa1*COS(miia*C81)-miib*Alfa2*COS(miib*C81)) -> 455.0379828 | G81: =miia*Alfa1*SIN(miia*C81)-miib*Alfa2*SIN(miib*C81) -> 32.2689477 | K81: 1.727875959 | L81: -90.8526845 | M81: -46.9441601 | N81: =N80+dfi -> 1.445132621 | O81: =Aktina*COS(N81) -> 8.77332635 | P81: =Aktina*(SIN(N81)) -> 69.44802909 | Q81: 0 | R81: 60 | S81: 0.6 | T81: -9.000509693 | U81: 63.14084859 | AO81: 4.08407045 | AP81: -27.88598926 | AQ81: 51.37998884
A82: 0 | B82: 61 | C82: 0.61 | D82: =(Alfa1*SIN(miia*C82)-Alfa2*SIN(miib*C82)) -> -8.518808404 | E82: =-(Alfa1*COS(miia*C82)-Alfa2*COS(miib*C82)) -> -23.52812491 | F82: =(miia*Alfa1*COS(miia*C82)-miib*Alfa2*COS(miib*C82)) -> 461.784578 | G82: =miia*Alfa1*SIN(miia*C82)-miib*Alfa2*SIN(miib*C82) -> 21.16283448 | K82: 1.806415776 | L82: -85.04741466 | M82: -45.78942013 | N82: =N81+dfi -> 1.507964474 | O82: =Aktina*COS(N82) -> 4.395336367 | P82: =Aktina*(SIN(N82)) -> 69.86187099 | Q82: 0 | R82: 61 | S82: 0.61 | T82: -6.162337229 | U82: 67.09157289 | AO82: =AO81+2*PI()/100 -> 4.146902303 | AP82: -30.5212002 | AQ82: 53.17087635
A83: 0 | B83: 62 | C83: 0.62 | D83: =(Alfa1*SIN(miia*C83)-Alfa2*SIN(miib*C83)) -> -3.879183646 | E83: =-(Alfa1*COS(miia*C83)-Alfa2*COS(miib*C83)) -> -23.37365808 | F83: =(miia*Alfa1*COS(miia*C83)-miib*Alfa2*COS(miib*C83)) -> 465.6580244 | G83: =miia*Alfa1*SIN(miia*C83)-miib*Alfa2*SIN(miib*C83) -> 9.685372756 | K83: 1.884955592 | L83: -79.35064038 | M83: -44.18276362 | N83: =N82+dfi -> 1.570796327 | O83: =Aktina*COS(N83) -> -4.234134744e-14 | P83: =Aktina*(SIN(N83)) -> 70 | Q83: 0 | R83: 62 | S83: 0.62 | T83: -2.888017042 | U83: 69.39570398 | AO83: 4.209734156 | AP83: -33.26366192 | AQ83: 54.79276369
A84: 0 | B84: 63 | C84: 0.63 | D84: =(Alfa1*SIN(miia*C84)-Alfa2*SIN(miib*C84)) -> 0.7846625551 | E84: =-(Alfa1*COS(miia*C84)-Alfa2*COS(miib*C84)) -> -23.33498255 | F84: =(miia*Alfa1*COS(miia*C84)-miib*Alfa2*COS(miib*C84)) -> 466.6254355 | G84: =miia*Alfa1*SIN(miia*C84)-miib*Alfa2*SIN(miib*C84) -> -1.961552394 | K84: 1.963495408 | L84: -73.79748417 | M84: -42.13409614 | N84: =N83+dfi -> 1.63362818 | O84: =Aktina*COS(N84) -> -4.395336367 | P84: =Aktina*(SIN(N84)) -> 69.86187099 | Q84: 0 | R84: 63 | S84: 0.63 | T84: 0.5883201358 | U84: 69.97526277 | AO84: 4.272566009 | AP84: -36.10255117 | AQ84: 56.23925001
A85: 0 | B85: 64 | C85: 0.64 | D85: =(Alfa1*SIN(miia*C85)-Alfa2*SIN(miib*C85)) -> 5.44360814 | E85: =-(Alfa1*COS(miia*C85)-Alfa2*COS(miib*C85)) -> -23.41277477 | F85: =(miia*Alfa1*COS(miia*C85)-miib*Alfa2*COS(miib*C85)) -> 464.6785954 | G85: =miia*Alfa1*SIN(miia*C85)-miib*Alfa2*SIN(miib*C85) -> -13.574181 | K85: 2.042035225 | L85: -68.42218309 | M85: -39.65604839 | N85: =N84+dfi -> 1.696460033 | O85: =Aktina*COS(N85) -> -8.77332635 | P85: =Aktina*(SIN(N85)) -> 69.44802909 | Q85: 0 | R85: 64 | S85: 0.64 | T85: 4.023621709 | U85: 68.81061196 | AO85: 4.335397862 | AP85: -39.02666414 | AQ85: 57.50462668
A86: =IF(B86=$AC$1,1,0) -> 0 | B86: 65 | C86: =C85+dt -> 0.65 | D86: =(Alfa1*SIN(miia*C86)-Alfa2*SIN(miib*C86)) -> 10.06857267 | E86: =-(Alfa1*COS(miia*C86)-Alfa2*COS(miib*C86)) -> -23.60567362 | F86: =(miia*Alfa1*COS(miia*C86)-miib*Alfa2*COS(miib*C86)) -> 459.8340371 | G86: =miia*Alfa1*SIN(miia*C86)-miib*Alfa2*SIN(miib*C86) -> -24.9491325 | K86: 2.120575041 | L86: -63.25787765 | M86: -36.76389838 | N86: =N85+dfi -> 1.759291886 | O86: =Aktina*COS(N86) -> -13.11669202 | P86: =Aktina*(SIN(N86)) -> 68.76010755 | Q86: =IF(R86=$AC$1,1,0) -> 0 | R86: 65 | S86: =S85+dt -> 0.65 | T86: =IF(R86<MAX_TIME,Aktina*SIN(epsilon*S86)*COS(D*S86),Aktina*SIN(epsilon*MAX_TIME*dt)*COS(D*MAX_TIME*dt)) -> 7.176646706 | U86: =IF(R86<MAX_TIME,Aktina*COS(epsilon*S86)*COS(D*S86),Aktina*COS(epsilon*MAX_TIME*dt)*COS(D*MAX_TIME*dt)) -> 65.94120425 | AO86: 4.398229715 | AP86: -42.0244607 | AQ86: 58.58389986
A87: 0 | B87: =B86+1 -> 66 | C87: 0.66 | D87: =(Alfa1*SIN(miia*C87)-Alfa2*SIN(miib*C87)) -> 14.63076421 | E87: =-(Alfa1*COS(miia*C87)-Alfa2*COS(miib*C87)) -> -23.91029545 | F87: =(miia*Alfa1*COS(miia*C87)-miib*Alfa2*COS(miib*C87)) -> 452.1328844 | G87: =miia*Alfa1*SIN(miia*C87)-miib*Alfa2*SIN(miib*C87) -> -35.88565619 | K87: 2.199114858 | L87: -58.33640752 | M87: -33.47547717 | N87: =N86+dfi -> 1.822123739 | O87: =Aktina*COS(N87) -> -17.4082921 | P87: =Aktina*(SIN(N87)) -> 67.80082128 | Q87: 0 | R87: =R86+1 -> 66 | S87: 0.66 | T87: 9.818625292 | U87: 61.46407924 | AO87: 4.461061568 | AP87: -45.08410992 | AQ87: 59.47281013
A88: 0 | B88: 67 | C88: 0.67 | D88: =(Alfa1*SIN(miia*C88)-Alfa2*SIN(miib*C88)) -> 19.10192349 | E88: =-(Alfa1*COS(miia*C88)-Alfa2*COS(miib*C88)) -> -24.32127154 | F88: =(miia*Alfa1*COS(miia*C88)-miib*Alfa2*COS(miib*C88)) -> 441.6404596 | G88: =miia*Alfa1*SIN(miia*C88)-miib*Alfa2*SIN(miib*C88) -> -46.18785475 | K88: 2.277654674 | L88: -53.68811519 | M88: -29.81105897 | N88: =N87+dfi -> 1.884955592 | O88: =Aktina*COS(N88) -> -21.63118961 | P88: =Aktina*(SIN(N88)) -> 66.57395614 | Q88: 0 | R88: 67 | S88: 0.67 | T88: 11.74340893 | U88: 55.53016811 | AO88: 4.523893421 | AP88: -48.19353676 | AQ88: 60.16784937
A89: 0 | B89: 68 | C89: 0.68 | D89: =(Alfa1*SIN(miia*C89)-Alfa2*SIN(miib*C89)) -> 23.45456295 | E89: =-(Alfa1*COS(miia*C89)-Alfa2*COS(miib*C89)) -> -24.83130755 | F89: =(miia*Alfa1*COS(miia*C89)-miib*Alfa2*COS(miib*C89)) -> 428.4456594 | G89: =miia*Alfa1*SIN(miia*C89)-miib*Alfa2*SIN(miib*C89) -> -55.66685813 | K89: 2.35619449 | L89: -49.34165893 | M89: -25.79323614 | N89: =N88+dfi -> 1.947787445 | O89: =Aktina*COS(N89) -> -25.76871869 | P89: =Aktina*(SIN(N89)) -> 65.08435401 | Q89: 0 | R89: 68 | S89: 0.68 | T89: 12.77669623 | U89: 48.3385519 | AO89: 4.586725274 | AP89: -51.34046973 | AQ89: 60.66627459
A90: 0 | B90: 69 | C90: 0.69 | D90: =(Alfa1*SIN(miia*C90)-Alfa2*SIN(miib*C90)) -> 27.66219843 | E90: =-(Alfa1*COS(miia*C90)-Alfa2*COS(miib*C90)) -> -25.43126434 | F90: =(miia*Alfa1*COS(miia*C90)-miib*Alfa2*COS(miib*C90)) -> 412.6601068 | G90: =miia*Alfa1*SIN(miia*C90)-miib*Alfa2*SIN(miib*C90) -> -64.14292539 | K90: 2.434734307 | L90: -45.32383609 | M90: -21.44677988 | N90: =N89+dfi -> 2.010619298 | O90: =Aktina*COS(N90) -> -29.80455041 | P90: =Aktina*(SIN(N90)) -> 63.33789367 | Q90: 0 | R90: 69 | S90: 0.69 | T90: 12.78395668 | U90: 40.12889923 | AO90: 4.649557127 | AP90: -54.51248933 | AQ90: 60.96611872
A91: 0 | B91: 70 | C91: 0.7 | D91: =(Alfa1*SIN(miia*C91)-Alfa2*SIN(miib*C91)) -> 31.69957126 | E91: =-(Alfa1*COS(miia*C91)-Alfa2*COS(miib*C91)) -> -26.11025947 | F91: =(miia*Alfa1*COS(miia*C91)-miib*Alfa2*COS(miib*C91)) -> 394.4170864 | G91: =miia*Alfa1*SIN(miia*C91)-miib*Alfa2*SIN(miib*C91) -> -71.44745324 | K91: 2.513274123 | L91: =RX+R_KAMP*COS(K91) -> -41.65941789 | M91: =RY+R_KAMP*SIN(K91) -> -16.79848755 | N91: =N90+dfi -> 2.073451151 | O91: =Aktina*COS(N91) -> -33.72275719 | P91: =Aktina*(SIN(N91)) -> 61.3414676 | Q91: 0 | R91: 70 | S91: 0.7 | T91: 11.67672649 | U91: 31.17238154 | AO91: 4.71238898 | AP91: -57.69707703 | AQ91: 61.06619842
A92: 0 | B92: 71 | C92: 0.71 | D92: =(Alfa1*SIN(miia*C92)-Alfa2*SIN(miib*C92)) -> 35.54285874 | E92: =-(Alfa1*COS(miia*C92)-Alfa2*COS(miib*C92)) -> -26.85578806 | F92: =(miia*Alfa1*COS(miia*C92)-miib*Alfa2*COS(miib*C92)) -> 373.8702736 | G92: =miia*Alfa1*SIN(miia*C92)-miib*Alfa2*SIN(miib*C92) -> -77.42487033 | K92: 2.591813939 | L92: -38.37099668 | M92: -11.87701741 | N92: =N91+dfi -> 2.136283004 | O92: =Aktina*COS(N92) -> -37.50787565 | P92: =Aktina*(SIN(N92)) -> 59.10295479 | Q92: 0 | R92: 71 | S92: 0.71 | T92: 9.417016441 | U92: 21.76142302 | AO92: 4.775220833 | AP92: -60.88166474 | AQ92: 60.96611872
A93: 0 | B93: 72 | C93: 0.72 | D93: =(Alfa1*SIN(miia*C93)-Alfa2*SIN(miib*C93)) -> 39.16987084 | E93: =-(Alfa1*COS(miia*C93)-Alfa2*COS(miib*C93)) -> -27.65386209 | F93: =(miia*Alfa1*COS(miia*C93)-miib*Alfa2*COS(miib*C93)) -> 351.1922705 | G93: =miia*Alfa1*SIN(miia*C93)-miib*Alfa2*SIN(miib*C93) -> -81.93439813 | K93: 2.670353756 | L93: -35.47884667 | M93: -6.712711976 | N93: =N92+dfi -> 2.199114858 | O93: =Aktina*COS(N93) -> -41.14496766 | P93: =Aktina*(SIN(N93)) -> 56.63118961 | Q93: 0 | R93: 72 | S93: 0.72 | T93: 6.019646945 | U93: 12.19868854 | AO93: 4.838052687 | AP93: -64.05368434 | AQ93: 60.66627459
A94: 0 | B94: 73 | C94: 0.73 | D94: =(Alfa1*SIN(miia*C94)-Alfa2*SIN(miib*C94)) -> 42.56023142 | E94: =-(Alfa1*COS(miia*C94)-Alfa2*COS(miib*C94)) -> -28.48916649 | F94: =(miia*Alfa1*COS(miia*C94)-miib*Alfa2*COS(miib*C94)) -> 326.5729635 | G94: =miia*Alfa1*SIN(miia*C94)-miib*Alfa2*SIN(miib*C94) -> -84.85166013 | K94: 2.748893572 | L94: -33.00079893 | M94: -1.337410893 | N94: =N93+dfi -> 2.261946711 | O94: =Aktina*COS(N94) -> -44.61967928 | P94: =Aktina*(SIN(N94)) -> 53.93592699 | Q94: 0 | R94: 73 | S94: 0.73 | T94: 1.552409303 | U94: 2.785741909 | AO94: 4.90088454 | AP94: -67.20061731 | AQ94: 60.16784937
A95: 0 | B95: 74 | C95: 0.74 | D95: =(Alfa1*SIN(miia*C95)-Alfa2*SIN(miib*C95)) -> 45.69554214 | E95: =-(Alfa1*COS(miia*C95)-Alfa2*COS(miib*C95)) -> -29.3452305 | F95: =(miia*Alfa1*COS(miia*C95)-miib*Alfa2*COS(miib*C95)) -> 300.2177172 | G95: =miia*Alfa1*SIN(miia*C95)-miib*Alfa2*SIN(miib*C95) -> -86.07012281 | K95: 2.827433388 | L95: -30.95213145 | M95: 4.215745316 | N95: =N94+dfi -> 2.324778564 | O95: =Aktina*COS(N95) -> -47.91829742 | P95: =Aktina*(SIN(N95)) -> 51.02780392 | Q95: 0 | R95: 74 | S95: 0.74 | T95: -3.865960995 | U95: -6.188180438 | AO95: 4.963716393 | AP95: -70.31004414 | AQ95: 59.47281013
A96: 0 | B96: 75 | C96: 0.75 | D96: =(Alfa1*SIN(miia*C96)-Alfa2*SIN(miib*C96)) -> 48.55952767 | E96: =-(Alfa1*COS(miia*C96)-Alfa2*COS(miib*C96)) -> -30.20461259 | F96: =(miia*Alfa1*COS(miia*C96)-miib*Alfa2*COS(miib*C96)) -> 272.3454242 | G96: =miia*Alfa1*SIN(miia*C96)-miib*Alfa2*SIN(miib*C96) -> -85.50235354 | K96: 2.905973205 | L96: -29.34547493 | M96: 9.912519596 | N96: =N95+dfi -> 2.387610417 | O96: =Aktina*COS(N96) -> -51.02780392 | P96: =Aktina*(SIN(N96)) -> 47.91829742 | Q96: 0 | R96: 75 | S96: 0.75 | T96: -10.06992478 | U96: -14.45684083 | AO96: 5.026548246 | AP96: -73.36969336 | AQ96: 58.58389986
A97: 0 | B97: 76 | C97: 0.76 | D97: =(Alfa1*SIN(miia*C97)-Alfa2*SIN(miib*C97)) -> 51.13816059 | E97: =-(Alfa1*COS(miia*C97)-Alfa2*COS(miib*C97)) -> -31.0490969 | F97: =(miia*Alfa1*COS(miia*C97)-miib*Alfa2*COS(miib*C97)) -> 243.1864294 | G97: =miia*Alfa1*SIN(miia*C97)-miib*Alfa2*SIN(miib*C97) -> -83.08108225 | K97: 2.984513021 | L97: -28.19073497 | M97: 15.71778944 | N97: =N96+dfi -> 2.45044227 | O97: =Aktina*COS(N97) -> -53.93592699 | P97: =Aktina*(SIN(N97)) -> 44.61967928 | Q97: 0 | R97: 76 | S97: 0.76 | T97: -16.85323441 | U97: -21.78669992 | AO97: 5.089380099 | AP97: -76.36748993 | AQ97: 57.50462668
A98: 0 | B98: 77 | C98: 0.77 | D98: =(Alfa1*SIN(miia*C98)-Alfa2*SIN(miib*C98)) -> 53.41976519 | E98: =-(Alfa1*COS(miia*C98)-Alfa2*COS(miib*C98)) -> -31.85989931 | F98: =(miia*Alfa1*COS(miia*C98)-miib*Alfa2*COS(miib*C98)) -> 212.9803483 | G98: =miia*Alfa1*SIN(miia*C98)-miib*Alfa2*SIN(miib*C98) -> -78.76005592 | K98: 3.063052837 | L98: -27.4950309 | M98: 21.59576343 | N98: =N97+dfi -> 2.513274123 | O98: =Aktina*COS(N98) -> -56.63118961 | P98: =Aktina*(SIN(N98)) -> 41.14496766 | Q98: 0 | R98: 77 | S98: 0.77 | T98: -23.9767457 | U98: -27.98526692 | AO98: 5.152211952 | AP98: -79.2916029 | AQ98: 56.23925001
A99: 0 | B99: 78 | C99: 0.78 | D99: =(Alfa1*SIN(miia*C99)-Alfa2*SIN(miib*C99)) -> 55.39509882 | E99: =-(Alfa1*COS(miia*C99)-Alfa2*COS(miib*C99)) -> -32.61788105 | F99: =(miia*Alfa1*COS(miia*C99)-miib*Alfa2*COS(miib*C99)) -> 181.9738024 | G99: =miia*Alfa1*SIN(miia*C99)-miib*Alfa2*SIN(miib*C99) -> -72.51467678 | K99: 3.141592654 | L99: -27.26265198 | M99: 27.51020189 | N99: =N98+dfi -> 2.576105976 | O99: =Aktina*COS(N99) -> -59.10295479 | P99: =Aktina*(SIN(N99)) -> 37.50787565 | Q99: 0 | R99: 78 | S99: 0.78 | T99: -31.17763926 | U99: -32.90777716 | AO99: 5.215043805 | AP99: -82.13049214 | AQ99: 54.79276369
A100: 0 | B100: 79 | C100: 0.79 | D100: =(Alfa1*SIN(miia*C100)-Alfa2*SIN(miib*C100)) -> 57.05741043 | E100: =-(Alfa1*COS(miia*C100)-Alfa2*COS(miib*C100)) -> -33.30376744 | F100: =(miia*Alfa1*COS(miia*C100)-miib*Alfa2*COS(miib*C100)) -> 150.4180932 | G100: =miia*Alfa1*SIN(miia*C100)-miib*Alfa2*SIN(miib*C100) -> -64.34241748 | K100: 3.22013247 | L100: -27.4950309 | M100: 33.42464036 | N100: =N99+dfi -> 2.638937829 | O100: =Aktina*COS(N100) -> -61.3414676 | P100: =Aktina*(SIN(N100)) -> 33.72275719 | Q100: 0 | R100: 79 | S100: 0.79 | T100: -38.17968672 | U100: -36.46194071 | AO100: 5.277875658 | AP100: -84.87295386 | AQ100: 53.17087635
A101: 0 | B101: 80 | C101: 0.8 | D101: =(Alfa1*SIN(miia*C101)-Alfa2*SIN(miib*C101)) -> 58.40247554 | E101: =-(Alfa1*COS(miia*C101)-Alfa2*COS(miib*C101)) -> -33.89836976 | F101: =(miia*Alfa1*COS(miia*C101)-miib*Alfa2*COS(miib*C101)) -> 118.566837 | G101: =miia*Alfa1*SIN(miia*C101)-miib*Alfa2*SIN(miib*C101) -> -54.26300864 | K101: 3.298672286 | L101: -28.19073497 | M101: 39.30261435 | N101: =N100+dfi -> 2.701769682 | O101: =Aktina*COS(N101) -> -63.33789367 | P101: =Aktina*(SIN(N101)) -> 29.80455041 | Q101: 0 | R101: 80 | S101: 0.8 | T101: -44.70415472 | U101: -38.61058299 | AO101: 5.340707511 | AP101: -87.50816481 | AQ101: 51.37998884
A102: 0 | B102: 81 | C102: 0.81 | D102: =(Alfa1*SIN(miia*C102)-Alfa2*SIN(miib*C102)) -> 59.42860746 | E102: =-(Alfa1*COS(miia*C102)-Alfa2*COS(miib*C102)) -> -34.38280783 | F102: =(miia*Alfa1*COS(miia*C102)-miib*Alfa2*COS(miib*C102)) -> 86.67358532 | G102: =miia*Alfa1*SIN(miia*C102)-miib*Alfa2*SIN(miib*C102) -> -42.3183965 | K102: 3.377212103 | L102: -29.34547493 | M102: 45.10788419 | N102: =N101+dfi -> 2.764601535 | O102: =Aktina*COS(N102) -> -65.08435401 | P102: =Aktina*(SIN(N102)) -> 25.76871869 | Q102: 0 | R102: 81 | S102: 0.81 | T102: -50.4809129 | U102: -39.37208254 | AO102: 5.403539364 | AP102: -90.02572501 | AQ102: 49.42716897
A103: 0 | B103: 82 | C103: 0.82 | D103: =(Alfa1*SIN(miia*C103)-Alfa2*SIN(miib*C103)) -> 60.13664484 | E103: =-(Alfa1*COS(miia*C103)-Alfa2*COS(miib*C103)) -> -34.73873093 | F103: =(miia*Alfa1*COS(miia*C103)-miib*Alfa2*COS(miib*C103)) -> 54.98945329 | G103: =miia*Alfa1*SIN(miia*C103)-miib*Alfa2*SIN(miib*C103) -> -28.57247064 | K103: 3.455751919 | L103: -30.95213145 | M103: 50.80465847 | N103: =N102+dfi -> 2.827433388 | O103: =Aktina*COS(N103) -> -66.57395614 | P103: =Aktina*(SIN(N103)) -> 21.63118961 | Q103: 0 | R103: 82 | S103: 0.82 | T103: -55.25930337 | U103: -38.81859875 | AO103: 5.466371217 | AP103: -92.41569881 | AQ103: 47.32012363
A104: 0 | B104: 83 | C104: 0.83 | D104: =(Alfa1*SIN(miia*C104)-Alfa2*SIN(miib*C104)) -> 60.5299155 | E104: =-(Alfa1*COS(miia*C104)-Alfa2*COS(miib*C104)) -> -34.948535 | F104: =(miia*Alfa1*COS(miia*C104)-miib*Alfa2*COS(miib*C104)) -> 23.76077925 | G104: =miia*Alfa1*SIN(miia*C104)-miib*Alfa2*SIN(miib*C104) -> -13.11056429 | K104: 3.534291735 | L104: -33.00079893 | M104: 56.35781468 | N104: =N103+dfi -> 2.890265241 | O104: =Aktina*COS(N104) -> -67.80082128 | P104: =Aktina*(SIN(N104)) -> 17.4082921 | Q104: 0 | R104: 83 | S104: 0.83 | T104: -58.81833693 | U104: -37.07217081 | AO104: 5.52920307 | AP104: -94.66865407 | AQ104: 45.06716837
A105: 0 | B105: 84 | C105: 0.84 | D105: =(Alfa1*SIN(miia*C105)-Alfa2*SIN(miib*C105)) -> 60.61417723 | E105: =-(Alfa1*COS(miia*C105)-Alfa2*COS(miib*C105)) -> -34.99557359 | F105: =(miia*Alfa1*COS(miia*C105)-miib*Alfa2*COS(miib*C105)) -> -6.773160981 | G105: =miia*Alfa1*SIN(miia*C105)-miib*Alfa2*SIN(miib*C105) -> 3.961268343 | K105: 3.612831552 | L105: -35.47884667 | M105: 61.73311576 | N105: =N104+dfi -> 2.953097094 | O105: =Aktina*COS(N105) -> -68.76010755 | P105: =Aktina*(SIN(N105)) -> 13.11669202 | Q105: 0 | R105: 84 | S105: 0.84 | T105: -60.97580796 | U105: -34.29885345 | AO105: 5.592034923 | AP105: -96.77569941 | AQ105: 42.67719457
A106: 0 | B106: 85 | C106: 0.85 | D106: =(Alfa1*SIN(miia*C106)-Alfa2*SIN(miib*C106)) -> 60.39753601 | E106: =-(Alfa1*COS(miia*C106)-Alfa2*COS(miib*C106)) -> -34.86436059 | F106: =(miia*Alfa1*COS(miia*C106)-miib*Alfa2*COS(miib*C106)) -> -36.38236298 | G106: =miia*Alfa1*SIN(miia*C106)-miib*Alfa2*SIN(miib*C106) -> 22.51719064 | K106: 3.691371368 | L106: -38.37099668 | M106: 66.8974212 | N106: =N105+dfi -> 3.015928947 | O106: =Aktina*COS(N106) -> -69.44802909 | P106: =Aktina*(SIN(N106)) -> 8.77332635 | Q106: 0 | R106: 85 | S106: 0.85 | T106: -61.59596116 | U106: -30.70113343 | AO106: 5.654866776 | AP106: -98.72851928 | AQ106: 40.15963437
A107: 0 | B107: 86 | C107: 0.86 | D107: =(Alfa1*SIN(miia*C107)-Alfa2*SIN(miib*C107)) -> 59.89034267 | E107: =-(Alfa1*COS(miia*C107)-Alfa2*COS(miib*C107)) -> -34.54076247 | F107: =(miia*Alfa1*COS(miia*C107)-miib*Alfa2*COS(miib*C107)) -> -64.84820422 | G107: =miia*Alfa1*SIN(miia*C107)-miib*Alfa2*SIN(miib*C107) -> 42.41272907 | K107: 3.769911184 | L107: -41.65941789 | M107: 71.81889133 | N107: =N106+dfi -> 3.078760801 | O107: =Aktina*COS(N107) -> -69.86187099 | P107: =Aktina*(SIN(N107)) -> 4.395336367 | Q107: 0 | R107: 86 | S107: 0.86 | T107: -60.59540074 | U107: -26.50893847 | AO107: 5.71769863 | AP107: -100.5194068 | AQ107: 37.52442342
A108: 0 | B108: 87 | C108: 0.87 | D108: =(Alfa1*SIN(miia*C108)-Alfa2*SIN(miib*C108)) -> 59.10506899 | E108: =-(Alfa1*COS(miia*C108)-Alfa2*COS(miib*C108)) -> -34.0121781 | F108: =(miia*Alfa1*COS(miia*C108)-miib*Alfa2*COS(miib*C108)) -> -91.96543546 | G108: =miia*Alfa1*SIN(miia*C108)-miib*Alfa2*SIN(miib*C108) -> 63.48611441 | K108: 3.848451001 | L108: -45.32383609 | M108: 76.46718366 | N108: =N107+dfi -> 3.141592654 | O108: =Aktina*COS(N108) -> -70 | P108: =Aktina*(SIN(N108)) -> -1.77941429e-13 | Q108: 0 | R108: 87 | S108: 0.87 | T108: -57.94700137 | U108: -21.9696066 | AO108: 5.780530483 | AP108: -102.1412941 | AQ108: 34.7819617
A109: 0 | B109: 88 | C109: 0.88 | D109: =(Alfa1*SIN(miia*C109)-Alfa2*SIN(miib*C109)) -> 58.05616462 | E109: =-(Alfa1*COS(miia*C109)-Alfa2*COS(miib*C109)) -> -33.26770426 | F109: =(miia*Alfa1*COS(miia*C109)-miib*Alfa2*COS(miib*C109)) -> -117.5440336 | G109: =miia*Alfa1*SIN(miia*C109)-miib*Alfa2*SIN(miib*C109) -> 85.55980557 | K109: 3.926990817 | L109: -49.34165893 | M109: 80.81363992 | N109: =N108+dfi -> 3.204424507 | O109: =Aktina*COS(N109) -> -69.86187099 | P109: =Aktina*(SIN(N109)) -> -4.395336367 | Q109: 0 | R109: 88 | S109: 0.88 | T109: -53.68165918 | U109: -17.33722407 | AO109: 5.843362336 | AP109: -103.5877804 | AQ109: 31.94307246
A110: 0 | B110: 89 | C110: 0.89 | D110: =(Alfa1*SIN(miia*C110)-Alfa2*SIN(miib*C110)) -> 56.75989615 | E110: =-(Alfa1*COS(miia*C110)-Alfa2*COS(miib*C110)) -> -32.29828501 | F110: =(miia*Alfa1*COS(miia*C110)-miib*Alfa2*COS(miib*C110)) -> -141.4108982 | G110: =miia*Alfa1*SIN(miia*C110)-miib*Alfa2*SIN(miib*C110) -> 108.442181 | K110: 4.005530633 | L110: -53.68811519 | M110: 84.83146276 | N110: =N109+dfi -> 3.26725636 | O110: =Aktina*COS(N110) -> -69.44802909 | P110: =Aktina*(SIN(N110)) -> -8.77332635 | Q110: 0 | R110: 89 | S110: 0.89 | T110: -47.88780626 | U110: -12.86176523 | AO110: 5.906194189 | AP110: -104.8531571 | AQ110: 29.01895949
A111: 0 | B111: 90 | C111: 0.9 | D111: =(Alfa1*SIN(miia*C111)-Alfa2*SIN(miib*C111)) -> 55.23417015 | E111: =-(Alfa1*COS(miia*C111)-Alfa2*COS(miib*C111)) -> -31.09684342 | F111: =(miia*Alfa1*COS(miia*C111)-miib*Alfa2*COS(miib*C111)) -> -163.4113746 | G111: =miia*Alfa1*SIN(miia*C111)-miib*Alfa2*SIN(miib*C111) -> 131.9293809 | K111: 4.08407045 | L111: -58.33640752 | M111: 88.49588096 | N111: =N110+dfi -> 3.330088213 | O111: =Aktina*COS(N111) -> -68.76010755 | P111: =Aktina*(SIN(N111)) -> -13.11669202 | Q111: 0 | R111: 90 | S111: 0.9 | T111: -40.70870062 | U111: -8.778474377 | AO111: 5.969026042 | AP111: -105.9324303 | AQ111: 26.02116292
A112: 0 | B112: 91 | C112: 0.91 | D112: =(Alfa1*SIN(miia*C112)-Alfa2*SIN(miib*C112)) -> 53.49834185 | E112: =-(Alfa1*COS(miia*C112)-Alfa2*COS(miib*C112)) -> -29.65839415 | F112: =(miia*Alfa1*COS(miia*C112)-miib*Alfa2*COS(miib*C112)) -> -183.41059 | G112: =miia*Alfa1*SIN(miia*C112)-miib*Alfa2*SIN(miib*C112) -> 155.8072824 | K112: 4.162610266 | L112: -63.25787765 | M112: 91.78430217 | N112: =N111+dfi -> 3.392920066 | O112: =Aktina*COS(N112) -> -67.80082128 | P112: =Aktina*(SIN(N112)) -> -17.4082921 | Q112: 0 | R112: 91 | S112: 0.91 | T112: -32.33759147 | U112: -5.297919614 | AO112: 6.031857895 | AP112: =FRX+F_CURV_R*COS(AO112) -> -106.8213406 | AQ112: 22.9615137
A113: 0 | B113: 92 | C113: 0.92 | D113: =(Alfa1*SIN(miia*C113)-Alfa2*SIN(miib*C113)) -> 51.5730115 | E113: =-(Alfa1*COS(miia*C113)-Alfa2*COS(miib*C113)) -> -27.98013576 | F113: =(miia*Alfa1*COS(miia*C113)-miib*Alfa2*COS(miib*C113)) -> -201.2945887 | G113: =miia*Alfa1*SIN(miia*C113)-miib*Alfa2*SIN(miib*C113) -> 179.8535876 | K113: 4.241150082 | L113: -68.42218309 | M113: 94.67645218 | N113: =N112+dfi -> 3.455751919 | O113: =Aktina*COS(N113) -> -66.57395614 | P113: =Aktina*(SIN(N113)) -> -21.63118961 | Q113: 0 | R113: 92 | S113: 0.92 | T113: -23.01094377 | U113: -2.597120716 | AO113: 6.094689748 | AP113: =FRX+F_CURV_R*COS(AO113) -> -107.5163798 | AQ113: 19.85208687
A114: 0 | B114: 93 | C114: 0.93 | D114: =(Alfa1*SIN(miia*C114)-Alfa2*SIN(miib*C114)) -> 49.47981036 | E114: =-(Alfa1*COS(miia*C114)-Alfa2*COS(miib*C114)) -> -26.06152161 | F114: =(miia*Alfa1*COS(miia*C114)-miib*Alfa2*COS(miib*C114)) -> -216.9712559 | G114: =miia*Alfa1*SIN(miia*C114)-miib*Alfa2*SIN(miib*C114) -> 203.8400036 | K114: 4.319689899 | L114: -73.79748417 | M114: 97.15449992 | N114: =N113+dfi -> 3.518583772 | O114: =Aktina*COS(N114) -> -65.08435401 | P114: =Aktina*(SIN(N114)) -> -25.76871869 | Q114: 0 | R114: 93 | S114: 0.93 | T114: -12.99998298 | U114: -0.812109638 | AO114: 6.157521601 | AP114: =FRX+F_CURV_R*COS(AO114) -> -108.014805 | AQ114: 16.7051539
A115: 0 | B115: 94 | C115: 0.94 | D115: =(Alfa1*SIN(miia*C115)-Alfa2*SIN(miib*C115)) -> 47.24117861 | E115: =-(Alfa1*COS(miia*C115)-Alfa2*COS(miib*C115)) -> -23.90430861 | F115: =(miia*Alfa1*COS(miia*C115)-miib*Alfa2*COS(miib*C115)) -> -230.3710217 | G115: =miia*Alfa1*SIN(miia*C115)-miib*Alfa2*SIN(miib*C115) -> 227.5344942 | K115: 4.398229715 | L115: -79.35064038 | M115: 99.2031674 | N115: =N114+dfi -> 3.581415625 | O115: =Aktina*COS(N115) -> -63.33789367 | P115: =Aktina*(SIN(N115)) -> -29.80455041 | Q115: 0 | R115: 94 | S115: 0.94 | T115: -2.600887322 | U115: -0.03222399068 | AO115: 6.220353454 | AP115: =FRX+F_CURV_R*COS(AO115) -> -108.3146492 | AQ115: 13.5331343
A116: 0 | B116: 95 | C116: 0.95 | D116: =(Alfa1*SIN(miia*C116)-Alfa2*SIN(miib*C116)) -> 44.88013734 | E116: =-(Alfa1*COS(miia*C116)-Alfa2*COS(miib*C116)) -> -21.51258318 | F116: =(miia*Alfa1*COS(miia*C116)-miib*Alfa2*COS(miib*C116)) -> -241.4473388 | G116: =miia*Alfa1*SIN(miia*C116)-miib*Alfa2*SIN(miib*C116) -> 250.7035789 | K116: 4.476769531 | L116: -85.04741466 | M116: 100.8098239 | N116: =N115+dfi -> 3.644247478 | O116: =Aktina*COS(N116) -> -61.3414676 | P116: =Aktina*(SIN(N116)) -> -33.72275719 | Q116: 0 | R116: 95 | S116: 0.95 | T116: 7.875991554 | U116: -0.2963638303 | AO116: 6.283185307 | AP116: =FRX+F_CURV_R*COS(AO116) -> -108.4147289 | AQ116: 10.34854659
A117: 0 | B117: 96 | C117: 0.96 | D117: =(Alfa1*SIN(miia*C117)-Alfa2*SIN(miib*C117)) -> 42.42005685 | E117: =-(Alfa1*COS(miia*C117)-Alfa2*COS(miib*C117)) -> -18.89276407 | F117: =(miia*Alfa1*COS(miia*C117)-miib*Alfa2*COS(miib*C117)) -> -250.1769292 | G117: =miia*Alfa1*SIN(miia*C117)-miib*Alfa2*SIN(miib*C117) -> 273.1146577 | K117: 4.555309348 | L117: -90.8526845 | M117: 101.9645639 | N117: =N116+dfi -> 3.707079331 | O117: =Aktina*COS(N117) -> -59.10295479 | P117: =Aktina*(SIN(N117)) -> -37.50787565 | Q117: 0 | R117: 96 | S117: 0.96 | T117: 18.11745985 | U117: -1.591362818
A118: 0 | B118: 97 | C118: 0.97 | D118: =(Alfa1*SIN(miia*C118)-Alfa2*SIN(miib*C118)) -> 39.88442373 | E118: =-(Alfa1*COS(miia*C118)-Alfa2*COS(miib*C118)) -> -16.05358196 | F118: =(miia*Alfa1*COS(miia*C118)-miib*Alfa2*COS(miib*C118)) -> -256.5597981 | G118: =miia*Alfa1*SIN(miia*C118)-miib*Alfa2*SIN(miib*C118) -> 294.5383379 | K118: 4.633849164 | L118: -96.73065849 | M118: 102.660268 | N118: =N117+dfi -> 3.769911184 | O118: =Aktina*COS(N118) -> -56.63118961 | P118: =Aktina*(SIN(N118)) -> -41.14496766 | Q118: 0 | R118: 97 | S118: 0.97 | T118: 27.8189237 | U118: -3.852539459
A119: 0 | B119: 98 | C119: 0.98 | D119: =(Alfa1*SIN(miia*C119)-Alfa2*SIN(miib*C119)) -> 37.29660891 | E119: =-(Alfa1*COS(miia*C119)-Alfa2*COS(miib*C119)) -> -13.00603578 | F119: =(miia*Alfa1*COS(miia*C119)-miib*Alfa2*COS(miib*C119)) -> -260.6190164 | G119: =miia*Alfa1*SIN(miia*C119)-miib*Alfa2*SIN(miib*C119) -> 314.7507398 | K119: 4.71238898 | L119: -102.645097 | M119: 102.8926469 | N119: =N118+dfi -> 3.832743037 | O119: =Aktina*COS(N119) -> -53.93592699 | P119: =Aktina*(SIN(N119)) -> -44.61967928 | Q119: 0 | R119: 98 | S119: 0.98 | T119: 36.69549623 | U119: -6.966406176
A120: 0 | B120: 99 | C120: 0.99 | D120: =(Alfa1*SIN(miia*C120)-Alfa2*SIN(miib*C120)) -> 34.67963905 | E120: =-(Alfa1*COS(miia*C120)-Alfa2*COS(miib*C120)) -> -9.763326223 | F120: =(miia*Alfa1*COS(miia*C120)-miib*Alfa2*COS(miib*C120)) -> -262.4002723 | G120: =miia*Alfa1*SIN(miia*C120)-miib*Alfa2*SIN(miib*C120) -> 333.5357581 | K120: 4.790928797 | L120: -108.5595354 | M120: 102.660268 | N120: =N119+dfi -> 3.89557489 | O120: =Aktina*COS(N120) -> -51.02780392 | P120: =Aktina*(SIN(N120)) -> -47.91829742 | Q120: 0 | R120: 99 | S120: 0.99 | T120: 44.49233709 | U120: -10.77542693
A121: 0 | B121: 100 | C121: 1 | D121: =(Alfa1*SIN(miia*C121)-Alfa2*SIN(miib*C121)) -> 32.05597356 | E121: =-(Alfa1*COS(miia*C121)-Alfa2*COS(miib*C121)) -> -6.340767023 | F121: =(miia*Alfa1*COS(miia*C121)-miib*Alfa2*COS(miib*C121)) -> -261.9712001 | G121: =miia*Alfa1*SIN(miia*C121)-miib*Alfa2*SIN(miib*C121) -> 350.6872566 | K121: 4.869468613 | L121: -114.4375094 | M121: 101.9645639 | N121: =N120+dfi -> 3.958406744 | O121: =Aktina*COS(N121) -> -47.91829742 | P121: =Aktina*(SIN(N121)) -> -51.02780392 | Q121: 0 | R121: 100 | S121: 1 | T121: 50.99382266 | U121: -15.08463135
A122: 0 | B122: 101 | C122: 1.01 | D122: =(Alfa1*SIN(miia*C122)-Alfa2*SIN(miib*C122)) -> 29.4472894 | E122: =-(Alfa1*COS(miia*C122)-Alfa2*COS(miib*C122)) -> -2.755674593 | F122: =(miia*Alfa1*COS(miia*C122)-miib*Alfa2*COS(miib*C122)) -> -259.4204901 | G122: =miia*Alfa1*SIN(miia*C122)-miib*Alfa2*SIN(miib*C122) -> 366.0111741 | K122: 4.948008429 | L122: -120.2427793 | M122: 100.8098239 | N122: =N121+dfi -> 4.021238597 | O122: =Aktina*COS(N122) -> -44.61967928 | P122: =Aktina*(SIN(N122)) -> -53.93592699 | Q122: 0 | R122: 101 | S122: 1.01 | T122: 56.03119083 | U122: -19.66981843
A123: 0 | B123: 102 | C123: 1.02 | D123: =(Alfa1*SIN(miia*C123)-Alfa2*SIN(miib*C123)) -> 26.8742758 | E123: =-(Alfa1*COS(miia*C123)-Alfa2*COS(miib*C123)) -> 0.9727627793 | F123: =(miia*Alfa1*COS(miia*C123)-miib*Alfa2*COS(miib*C123)) -> -254.8567921 | G123: =miia*Alfa1*SIN(miia*C123)-miib*Alfa2*SIN(miib*C123) -> 379.3275196 | K123: 5.026548246 | L123: =RX+R_KAMP*COS(K123) -> -125.9395535 | M123: =RY+R_KAMP*SIN(K123) -> 99.2031674 | N123: =N122+dfi -> 4.08407045 | O123: =Aktina*COS(N123) -> -41.14496766 | P123: =Aktina*(SIN(N123)) -> -56.63118961 | Q123: 0 | R123: 102 | S123: 1.02 | T123: 59.48836557 | U123: -24.2870183
A124: 0 | B124: 103 | C124: 1.03 | D124: =(Alfa1*SIN(miia*C124)-Alfa2*SIN(miib*C124)) -> 24.35644104 | E124: =-(Alfa1*COS(miia*C124)-Alfa2*COS(miib*C124)) -> 4.823635081 | F124: =(miia*Alfa1*COS(miia*C124)-miib*Alfa2*COS(miib*C124)) -> -248.4074216 | G124: =miia*Alfa1*SIN(miia*C124)-miib*Alfa2*SIN(miib*C124) -> 390.4722386 | K124: 5.105088062 | L124: -131.4927097 | M124: 97.15449992 | N124: =N123+dfi -> 4.146902303 | O124: =Aktina*COS(N124) -> -37.50787565 | P124: =Aktina*(SIN(N124)) -> -59.10295479 | Q124: 0 | R124: 103 | S124: 1.03 | T124: 61.30573765 | U124: -28.68282979
A125: 0 | B125: 104 | C125: 1.04 | D125: =(Alfa1*SIN(miia*C125)-Alfa2*SIN(miib*C125)) -> 21.91193299 | E125: =-(Alfa1*COS(miia*C125)-Alfa2*COS(miib*C125)) -> 8.774478654 | F125: =(miia*Alfa1*COS(miia*C125)-miib*Alfa2*COS(miib*C125)) -> -240.2168834 | G125: =miia*Alfa1*SIN(miia*C125)-miib*Alfa2*SIN(miib*C125) -> 399.2989291 | K125: =K124+2*PI()/80 -> 5.183627878 | L125: -136.8680108 | M125: 94.67645218 | N125: =N124+dfi -> 4.209734156 | O125: =Aktina*COS(N125) -> -33.72275719 | P125: =Aktina*(SIN(N125)) -> -61.3414676 | Q125: 0 | R125: 104 | S125: 1.04 | T125: 61.48175961 | U125: -32.60521541
A126: 0 | B126: 105 | C126: 1.05 | D126: =(Alfa1*SIN(miia*C126)-Alfa2*SIN(miib*C126)) -> 19.55737529 | E126: =-(Alfa1*COS(miia*C126)-Alfa2*COS(miib*C126)) -> 12.80146062 | F126: =(miia*Alfa1*COS(miia*C126)-miib*Alfa2*COS(miib*C126)) -> -230.4452279 | G126: =miia*Alfa1*SIN(miia*C126)-miib*Alfa2*SIN(miib*C126) -> 405.6803925 | K126: 5.262167695 | L126: -142.0323163 | M126: 91.78430217 | N126: =N125+dfi -> 4.272566009 | O126: =Aktina*COS(N126) -> -29.80455041 | P126: =Aktina*(SIN(N126)) -> -63.33789367 | Q126: 0 | R126: 105 | S126: 1.05 | T126: 60.07229895 | U126: -35.81431659
A127: 0 | B127: 106 | C127: 1.06 | D127: =(Alfa1*SIN(miia*C127)-Alfa2*SIN(miib*C127)) -> 17.3077208 | E127: =-(Alfa1*COS(miia*C127)-Alfa2*COS(miib*C127)) -> 16.8795779 | F127: =(miia*Alfa1*COS(miia*C127)-miib*Alfa2*COS(miib*C127)) -> -219.2662563 | G127: =miia*Alfa1*SIN(miia*C127)-miib*Alfa2*SIN(miib*C127) -> 409.5100016 | K127: 5.340707511 | L127: -146.9537864 | M127: 88.49588096 | N127: =N126+dfi -> 4.335397862 | O127: =Aktina*COS(N127) -> -25.76871869 | P127: =Aktina*(SIN(N127)) -> -65.08435401 | Q127: 0 | R127: 106 | S127: 1.06 | T127: 57.18778256 | U127: -38.09285019
A128: 0 | B128: 107 | C128: 1.07 | D128: =(Alfa1*SIN(miia*C128)-Alfa2*SIN(miib*C128)) -> 15.17612356 | E128: =-(Alfa1*COS(miia*C128)-Alfa2*COS(miib*C128)) -> 20.982869 | F128: =(miia*Alfa1*COS(miia*C128)-miib*Alfa2*COS(miib*C128)) -> -206.8655936 | G128: =miia*Alfa1*SIN(miia*C128)-miib*Alfa2*SIN(miib*C128) -> 410.7028735 | K128: 5.419247327 | L128: -151.6020787 | M128: 84.83146276 | N128: =N127+dfi -> 4.398229715 | O128: =Aktina*COS(N128) -> -21.63118961 | P128: =Aktina*(SIN(N128)) -> -66.57395614 | Q128: 0 | R128: 107 | S128: 1.07 | T128: 52.98825244 | U128: -39.25566367
A129: 0 | B129: 108 | C129: 1.08 | D129: =(Alfa1*SIN(miia*C129)-Alfa2*SIN(miib*C129)) -> 13.17383072 | E129: =-(Alfa1*COS(miia*C129)-Alfa2*COS(miib*C129)) -> 25.08463639 | F129: =(miia*Alfa1*COS(miia*C129)-miib*Alfa2*COS(miib*C129)) -> -193.4386492 | G129: =miia*Alfa1*SIN(miia*C129)-miib*Alfa2*SIN(miib*C129) -> 409.1968341 | K129: 5.497787144 | L129: -155.948535 | M129: 80.81363992 | N129: =N128+dfi -> 4.461061568 | O129: =Aktina*COS(N129) -> -17.4082921 | P129: =Aktina*(SIN(N129)) -> -67.80082128 | Q129: 0 | R129: 108 | S129: 1.08 | T129: 47.67653526 | U129: -39.15805885
A130: 0 | B130: 109 | C130: 1.09 | D130: =(Alfa1*SIN(miia*C130)-Alfa2*SIN(miib*C130)) -> 11.31009525 | E130: =-(Alfa1*COS(miia*C130)-Alfa2*COS(miib*C130)) -> 29.15767758 | F130: =(miia*Alfa1*COS(miia*C130)-miib*Alfa2*COS(miib*C130)) -> -179.1884858 | G130: =miia*Alfa1*SIN(miia*C130)-miib*Alfa2*SIN(miib*C130) -> 404.9531649 | K130: 5.57632696 | L130: -159.9663578 | M130: 76.46718366 | N130: =N129+dfi -> 4.523893421 | O130: =Aktina*COS(N130) -> -13.11669202 | P130: =Aktina*(SIN(N130)) -> -68.76010755 | Q130: 0 | R130: 109 | S130: 1.09 | T130: 41.48980252 | U130: -37.70254319
A131: 0 | B131: 110 | C131: 1.1 | D131: =(Alfa1*SIN(miia*C131)-Alfa2*SIN(miib*C131)) -> 9.592110374 | E131: =-(Alfa1*COS(miia*C131)-Alfa2*COS(miib*C131)) -> 33.17452242 | F131: =(miia*Alfa1*COS(miia*C131)-miib*Alfa2*COS(miib*C131)) -> -164.3236178 | G131: =miia*Alfa1*SIN(miia*C131)-miib*Alfa2*SIN(miib*C131) -> 397.9571242 | K131: 5.654866776 | L131: -163.630776 | M131: 71.81889133 | N131: =N130+dfi -> 4.586725274 | O131: =Aktina*COS(N131) -> -8.77332635 | P131: =Aktina*(SIN(N131)) -> -69.44802909 | Q131: 0 | R131: 110 | S131: 1.1 | T131: 34.6898614 | U131: -34.84372949
A132: 0 | B132: 111 | C132: 1.11 | D132: =(Alfa1*SIN(miia*C132)-Alfa2*SIN(miib*C132)) -> 8.024966281 | E132: =-(Alfa1*COS(miia*C132)-Alfa2*COS(miib*C132)) -> 37.10767454 | F132: =(miia*Alfa1*COS(miia*C132)-miib*Alfa2*COS(miib*C132)) -> -149.0557633 | G132: =miia*Alfa1*SIN(miia*C132)-miib*Alfa2*SIN(miib*C132) -> 388.2182373 | K132: 5.733406593 | L132: -166.9191972 | M132: 66.8974212 | N132: =N131+dfi -> 4.649557127 | O132: =Aktina*COS(N132) -> -4.395336367 | P132: =Aktina*(SIN(N132)) -> -69.86187099 | Q132: 0 | R132: 111 | S132: 1.11 | T132: 27.55256587 | U132: -30.59117861
A133: 0 | B133: 112 | C133: 1.12 | D133: =(Alfa1*SIN(miia*C133)-Alfa2*SIN(miib*C133)) -> 6.611629421 | E133: =-(Alfa1*COS(miia*C133)-Alfa2*COS(miib*C133)) -> 40.92985449 | F133: =(miia*Alfa1*COS(miia*C133)-miib*Alfa2*COS(miib*C133)) -> -133.5975701 | G133: =miia*Alfa1*SIN(miia*C133)-miib*Alfa2*SIN(miib*C133) -> 375.7703523 | K133: 5.811946409 | L133: -169.8113472 | M133: 61.73311576 | N133: =N132+dfi -> 4.71238898 | O133: =Aktina*COS(N133) -> -1.286405878e-14 | P133: =Aktina*(SIN(N133)) -> -70 | Q133: 0 | R133: 112 | S133: 1.12 | T133: 20.35677161 | U133: -25.01006153
A134: 0 | B134: 113 | C134: 1.13 | D134: =(Alfa1*SIN(miia*C134)-Alfa2*SIN(miib*C134)) -> 5.352944598 | E134: =-(Alfa1*COS(miia*C134)-Alfa2*COS(miib*C134)) -> 44.61424226 | F134: =(miia*Alfa1*COS(miia*C134)-miib*Alfa2*COS(miib*C134)) -> -118.1603411 | G134: =miia*Alfa1*SIN(miia*C134)-miib*Alfa2*SIN(miib*C134) -> 360.6714605 | K134: 5.890486225 | L134: -172.289395 | M134: 56.35781468 | N134: =N133+dfi -> 4.775220833 | O134: =Aktina*COS(N134) -> 4.395336367 | P134: =Aktina*(SIN(N134)) -> -69.86187099 | Q134: 0 | R134: 113 | S134: 1.13 | T134: 13.37327582 | U134: -18.21960403
A135: 0 | B135: 114 | C135: 1.14 | D135: =(Alfa1*SIN(miia*C135)-Alfa2*SIN(miib*C135)) -> 4.247659722 | E135: =-(Alfa1*COS(miia*C135)-Alfa2*COS(miib*C135)) -> 48.13471684 | F135: =(miia*Alfa1*COS(miia*C135)-miib*Alfa2*COS(miib*C135)) -> -102.951781 | G135: =miia*Alfa1*SIN(miia*C135)-miib*Alfa2*SIN(miib*C135) -> 343.0032826 | K135: 5.969026042 | L135: -174.3380625 | M135: 50.80465847 | N135: =N134+dfi -> 4.838052687 | O135: =Aktina*COS(N135) -> 8.77332635 | P135: =Aktina*(SIN(N135)) -> -69.44802909 | Q135: 0 | R135: 114 | S135: 1.14 | T135: 6.854181937 | U135: -10.38936534
A136: 0 | B136: 115 | C136: 1.15 | D136: =(Alfa1*SIN(miia*C136)-Alfa2*SIN(miib*C136)) -> 3.292472874 | E136: =-(Alfa1*COS(miia*C136)-Alfa2*COS(miib*C136)) -> 51.46609051 | F136: =(miia*Alfa1*COS(miia*C136)-miib*Alfa2*COS(miib*C136)) -> -88.17378696 | G136: =miia*Alfa1*SIN(miia*C136)-miib*Alfa2*SIN(miib*C136) -> 322.8706255 | K136: 6.047565858 | L136: -175.944719 | M136: 45.10788419 | N136: =N135+dfi -> 4.90088454 | O136: =Aktina*COS(N136) -> 13.11669202 | P136: =Aktina*(SIN(N136)) -> -68.76010755 | Q136: 0 | R136: 115 | S136: 1.15 | T136: 1.023111968 | U136: -1.733489155
A137: 0 | B137: 116 | C137: 1.16 | D137: =(Alfa1*SIN(miia*C137)-Alfa2*SIN(miib*C137)) -> 2.482101157 | E137: =-(Alfa1*COS(miia*C137)-Alfa2*COS(miib*C137)) -> 54.58433549 | F137: =(miia*Alfa1*COS(miia*C137)-miib*Alfa2*COS(miib*C137)) -> -74.02030701 | G137: =miia*Alfa1*SIN(miia*C137)-miib*Alfa2*SIN(miib*C137) -> 300.400514 | K137: 6.126105675 | L137: -177.0994589 | M137: 39.30261435 | N137: =N136+dfi -> 4.963716393 | O137: =Aktina*COS(N137) -> 17.4082921 | P137: =Aktina*(SIN(N137)) -> -67.80082128 | Q137: 0 | R137: 116 | S137: 1.16 | T137: -3.933346208 | U137: 7.496854273
A138: 0 | B138: 117 | C138: 1.17 | D138: =(Alfa1*SIN(miia*C138)-Alfa2*SIN(miib*C138)) -> 1.809370541 | E138: =-(Alfa1*COS(miia*C138)-Alfa2*COS(miib*C138)) -> 57.46680093 | F138: =(miia*Alfa1*COS(miia*C138)-miib*Alfa2*COS(miib*C138)) -> -60.6752861 | G138: =miia*Alfa1*SIN(miia*C138)-miib*Alfa2*SIN(miib*C138) -> 275.7411071 | K138: 6.204645491 | L138: -177.795163 | M138: 33.42464036 | N138: =N137+dfi -> 5.026548246 | O138: =Aktina*COS(N138) -> 21.63118961 | P138: =Aktina*(SIN(N138)) -> -66.57395614 | Q138: 0 | R138: 117 | S138: 1.17 | T138: -7.872619097 | U138: 17.0225431
A139: 0 | B139: 118 | C139: 1.18 | D139: =(Alfa1*SIN(miia*C139)-Alfa2*SIN(miib*C139)) -> 1.265325714 | E139: =-(Alfa1*COS(miia*C139)-Alfa2*COS(miib*C139)) -> 60.09241794 | F139: =(miia*Alfa1*COS(miia*C139)-miib*Alfa2*COS(miib*C139)) -> -48.31072208 | G139: =miia*Alfa1*SIN(miia*C139)-miib*Alfa2*SIN(miib*C139) -> 249.0604082 | K139: 6.283185307 | L139: -178.0275419 | M139: 27.51020189 | N139: =N138+dfi -> 5.089380099 | O139: =Aktina*COS(N139) -> 25.76871869 | P139: =Aktina*(SIN(N139)) -> -65.08435401 | Q139: 0 | R139: 118 | S139: 1.18 | T139: -10.70128176 | U139: 26.54674374
A140: 0 | B140: 119 | C140: 1.19 | D140: =(Alfa1*SIN(miia*C140)-Alfa2*SIN(miib*C140)) -> 0.8393587417 | E140: =-(Alfa1*COS(miia*C140)-Alfa2*COS(miib*C140)) -> 62.44189081 | F140: =(miia*Alfa1*COS(miia*C140)-miib*Alfa2*COS(miib*C140)) -> -37.08485041 | G140: =miia*Alfa1*SIN(miia*C140)-miib*Alfa2*SIN(miib*C140) -> 220.544783 | N140: =N139+dfi -> 5.152211952 | O140: =Aktina*COS(N140) -> 29.80455041 | P140: =Aktina*(SIN(N140)) -> -63.33789367 | Q140: 0 | R140: 119 | S140: 1.19 | T140: -12.37814667 | U140: 35.7659161
A141: 0 | B141: 120 | C141: 1.2 | D141: =(Alfa1*SIN(miia*C141)-Alfa2*SIN(miib*C141)) -> 0.5193551626 | E141: =-(Alfa1*COS(miia*C141)-Alfa2*COS(miib*C141)) -> 64.49787241 | F141: =(miia*Alfa1*COS(miia*C141)-miib*Alfa2*COS(miib*C141)) -> -27.14047651 | G141: =miia*Alfa1*SIN(miia*C141)-miib*Alfa2*SIN(miib*C141) -> 190.3972971 | N141: =N140+dfi -> 5.215043805 | O141: =Aktina*COS(N141) -> 33.72275719 | P141: =Aktina*(SIN(N141)) -> -61.3414676 | Q141: 0 | R141: 120 | S141: 1.2 | T141: -12.91519054 | U141: 44.38115381
A142: 0 | B142: 121 | C142: 1.21 | D142: =(Alfa1*SIN(miia*C142)-Alfa2*SIN(miib*C142)) -> 0.2918559482 | E142: =-(Alfa1*COS(miia*C142)-Alfa2*COS(miib*C142)) -> 66.24512226 | F142: =(miia*Alfa1*COS(miia*C142)-miib*Alfa2*COS(miib*C142)) -> -18.60347225 | G142: =miia*Alfa1*SIN(miia*C142)-miib*Alfa2*SIN(miib*C142) -> 158.8358923 | N142: =N141+dfi -> 5.277875658 | O142: =Aktina*COS(N142) -> 37.50787565 | P142: =Aktina*(SIN(N142)) -> -59.10295479 | Q142: 0 | R142: 121 | S142: 1.21 | T142: -12.37628918 | U142: 52.10941494
A143: 0 | B143: 122 | C143: 1.22 | D143: =(Alfa1*SIN(miia*C143)-Alfa2*SIN(miib*C143)) -> 0.1422336138 | E143: =-(Alfa1*COS(miia*C143)-Alfa2*COS(miib*C143)) -> 67.67064549 | F143: =(miia*Alfa1*COS(miia*C143)-miib*Alfa2*COS(miib*C143)) -> -11.58145202 | G143: =miia*Alfa1*SIN(miia*C143)-miib*Alfa2*SIN(miib*C143) -> 126.0914169 | N143: =N142+dfi -> 5.340707511 | O143: =Aktina*COS(N143) -> 41.14496766 | P143: =Aktina*(SIN(N143)) -> -56.63118961 | Q143: 0 | R143: 122 | S143: 1.22 | T143: -10.87381883 | U143: 58.69420224
A144: 0 | B144: 123 | C144: 1.23 | D144: =(Alfa1*SIN(miia*C144)-Alfa2*SIN(miib*C144)) -> 0.05488061458 | E144: =-(Alfa1*COS(miia*C144)-Alfa2*COS(miib*C144)) -> 68.7638116 | F144: =(miia*Alfa1*COS(miia*C144)-miib*Alfa2*COS(miib*C144)) -> -6.162641726 | G144: =miia*Alfa1*SIN(miia*C144)-miib*Alfa2*SIN(miib*C144) -> 92.40553005 | N144: =N143+dfi -> 5.403539364 | O144: =Aktina*COS(N144) -> 44.61967928 | P144: =Aktina*(SIN(N144)) -> -53.93592699 | Q144: 0 | R144: 123 | S144: 1.23 | T144: -8.563267966 | U144: 63.91527331
A145: 0 | B145: 124 | C145: 1.24 | D145: =(Alfa1*SIN(miia*C145)-Alfa2*SIN(miib*C145)) -> 0.01340803769 | E145: =-(Alfa1*COS(miia*C145)-Alfa2*COS(miib*C145)) -> 69.51645158 | F145: =(miia*Alfa1*COS(miia*C145)-miib*Alfa2*COS(miib*C145)) -> -2.414952107 | G145: =miia*Alfa1*SIN(miia*C145)-miib*Alfa2*SIN(miib*C145) -> 58.0285016 | N145: =N144+dfi -> 5.466371217 | O145: =Aktina*COS(N145) -> 47.91829742 | P145: =Aktina*(SIN(N145)) -> -51.02780392 | Q145: 0 | R145: 124 | S145: 1.24 | T145: -5.636083273 | U145: 67.59699857
A146: 0 | B146: 125 | C146: 1.25 | D146: =(Alfa1*SIN(miia*C146)-Alfa2*SIN(miib*C146)) -> 0.0008525006913 | E146: =-(Alfa1*COS(miia*C146)-Alfa2*COS(miib*C146)) -> 69.9229327 | F146: =(miia*Alfa1*COS(miia*C146)-miib*Alfa2*COS(miib*C146)) -> -0.3852657774 | G146: =miia*Alfa1*SIN(miia*C146)-miib*Alfa2*SIN(miib*C146) -> 23.21692658 | N146: =N145+dfi -> 5.52920307 | O146: =Aktina*COS(N146) -> 51.02780392 | P146: =Aktina*(SIN(N146)) -> -47.91829742 | Q146: 0 | R146: 125 | S146: 1.25 | T146: -2.311044846 | U146: 69.61503819
A147: 0 | B147: 126 | C147: 1.26 | D147: =(Alfa1*SIN(miia*C147)-Alfa2*SIN(miib*C147)) -> -0.0001109207765 | E147: =-(Alfa1*COS(miia*C147)-Alfa2*COS(miib*C147)) -> 69.98021003 | F147: =(miia*Alfa1*COS(miia*C147)-miib*Alfa2*COS(miib*C147)) -> -0.0989452059 | G147: =miia*Alfa1*SIN(miia*C147)-miib*Alfa2*SIN(miib*C147) -> -11.76862113 | N147: =N146+dfi -> 5.592034923 | O147: =Aktina*COS(N147) -> 53.93592699 | P147: =Aktina*(SIN(N147)) -> -44.61967928 | Q147: 0 | R147: 126 | S147: 1.26 | T147: 1.175475886 | U147: 69.90107484
A148: 0 | B148: 127 | C148: 1.27 | D148: =(Alfa1*SIN(miia*C148)-Alfa2*SIN(miib*C148)) -> -0.006951971207 | E148: =-(Alfa1*COS(miia*C148)-Alfa2*COS(miib*C148)) -> 69.68785435 | F148: =(miia*Alfa1*COS(miia*C148)-miib*Alfa2*COS(miib*C148)) -> -1.559566599 | G148: =miia*Alfa1*SIN(miia*C148)-miib*Alfa2*SIN(miib*C148) -> -46.66597435 | N148: =N147+dfi -> 5.654866776 | O148: =Aktina*COS(N148) -> 56.63118961 | P148: =Aktina*(SIN(N148)) -> -41.14496766 | Q148: 0 | R148: 127 | S148: 1.27 | T148: 4.579976799 | U148: 68.44541613
A149: 0 | B149: 128 | C149: 1.28 | D149: =(Alfa1*SIN(miia*C149)-Alfa2*SIN(miib*C149)) -> -0.03706697399 | E149: =-(Alfa1*COS(miia*C149)-Alfa2*COS(miib*C149)) -> 69.04805607 | F149: =(miia*Alfa1*COS(miia*C149)-miib*Alfa2*COS(miib*C149)) -> -4.748882381 | G149: =miia*Alfa1*SIN(miia*C149)-miib*Alfa2*SIN(miib*C149) -> -81.21377366 | N149: =N148+dfi -> 5.71769863 | O149: =Aktina*COS(N149) -> 59.10295479 | P149: =Aktina*(SIN(N149)) -> -37.50787565 | Q149: 0 | R149: 128 | S149: 1.28 | T149: 7.662576921 | U149: 65.29736386
A150: =IF(B150=$AC$1,1,0) -> 0 | B150: 129 | C150: =C149+dt -> 1.29 | D150: =(Alfa1*SIN(miia*C150)-Alfa2*SIN(miib*C150)) -> -0.1075613605 | E150: =-(Alfa1*COS(miia*C150)-Alfa2*COS(miib*C150)) -> 68.0656052 | F150: =(miia*Alfa1*COS(miia*C150)-miib*Alfa2*COS(miib*C150)) -> -9.627012648 | G150: =miia*Alfa1*SIN(miia*C150)-miib*Alfa2*SIN(miib*C150) -> -115.1538605 | N150: =N149+dfi -> 5.780530483 | O150: =Aktina*COS(N150) -> 61.3414676 | P150: =Aktina*(SIN(N150)) -> -33.72275719 | Q150: =IF(R150=$AC$1,1,0) -> 0 | R150: 129 | S150: =S149+dt -> 1.29 | T150: =IF(R150<MAX_TIME,Aktina*SIN(epsilon*S150)*COS(D*S150),Aktina*SIN(epsilon*MAX_TIME*dt)*COS(D*MAX_TIME*dt)) -> 10.1976204 | U150: =IF(R150<MAX_TIME,Aktina*COS(epsilon*S150)*COS(D*S150),Aktina*COS(epsilon*MAX_TIME*dt)*COS(D*MAX_TIME*dt)) -> 60.56333576
A151: 0 | B151: =B150+1 -> 130 | C151: 1.3 | D151: =(Alfa1*SIN(miia*C151)-Alfa2*SIN(miib*C151)) -> -0.2350352515 | E151: =-(Alfa1*COS(miia*C151)-Alfa2*COS(miib*C151)) -> 66.74784743 | F151: =(miia*Alfa1*COS(miia*C151)-miib*Alfa2*COS(miib*C151)) -> -16.13286366 | G151: =miia*Alfa1*SIN(miia*C151)-miib*Alfa2*SIN(miib*C151) -> -148.2336391 | N151: =N150+dfi -> 5.843362336 | O151: =Aktina*COS(N151) -> 63.33789367 | P151: =Aktina*(SIN(N151)) -> -29.80455041 | Q151: 0 | R151: =R150+1 -> 130 | S151: 1.3 | T151: 11.98369948 | U151: 54.40281363
A152: 0 | B152: 131 | C152: 1.31 | D152: =(Alfa1*SIN(miia*C152)-Alfa2*SIN(miib*C152)) -> -0.435374342 | E152: =-(Alfa1*COS(miia*C152)-Alfa2*COS(miib*C152)) -> 65.10461699 | F152: =(miia*Alfa1*COS(miia*C152)-miib*Alfa2*COS(miib*C152)) -> -24.18476917 | G152: =miia*Alfa1*SIN(miia*C152)-miib*Alfa2*SIN(miib*C152) -> -180.2083842 | N152: =N151+dfi -> 5.906194189 | O152: =Aktina*COS(N152) -> 65.08435401 | P152: =Aktina*(SIN(N152)) -> -25.76871869 | Q152: 0 | R152: 131 | S152: 1.31 | T152: 12.85268654 | U152: 47.0222776
A153: 0 | B153: 132 | C153: 1.32 | D153: =(Alfa1*SIN(miia*C153)-Alfa2*SIN(miib*C153)) -> -0.7235482875 | E153: =-(Alfa1*COS(miia*C153)-Alfa2*COS(miib*C153)) -> 63.14814664 | F153: =(miia*Alfa1*COS(miia*C153)-miib*Alfa2*COS(miib*C153)) -> -33.68134801 | G153: =miia*Alfa1*SIN(miia*C153)-miib*Alfa2*SIN(miib*C153) -> -210.8434716 | N153: =N152+dfi -> 5.969026042 | O153: =Aktina*COS(N153) -> 66.57395614 | P153: =Aktina*(SIN(N153)) -> -21.63118961 | Q153: 0 | R153: 132 | S153: 1.32 | T153: 12.67740529 | U153: 38.66736524
A154: 0 | B154: 133 | C154: 1.33 | D154: =(Alfa1*SIN(miia*C154)-Alfa2*SIN(miib*C154)) -> -1.113418712 | E154: =-(Alfa1*COS(miia*C154)-Alfa2*COS(miib*C154)) -> 60.89295597 | F154: =(miia*Alfa1*COS(miia*C154)-miib*Alfa2*COS(miib*C154)) -> -44.5025694 | G154: =miia*Alfa1*SIN(miia*C154)-miib*Alfa2*SIN(miib*C154) -> -239.9165103 | N154: =N153+dfi -> 6.031857895 | O154: =Aktina*COS(N154) -> 67.80082128 | P154: =Aktina*(SIN(N154)) -> -17.4082921 | Q154: 0 | R154: 133 | S154: 1.33 | T154: 11.37762541 | U154: 29.61356439
A155: 0 | B155: 134 | C155: 1.34 | D155: =(Alfa1*SIN(miia*C155)-Alfa2*SIN(miib*C155)) -> -1.617558863 | E155: =-(Alfa1*COS(miia*C155)-Alfa2*COS(miib*C155)) -> 58.35571887 | F155: =(miia*Alfa1*COS(miia*C155)-miib*Alfa2*COS(miib*C155)) -> -56.51101509 | G155: =miia*Alfa1*SIN(miia*C155)-miib*Alfa2*SIN(miib*C155) -> -267.2193558 | N155: =N154+dfi -> 6.094689748 | O155: =Aktina*COS(N155) -> 68.76010755 | P155: =Aktina*(SIN(N155)) -> -13.11669202 | Q155: 0 | R155: 134 | S155: 1.34 | T155: 8.924132524 | U155: 20.15580583
A156: 0 | B156: 135 | C156: 1.35 | D156: =(Alfa1*SIN(miia*C156)-Alfa2*SIN(miib*C156)) -> -2.247086824 | E156: =-(Alfa1*COS(miia*C156)-Alfa2*COS(miib*C156)) -> 55.55511156 | F156: =(miia*Alfa1*COS(miia*C156)-miib*Alfa2*COS(miib*C156)) -> -69.55332566 | G156: =miia*Alfa1*SIN(miia*C156)-miib*Alfa2*SIN(miib*C156) -> -292.5599834 | N156: =N155+dfi -> 6.157521601 | O156: =Aktina*COS(N156) -> 69.44802909 | P156: =Aktina*(SIN(N156)) -> -8.77332635 | Q156: 0 | R156: 135 | S156: 1.35 | T156: 5.340702565 | U156: 10.59736491
A157: 0 | B157: 136 | C157: 1.36 | D157: =(Alfa1*SIN(miia*C157)-Alfa2*SIN(miib*C157)) -> -3.01151404 | E157: =-(Alfa1*COS(miia*C157)-Alfa2*COS(miib*C157)) -> 52.51164271 | F157: =(miia*Alfa1*COS(miia*C157)-miib*Alfa2*COS(miib*C157)) -> -83.46181618 | G157: =miia*Alfa1*SIN(miia*C157)-miib*Alfa2*SIN(miib*C157) -> -315.7642054 | N157: =N156+dfi -> 6.220353454 | O157: =Aktina*COS(N157) -> 69.86187099 | P157: =Aktina*(SIN(N157)) -> -4.395336367 | Q157: 0 | R157: 136 | S157: 1.36 | T157: 0.7038936378 | U157: 1.238508048
A158: 0 | B158: 137 | C158: 1.37 | D158: =(Alfa1*SIN(miia*C158)-Alfa2*SIN(miib*C158)) -> -3.918610794 | E158: =-(Alfa1*COS(miia*C158)-Alfa2*COS(miib*C158)) -> 49.24746714 | F158: =(miia*Alfa1*COS(miia*C158)-miib*Alfa2*COS(miib*C158)) -> -98.05624514 | G158: =miia*Alfa1*SIN(miia*C158)-miib*Alfa2*SIN(miib*C158) -> -336.6772138 | N158: =N157+dfi -> 6.283185307 | O158: =Aktina*COS(N158) -> 70 | P158: =Aktina*(SIN(N158)) -> -6.388769722e-13 | Q158: 0 | R158: 137 | S158: 1.37 | T158: -4.859343639 | U158: -7.634670602
A159: 0 | B159: 138 | C159: 1.38 | D159: =(Alfa1*SIN(miia*C159)-Alfa2*SIN(miib*C159)) -> -4.974290051 | E159: =-(Alfa1*COS(miia*C159)-Alfa2*COS(miib*C159)) -> 45.78618516 | F159: =(miia*Alfa1*COS(miia*C159)-miib*Alfa2*COS(miib*C159)) -> -113.1457185 | G159: =miia*Alfa1*SIN(miia*C159)-miib*Alfa2*SIN(miib*C159) -> -355.1649346 | Q159: 0 | R159: 138 | S159: 1.38 | T159: -11.17614869 | U159: -15.76078543
A160: 0 | B160: 139 | C160: 1.39 | D160: =(Alfa1*SIN(miia*C160)-Alfa2*SIN(miib*C160)) -> -6.182510948 | E160: =-(Alfa1*COS(miia*C160)-Alfa2*COS(miib*C160)) -> 42.15262924 | F160: =(miia*Alfa1*COS(miia*C160)-miib*Alfa2*COS(miib*C160)) -> -128.5307097 | G160: =miia*Alfa1*SIN(miia*C160)-miib*Alfa2*SIN(miib*C160) -> -371.1151802 | Q160: 0 | R160: 139 | S160: 1.39 | T160: -18.03415352 | U160: -22.91265714
A161: 0 | B161: 140 | C161: 1.4 | D161: =(Alfa1*SIN(miia*C161)-Alfa2*SIN(miib*C161)) -> -7.545202974 | E161: =-(Alfa1*COS(miia*C161)-Alfa2*COS(miib*C161)) -> 38.37264029 | F161: =(miia*Alfa1*COS(miia*C161)-miib*Alfa2*COS(miib*C161)) -> -144.0051751 | G161: =miia*Alfa1*SIN(miia*C161)-miib*Alfa2*SIN(miib*C161) -> -384.4385894 | Q161: 0 | R161: 140 | S161: 1.4 | T161: -25.18955486 | U161: -28.90540268
A162: 0 | B162: 141 | C162: 1.41 | D162: =(Alfa1*SIN(miia*C162)-Alfa2*SIN(miib*C162)) -> -9.062211693 | E162: =-(Alfa1*COS(miia*C162)-Alfa2*COS(miib*C162)) -> 34.47283564 | F162: =(miia*Alfa1*COS(miia*C162)-miib*Alfa2*COS(miib*C162)) -> -159.3587435 | G162: =miia*Alfa1*SIN(miia*C162)-miib*Alfa2*SIN(miib*C162) -> -395.0693445 | Q162: 0 | R162: 141 | S162: 1.41 | T162: -32.37653801 | U162: -33.60280434
A163: 0 | B163: 142 | C163: 1.42 | D163: =(Alfa1*SIN(miia*C163)-Alfa2*SIN(miib*C163)) -> -10.73126664 | E163: =-(Alfa1*COS(miia*C163)-Alfa2*COS(miib*C163)) -> 30.4803709 | F163: =(miia*Alfa1*COS(miia*C163)-miib*Alfa2*COS(miib*C163)) -> -174.3789575 | G163: =miia*Alfa1*SIN(miia*C163)-miib*Alfa2*SIN(miib*C163) -> -402.9656617 | Q163: 0 | R163: 142 | S163: 1.42 | T163: -39.31767976 | U163: -36.92171427
A164: 0 | B164: 143 | C164: 1.43 | D164: =(Alfa1*SIN(miia*C164)-Alfa2*SIN(miib*C164)) -> -12.54797181 | E164: =-(Alfa1*COS(miia*C164)-Alfa2*COS(miib*C164)) -> 26.42269822 | F164: =(miia*Alfa1*COS(miia*C164)-miib*Alfa2*COS(miib*C164)) -> -188.8535439 | G164: =miia*Alfa1*SIN(miia*C164)-miib*Alfa2*SIN(miib*C164) -> -408.1100465 | Q164: 0 | R164: 143 | S164: 1.43 | T164: -45.73491742 | U164: -38.83432894
A165: 0 | B165: 144 | C165: 1.44 | D165: =(Alfa1*SIN(miia*C165)-Alfa2*SIN(miib*C165)) -> -14.50581886 | E165: =-(Alfa1*COS(miia*C165)-Alfa2*COS(miib*C165)) -> 22.32732303 | F165: =(miia*Alfa1*COS(miia*C165)-miib*Alfa2*COS(miib*C165)) -> -202.5726898 | G165: =miia*Alfa1*SIN(miia*C165)-miib*Alfa2*SIN(miib*C165) -> -410.5093161 | Q165: 0 | R165: 144 | S165: 1.44 | T165: -51.36064771 | U165: -39.36825337
A166: 0 | B166: 145 | C166: 1.45 | D166: =(Alfa1*SIN(miia*C166)-Alfa2*SIN(miib*C166)) -> -16.59622306 | E166: =-(Alfa1*COS(miia*C166)-Alfa2*COS(miib*C166)) -> 18.22156186 | F166: =(miia*Alfa1*COS(miia*C166)-miib*Alfa2*COS(miib*C166)) -> -215.3313027 | G166: =miia*Alfa1*SIN(miia*C166)-miib*Alfa2*SIN(miib*C166) -> -410.1943847 | Q166: 0 | R166: 145 | S166: 1.45 | T166: -55.94851289 | U166: -38.60436288
A167: 0 | B167: 146 | C167: 1.46 | D167: =(Alfa1*SIN(miia*C167)-Alfa2*SIN(miib*C167)) -> -18.80858161 | E167: =-(Alfa1*COS(miia*C167)-Alfa2*COS(miib*C167)) -> 14.13230334 | F167: =(miia*Alfa1*COS(miia*C167)-miib*Alfa2*COS(miib*C167)) -> -226.9312287 | G167: =miia*Alfa1*SIN(miia*C167)-miib*Alfa2*SIN(miib*C167) -> -407.2198183 | Q167: 0 | R167: 146 | S167: 1.46 | T167: -59.28344278 | U167: -36.67255812
A168: 0 | B168: 147 | C168: 1.47 | D168: =(Alfa1*SIN(miia*C168)-Alfa2*SIN(miib*C168)) -> -21.13035391 | E168: =-(Alfa1*COS(miia*C168)-Alfa2*COS(miib*C168)) -> 10.08577492 | F168: =(miia*Alfa1*COS(miia*C168)-miib*Alfa2*COS(miib*C168)) -> -237.1834099 | G168: =miia*Alfa1*SIN(miia*C168)-miib*Alfa2*SIN(miib*C168) -> -401.6631604 | Q168: 0 | R168: 147 | S168: 1.47 | T168: -61.19055038 | U168: -33.7455927
A169: 0 | B169: 148 | C169: 1.48 | D169: =(Alfa1*SIN(miia*C169)-Alfa2*SIN(miib*C169)) -> -23.5471629 | E169: =-(Alfa1*COS(miia*C169)-Alfa2*COS(miib*C169)) -> 6.107317351 | F169: =(miia*Alfa1*COS(miia*C169)-miib*Alfa2*COS(miib*C169)) -> -245.9099558 | G169: =miia*Alfa1*SIN(miia*C169)-miib*Alfa2*SIN(miib*C169) -> -393.6240381 | Q169: 0 | R169: 148 | S169: 1.48 | T169: -61.54252304 | U169: -30.03122942
A170: 0 | B170: 149 | C170: 1.49 | D170: =(Alfa1*SIN(miia*C170)-Alfa2*SIN(miib*C170)) -> -26.04291672 | E170: =-(Alfa1*COS(miia*C170)-Alfa2*COS(miib*C170)) -> 2.221169216 | F170: =(miia*Alfa1*COS(miia*C170)-miib*Alfa2*COS(miib*C170)) -> -252.9461093 | G170: =miia*Alfa1*SIN(miia*C170)-miib*Alfa2*SIN(miib*C170) -> -383.2230559 | Q170: 0 | R170: 149 | S170: 1.49 | T170: -60.26521041 | U170: -25.76304751
A171: 0 | B171: 150 | C171: 1.5 | D171: =(Alfa1*SIN(miia*C171)-Alfa2*SIN(miib*C171)) -> -28.59994931 | E171: =-(Alfa1*COS(miia*C171)-Alfa2*COS(miib*C171)) -> -1.549736468 | F171: =(miia*Alfa1*COS(miia*C171)-miib*Alfa2*COS(miib*C171)) -> -258.1420872 | G171: =miia*Alfa1*SIN(miia*C171)-miib*Alfa2*SIN(miib*C171) -> -370.6004906 | Q171: 0 | R171: 150 | S171: 1.5 | T171: -57.34118125 | U171: -21.1902762
A172: 0 | B172: 151 | C172: 1.51 | D172: =(Alfa1*SIN(miia*C172)-Alfa2*SIN(miib*C172)) -> -31.1991788 | E172: =-(Alfa1*COS(miia*C172)-Alfa2*COS(miib*C172)) -> -5.183961669 | F172: =(miia*Alfa1*COS(miia*C172)-miib*Alfa2*COS(miib*C172)) -> -261.3647747 | G172: =miia*Alfa1*SIN(miia*C172)-miib*Alfa2*SIN(miib*C172) -> -355.9147984 | Q172: 0 | R172: 151 | S172: 1.51 | T172: -52.81110135 | U172: -16.56706878
A173: 0 | B173: 152 | C173: 1.52 | D173: =(Alfa1*SIN(miia*C173)-Alfa2*SIN(miib*C173)) -> -33.82028195 | E173: =-(Alfa1*COS(miia*C173)-Alfa2*COS(miib*C173)) -> -8.66173695 | F173: =(miia*Alfa1*COS(miia*C173)-miib*Alfa2*COS(miib*C173)) -> -262.4992593 | G173: =miia*Alfa1*SIN(miia*C173)-miib*Alfa2*SIN(miib*C173) -> -339.3409509 | Q173: 0 | R173: 152 | S173: 1.52 | T173: -46.77287072 | U173: -12.14165232
A174: 0 | B174: 153 | C174: 1.53 | D174: =(Alfa1*SIN(miia*C174)-Alfa2*SIN(miib*C174)) -> -36.44188315 | E174: =-(Alfa1*COS(miia*C174)-Alfa2*COS(miib*C174)) -> -11.96511765 | F174: =(miia*Alfa1*COS(miia*C174)-miib*Alfa2*COS(miib*C174)) -> -261.4501849 | G174: =miia*Alfa1*SIN(miia*C174)-miib*Alfa2*SIN(miib*C174) -> -321.0686164 | Q174: 0 | R174: 153 | S174: 1.53 | T174: -39.37854693 | U174: -8.14579308
A175: 0 | B175: 154 | C175: 1.54 | D175: =(Alfa1*SIN(miia*C175)-Alfa2*SIN(miib*C175)) -> -39.04175592 | E175: =-(Alfa1*COS(miia*C175)-Alfa2*COS(miib*C175)) -> -15.07812117 | F175: =(miia*Alfa1*COS(miia*C175)-miib*Alfa2*COS(miib*C175)) -> -258.1429151 | G175: =miia*Alfa1*SIN(miia*C175)-miib*Alfa2*SIN(miib*C175) -> -301.3002045 | Q175: 0 | R175: 154 | S175: 1.54 | T175: -30.82916904 | U175: -4.785003765
A176: 0 | B176: 155 | C176: 1.55 | D176: =(Alfa1*SIN(miia*C176)-Alfa2*SIN(miib*C176)) -> -41.59703511 | E176: =-(Alfa1*COS(miia*C176)-Alfa2*COS(miib*C176)) -> -17.98684413 | F176: =(miia*Alfa1*COS(miia*C176)-miib*Alfa2*COS(miib*C176)) -> -252.5244913 | G176: =miia*Alfa1*SIN(miia*C176)-miib*Alfa2*SIN(miib*C176) -> -280.2487942 | Q176: 0 | R176: 155 | S176: 1.55 | T176: -21.36767945 | U176: -2.229888676
A177: 0 | B177: 156 | C177: 1.56 | D177: =(Alfa1*SIN(miia*C177)-Alfa2*SIN(miib*C177)) -> -44.08443756 | E177: =-(Alfa1*COS(miia*C177)-Alfa2*COS(miib*C177)) -> -20.67955829 | F177: =(miia*Alfa1*COS(miia*C177)-miib*Alfa2*COS(miib*C177)) -> -244.5643773 | G177: =miia*Alfa1*SIN(miia*C177)-miib*Alfa2*SIN(miib*C177) -> -258.1359661 | Q177: 0 | R177: 156 | S177: 1.56 | T177: -11.27021674 | U177: -0.6089763523
A178: 0 | B178: 157 | C178: 1.57 | D178: =(Alfa1*SIN(miia*C178)-Alfa2*SIN(miib*C178)) -> -46.48048913 | E178: =-(Alfa1*COS(miia*C178)-Alfa2*COS(miib*C178)) -> -23.14678442 | F178: =(miia*Alfa1*COS(miia*C178)-miib*Alfa2*COS(miib*C178)) -> -234.2549806 | G178: =miia*Alfa1*SIN(miia*C178)-miib*Alfa2*SIN(miib*C178) -> -235.18956 | Q178: 0 | R178: 157 | S178: 1.57 | T178: -0.8361166235 | U178: -0.003329127947
A179: 0 | B179: 158 | C179: 1.58 | D179: =(Alfa1*SIN(miia*C179)-Alfa2*SIN(miib*C179)) -> -48.76175579 | E179: =-(Alfa1*COS(miia*C179)-Alfa2*COS(miib*C179)) -> -25.3813434 | F179: =(miia*Alfa1*COS(miia*C179)-miib*Alfa2*COS(miib*C179)) -> -221.6119461 | G179: =miia*Alfa1*SIN(miia*C179)-miib*Alfa2*SIN(miib*C179) -> -211.6413814 | Q179: 0 | R179: 158 | S179: 1.58 | T179: 9.622990272 | U179: -0.4431471489
A180: 0 | B180: 159 | C180: 1.59 | D180: =(Alfa1*SIN(miia*C180)-Alfa2*SIN(miib*C180)) -> -50.9050765 | E180: =-(Alfa1*COS(miia*C180)-Alfa2*COS(miib*C180)) -> -27.37838438 | F180: =(miia*Alfa1*COS(miia*C180)-miib*Alfa2*COS(miib*C180)) -> -206.6742184 | G180: =miia*Alfa1*SIN(miia*C180)-miib*Alfa2*SIN(miib*C180) -> -187.724879 | Q180: 0 | R180: 159 | S180: 1.59 | T180: 19.79455958 | U180: -1.906503892
A181: 0 | B181: 160 | C181: 1.6 | D181: =(Alfa1*SIN(miia*C181)-Alfa2*SIN(miib*C181)) -> -52.88779556 | E181: =-(Alfa1*COS(miia*C181)-Alfa2*COS(miib*C181)) -> -29.13538945 | F181: =(miia*Alfa1*COS(miia*C181)-miib*Alfa2*COS(miib*C181)) -> -189.5038709 | G181: =miia*Alfa1*SIN(miia*C181)-miib*Alfa2*SIN(miib*C181) -> -163.672817 | Q181: 0 | R181: 160 | S181: 1.6 | T181: 29.37654993 | U181: -4.320264194
A182: 0 | B182: 161 | C182: 1.61 | D182: =(Alfa1*SIN(miia*C182)-Alfa2*SIN(miib*C182)) -> -54.68799206 | E182: =-(Alfa1*COS(miia*C182)-Alfa2*COS(miib*C182)) -> -30.65215533 | F182: =(miia*Alfa1*COS(miia*C182)-miib*Alfa2*COS(miib*C182)) -> -170.1857034 | G182: =miia*Alfa1*SIN(miia*C182)-miib*Alfa2*SIN(miib*C182) -> -139.7149643 | Q182: 0 | R182: 161 | S182: 1.61 | T182: 38.0884306 | U182: -7.563147751
A183: 0 | B183: 162 | C183: 1.62 | D183: =(Alfa1*SIN(miia*C183)-Alfa2*SIN(miib*C183)) -> -56.28470419 | E183: =-(Alfa1*COS(miia*C183)-Alfa2*COS(miib*C183)) -> -31.93075195 | F183: =(miia*Alfa1*COS(miia*C183)-miib*Alfa2*COS(miib*C183)) -> -148.8266119 | G183: =miia*Alfa1*SIN(miia*C183)-miib*Alfa2*SIN(miib*C183) -> -116.0758257 | Q183: 0 | R183: 162 | S183: 1.62 | T183: 45.68135151 | U183: -11.47081449
A184: 0 | B184: 163 | C184: 1.63 | D184: =(Alfa1*SIN(miia*C184)-Alfa2*SIN(miib*C184)) -> -57.65814611 | E184: =-(Alfa1*COS(miia*C184)-Alfa2*COS(miib*C184)) -> -32.97545874 | F184: =(miia*Alfa1*COS(miia*C184)-miib*Alfa2*COS(miib*C184)) -> -125.5547356 | G184: =miia*Alfa1*SIN(miia*C184)-miib*Alfa2*SIN(miib*C184) -> -92.97243559 | Q184: 0 | R184: 163 | S184: 1.63 | T184: 51.94708022 | U184: -15.84276656
A185: 0 | B185: 164 | C185: 1.64 | D185: =(Alfa1*SIN(miia*C185)-Alfa2*SIN(miib*C185)) -> -58.78991523 | E185: =-(Alfa1*COS(miia*C185)-Alfa2*COS(miib*C185)) -> -33.79267926 | F185: =(miia*Alfa1*COS(miia*C185)-miib*Alfa2*COS(miib*C185)) -> -100.5183899 | G185: =miia*Alfa1*SIN(miia*C185)-miib*Alfa2*SIN(miib*C185) -> -70.61223734 | Q185: 0 | R185: 164 | S185: 1.64 | T185: 56.72535959 | U185: -20.45078828
A186: 0 | B186: 165 | C186: 1.65 | D186: =(Alfa1*SIN(miia*C186)-Alfa2*SIN(miib*C186)) -> -59.6631878 | E186: =-(Alfa1*COS(miia*C186)-Alfa2*COS(miib*C186)) -> -34.39083509 | F186: =(miia*Alfa1*COS(miia*C186)-miib*Alfa2*COS(miib*C186)) -> -73.88479468 | G186: =miia*Alfa1*SIN(miia*C186)-miib*Alfa2*SIN(miib*C186) -> -49.19106917 | Q186: 0 | R186: 165 | S186: 1.65 | T186: 59.90940209 | U186: -25.04858317
A187: 0 | B187: 166 | C187: 1.66 | D187: =(Alfa1*SIN(miia*C187)-Alfa2*SIN(miib*C187)) -> -60.26290074 | E187: =-(Alfa1*COS(miia*C187)-Alfa2*COS(miib*C187)) -> -34.78024025 | F187: =(miia*Alfa1*COS(miia*C187)-miib*Alfa2*COS(miib*C187)) -> -45.83861106 | G187: =miia*Alfa1*SIN(miia*C187)-miib*Alfa2*SIN(miib*C187) -> -28.89127622 | Q187: 0 | R187: 166 | S187: 1.66 | T187: 61.44931068 | U187: -29.3822183
A188: 0 | B188: 167 | C188: 1.67 | D188: =(Alfa1*SIN(miia*C188)-Alfa2*SIN(miib*C188)) -> -60.57591804 | E188: =-(Alfa1*COS(miia*C188)-Alfa2*COS(miib*C188)) -> -34.97295743 | F188: =(miia*Alfa1*COS(miia*C188)-miib*Alfa2*COS(miib*C188)) -> -16.58029981 | G188: =miia*Alfa1*SIN(miia*C188)-miib*Alfa2*SIN(miib*C188) -> -9.879967886 | Q188: 0 | R188: 167 | S188: 1.67 | T188: 61.35329833 | U188: -33.20095365
A189: 0 | B189: 168 | C189: 1.68 | D189: =(Alfa1*SIN(miia*C189)-Alfa2*SIN(miib*C189)) -> -60.59117983 | E189: =-(Alfa1*COS(miia*C189)-Alfa2*COS(miib*C189)) -> -34.98263757 | F189: =(miia*Alfa1*COS(miia*C189)-miib*Alfa2*COS(miib*C189)) -> 13.67568223 | G189: =miia*Alfa1*SIN(miia*C189)-miib*Alfa2*SIN(miib*C189) -> 7.692562615 | Q189: 0 | R189: 168 | S189: 1.68 | T189: 59.68666508 | U189: -36.2680173
A190: 0 | B190: 169 | C190: 1.69 | D190: =(Alfa1*SIN(miia*C190)-Alfa2*SIN(miib*C190)) -> -60.29983273 | E190: =-(Alfa1*COS(miia*C190)-Alfa2*COS(miib*C190)) -> -34.82434452 | F190: =(miia*Alfa1*COS(miia*C190)-miib*Alfa2*COS(miib*C190)) -> 44.70283023 | G190: =miia*Alfa1*SIN(miia*C190)-miib*Alfa2*SIN(miib*C190) -> 23.6942408 | Q190: 0 | R190: 169 | S190: 1.69 | T190: 56.56858056 | U190: -38.37088941
A191: 0 | B191: 170 | C191: 1.7 | D191: =(Alfa1*SIN(miia*C191)-Alfa2*SIN(miib*C191)) -> -59.69534007 | E191: =-(Alfa1*COS(miia*C191)-Alfa2*COS(miib*C191)) -> -34.51436668 | F191: =(miia*Alfa1*COS(miia*C191)-miib*Alfa2*COS(miib*C191)) -> 76.26466508 | G191: =miia*Alfa1*SIN(miia*C191)-miib*Alfa2*SIN(miib*C191) -> 38.01242183 | Q191: 0 | R191: 170 | S191: 1.7 | T191: 52.16680623 | U191: -39.33067645
A192: 0 | B192: 171 | C192: 1.71 | D192: =(Alfa1*SIN(miia*C192)-Alfa2*SIN(miib*C192)) -> -58.77357077 | E192: =-(Alfa1*COS(miia*C192)-Alfa2*COS(miib*C192)) -> -34.07001746 | F192: =(miia*Alfa1*COS(miia*C192)-miib*Alfa2*COS(miib*C192)) -> 108.1169124 | G192: =miia*Alfa1*SIN(miia*C192)-miib*Alfa2*SIN(miib*C192) -> 50.55489792 | Q192: 0 | R192: 171 | S192: 1.71 | T192: 46.69057309 | U192: -39.01019289
A193: 0 | B193: 172 | C193: 1.72 | D193: =(Alfa1*SIN(miia*C193)-Alfa2*SIN(miib*C193)) -> -57.53286611 | E193: =-(Alfa1*COS(miia*C193)-Alfa2*COS(miib*C193)) -> -33.50942675 | F193: =(miia*Alfa1*COS(miia*C193)-miib*Alfa2*COS(miib*C193)) -> 140.0097656 | G193: =miia*Alfa1*SIN(miia*C193)-miib*Alfa2*SIN(miib*C193) -> 61.25069257 | Q193: 0 | R193: 172 | S193: 1.72 | T193: 40.38190314 | U193: -37.32041873
A194: 0 | B194: 173 | C194: 1.73 | D194: =(Alfa1*SIN(miia*C194)-Alfa2*SIN(miib*C194)) -> -55.97408339 | E194: =-(Alfa1*COS(miia*C194)-Alfa2*COS(miib*C194)) -> -32.85132558 | F194: =(miia*Alfa1*COS(miia*C194)-miib*Alfa2*COS(miib*C194)) -> 171.6902108 | G194: =miia*Alfa1*SIN(miia*C194)-miib*Alfa2*SIN(miib*C194) -> 70.05063391 | Q194: 0 | R194: 173 | S194: 1.73 | T194: 33.50572387 | U194: -34.22506563
A195: 0 | B195: 174 | C195: 1.74 | D195: =(Alfa1*SIN(miia*C195)-Alfa2*SIN(miib*C195)) -> -54.10061628 | E195: =-(Alfa1*COS(miia*C195)-Alfa2*COS(miib*C195)) -> -32.11482613 | F195: =(miia*Alfa1*COS(miia*C195)-miib*Alfa2*COS(miib*C195)) -> 202.9043906 | G195: =miia*Alfa1*SIN(miia*C195)-miib*Alfa2*SIN(miib*C195) -> 76.92770176 | Q195: 0 | R195: 174 | S195: 1.74 | T195: 26.33917239 | U195: -29.7430592
A196: 0 | B196: 175 | C196: 1.75 | D196: =(Alfa1*SIN(miia*C196)-Alfa2*SIN(miib*C196)) -> -51.9183913 | E196: =-(Alfa1*COS(miia*C196)-Alfa2*COS(miib*C196)) -> -31.31919943 | F196: =(miia*Alfa1*COS(miia*C196)-miib*Alfa2*COS(miib*C196)) -> 233.3999843 | G196: =miia*Alfa1*SIN(miia*C196)-miib*Alfa2*SIN(miib*C196) -> 81.8771454 | Q196: 0 | R196: 175 | S196: 1.75 | T196: 19.16051676 | U196: -23.94882847
A197: 0 | B197: 176 | C197: 1.76 | D197: =(Alfa1*SIN(miia*C197)-Alfa2*SIN(miib*C197)) -> -49.43584062 | E197: =-(Alfa1*COS(miia*C197)-Alfa2*COS(miib*C197)) -> -30.48365304 | F197: =(miia*Alfa1*COS(miia*C197)-miib*Alfa2*COS(miib*C197)) -> 262.9285794 | G197: =miia*Alfa1*SIN(miia*C197)-miib*Alfa2*SIN(miib*C197) -> 84.91637117 | Q197: 0 | R197: 176 | S197: 1.76 | T197: 12.2381367 | U197: -16.97038026
A198: 0 | B198: 177 | C198: 1.77 | D198: =(Alfa1*SIN(miia*C198)-Alfa2*SIN(miib*C198)) -> -46.6638512 | E198: =-(Alfa1*COS(miia*C198)-Alfa2*COS(miib*C198)) -> -29.62711102 | F198: =(miia*Alfa1*COS(miia*C198)-miib*Alfa2*COS(miib*C198)) -> 291.2480139 | G198: =miia*Alfa1*SIN(miia*C198)-miib*Alfa2*SIN(miib*C198) -> 86.08460143 | Q198: 0 | R198: 177 | S198: 1.77 | T198: 5.820002095 | U198: -8.985225058
A199: 0 | B199: 178 | C199: 1.78 | D199: =(Alfa1*SIN(miia*C199)-Alfa2*SIN(miib*C199)) -> -43.61569082 | E199: =-(Alfa1*COS(miia*C199)-Alfa2*COS(miib*C199)) -> -28.76799837 | F199: =(miia*Alfa1*COS(miia*C199)-miib*Alfa2*COS(miib*C199)) -> 318.1246628 | G199: =miia*Alfa1*SIN(miia*C199)-miib*Alfa2*SIN(miib*C199) -> 85.44230871 | Q199: 0 | R199: 178 | S199: 1.78 | T199: 0.1240669777 | U199: -0.2143063097
A200: 0 | B200: 179 | C200: 1.79 | D200: =(Alfa1*SIN(miia*C200)-Alfa2*SIN(miib*C200)) -> -40.30691158 | E200: =-(Alfa1*COS(miia*C200)-Alfa2*COS(miib*C200)) -> -27.92403229 | F200: =(miia*Alfa1*COS(miia*C200)-miib*Alfa2*COS(miib*C200)) -> 343.3356498 | G200: =miia*Alfa1*SIN(miia*C200)-miib*Alfa2*SIN(miib*C200) -> 83.07043118 | Q200: 0 | R200: 179 | S200: 1.79 | T200: -4.670040712 | U200: 9.085834657
A201: 0 | B201: 180 | C201: 1.8 | D201: =(Alfa1*SIN(miia*C201)-Alfa2*SIN(miib*C201)) -> -36.75523174 | E201: =-(Alfa1*COS(miia*C201)-Alfa2*COS(miib*C201)) -> -27.11202236 | F201: =(miia*Alfa1*COS(miia*C201)-miib*Alfa2*COS(miib*C201)) -> 366.6709597 | G201: =miia*Alfa1*SIN(miia*C201)-miib*Alfa2*SIN(miib*C201) -> 79.06937769 | Q201: 0 | R201: 180 | S201: 1.8 | T201: -8.427706234 | U201: 18.63235565
... 680 more rows

Sheet TIME EVOLUTION
A50: 0 | B50: 0 | C50: =IF(B50<CALCULATIONS!$M$9,Alfa1*SIN(miia*B50)-Alfa2*SIN(miib*B50),CURRENTX) -> 0 | D50: =IF(B50<CALCULATIONS!$M$9,-(Alfa1*COS(miia*B50)-Alfa2*COS(miib*B50)),CURRENTY) -> 70 | G50: =0 -> 0 | H50: 0 | I50: =Aktina*SIN(epsilon*H50)*COS(D*H50) -> 0 | J50: =Aktina*COS(epsilon*H50)*COS(D*H50) -> 70
A51: =A50+1 -> 1 | B51: =B50+dt -> 0.01 | C51: =IF(B51<CALCULATIONS!$M$9,Alfa1*SIN(miia*B51)-Alfa2*SIN(miib*B51),CURRENTX) -> -0.002914844206 | D51: =IF(B51<CALCULATIONS!$M$9,-(Alfa1*COS(miia*B51)-Alfa2*COS(miib*B51)),CURRENTY) -> 69.82510934 | G51: =G50+1 -> 1 | H51: =H50+dt -> 0.01 | I51: =IF(H51<CALCULATIONS!$M$9,Aktina*SIN(epsilon*H51)*COS(D*H51),Aktina*SIN(epsilon*$M$9)*COS(D*$M$9)) -> 3.459256995 | J51: =IF(H51<CALCULATIONS!$M$9,Aktina*COS(epsilon*H51)*COS(D*H51),Aktina*COS(epsilon*$M$9)*COS(D*$M$9)) -> 69.12747601 | O51: =XRONOS -> 5.39 | P51: Fcurrent x | Q51: Fcurrenty | R51: Fcurrentvx | S51: Fcurrent vy | W51: VERTICAL | X51: COSTH | Y51: SINTH | Z51: AKATHETOS
A52: =A51+1 -> 2 | B52: 0.02 | C52: =IF(B52<CALCULATIONS!$M$9,Alfa1*SIN(miia*B52)-Alfa2*SIN(miib*B52),CURRENTX) -> -0.0232750583 | D52: =IF(B52<CALCULATIONS!$M$9,-(Alfa1*COS(miia*B52)-Alfa2*COS(miib*B52)),CURRENTY) -> 69.30174786 | G52: =G51+1 -> 2 | H52: 0.02 | I52: =IF(H52<CALCULATIONS!$M$9,Aktina*SIN(epsilon*H52)*COS(D*H52),Aktina*SIN(epsilon*$M$9)*COS(D*$M$9)) -> 6.676215403 | J52: =IF(H52<CALCULATIONS!$M$9,Aktina*COS(epsilon*H52)*COS(D*H52),Aktina*COS(epsilon*$M$9)*COS(D*$M$9)) -> 66.53946501 | P52: =Aktina*SIN(epsilon*O51)*COS(D*O51) -> 45.74311691 | Q52: =Aktina*COS(epsilon*O51)*COS(D*O51) -> -11.50792087 | R52: =Aktina*(epsilon*COS(epsilon*XRONOS)*COS(D*XRONOS)-SIN(epsilon*XRONOS)*D*SIN(D*XRONOS)) -> 694.8417683 | S52: =Aktina*(-epsilon*SIN(epsilon*O51)*COS(D*XRONOS)-D*COS(epsilon*XRONOS)*SIN(D*XRONOS)) -> -417.9975113 | V52: N | W52: =-FVX/FVY -> 1.662310778 | X52: =1/SQRT(1+W52^2) -> 0.5154860296 | Y52: =W52*X52 -> 0.856897983 | Z52: =AXF_2*X52+AYF_2*Y52 -> -10166.6274
A53: 3 | B53: 0.03 | C53: =IF(B53<CALCULATIONS!$M$9,Alfa1*SIN(miia*B53)-Alfa2*SIN(miib*B53),CURRENTX) -> -0.07830802667 | D53: =IF(B53<CALCULATIONS!$M$9,-(Alfa1*COS(miia*B53)-Alfa2*COS(miib*B53)),CURRENTY) -> 68.43383505 | G53: 3 | H53: 0.03 | I53: =IF(H53<CALCULATIONS!$M$9,Aktina*SIN(epsilon*H53)*COS(D*H53),Aktina*SIN(epsilon*XRONOS)*COS(D*XRONOS)) -> 9.419279336 | J53: =IF(H53<CALCULATIONS!$M$9,Aktina*COS(epsilon*H53)*COS(D*H53),Aktina*COS(epsilon*XRONOS)*COS(D*XRONOS)) -> 62.32352364 | P53: =Fcurrent_x -> -39.37738785 | Q53: =Fcurrenty -> -36.94489053 | V53: =(FVX^2+FVY^2)/AKATHETOS -> -64.20537531 | W53: RADIUS OF CURVATURE
A54: 4 | B54: 0.04 | C54: =IF(B54<CALCULATIONS!$M$9,Alfa1*SIN(miia*B54)-Alfa2*SIN(miib*B54),CURRENTX) -> -0.1848074499 | D54: =IF(B54<CALCULATIONS!$M$9,-(Alfa1*COS(miia*B54)-Alfa2*COS(miib*B54)),CURRENTY) -> 67.22786349 | G54: 4 | H54: 0.04 | I54: =IF(H54<CALCULATIONS!$M$9,Aktina*SIN(epsilon*H54)*COS(D*H54),Aktina*SIN(epsilon*XRONOS)*COS(D*XRONOS)) -> 11.4778212 | J54: =IF(H54<CALCULATIONS!$M$9,Aktina*COS(epsilon*H54)*COS(D*H54),Aktina*COS(epsilon*XRONOS)*COS(D*XRONOS)) -> 56.62186962 | V54: FCX | W54: =FCUR_X+FCURV*X52 -> 12.64614291
A55: 5 | B55: 0.05 | C55: =IF(B55<CALCULATIONS!$M$9,Alfa1*SIN(miia*B55)-Alfa2*SIN(miib*B55),CURRENTX) -> -0.3589221978 | D55: =IF(B55<CALCULATIONS!$M$9,-(Alfa1*COS(miia*B55)-Alfa2*COS(miib*B55)),CURRENTY) -> 65.69283946 | G55: 5 | H55: 0.05 | I55: =IF(H55<CALCULATIONS!$M$9,Aktina*SIN(epsilon*H55)*COS(D*H55),Aktina*SIN(epsilon*XRONOS)*COS(D*XRONOS)) -> 12.67159062 | J55: =IF(H55<CALCULATIONS!$M$9,Aktina*COS(epsilon*H55)*COS(D*H55),Aktina*COS(epsilon*XRONOS)*COS(D*XRONOS)) -> 49.62597037 | V55: FCY | W55: =FCUR_Y+FCURV*Y52 -> -66.52537748
A56: 6 | B56: 0.06 | C56: =IF(B56<CALCULATIONS!$M$9,Alfa1*SIN(miia*B56)-Alfa2*SIN(miib*B56),CURRENTX) -> -0.6159519316 | D56: =IF(B56<CALCULATIONS!$M$9,-(Alfa1*COS(miia*B56)-Alfa2*COS(miib*B56)),CURRENTY) -> 63.84020051 | G56: 6 | H56: 0.06 | I56: =IF(H56<CALCULATIONS!$M$9,Aktina*SIN(epsilon*H56)*COS(D*H56),Aktina*SIN(epsilon*XRONOS)*COS(D*XRONOS)) -> 12.85888144 | J56: =IF(H56<CALCULATIONS!$M$9,Aktina*COS(epsilon*H56)*COS(D*H56),Aktina*COS(epsilon*XRONOS)*COS(D*XRONOS)) -> 41.56926793 | O56: AXF_2 | P56: =Aktina*(-epsilon^2*SIN(epsilon*XRONOS)*COS(D*XRONOS)-2*D*epsilon*COS(epsilon*XRONOS)*SIN(D*XRONOS)-D^2*SIN(epsilon*XRONOS)*COS(D*XRONOS)) -> -11041.44265
A57: 7 | B57: 0.07 | C57: =IF(B57<CALCULATIONS!$M$9,Alfa1*SIN(miia*B57)-Alfa2*SIN(miib*B57),CURRENTX) -> -0.9701516457 | D57: =IF(B57<CALCULATIONS!$M$9,-(Alfa1*COS(miia*B57)-Alfa2*COS(miib*B57)),CURRENTY) -> 61.68371097 | G57: 7 | H57: 0.07 | I57: =IF(H57<CALCULATIONS!$M$9,Aktina*SIN(epsilon*H57)*COS(D*H57),Aktina*SIN(epsilon*XRONOS)*COS(D*XRONOS)) -> 11.9431215 | J57: =IF(H57<CALCULATIONS!$M$9,Aktina*COS(epsilon*H57)*COS(D*H57),Aktina*COS(epsilon*XRONOS)*COS(D*XRONOS)) -> 32.71832656 | O57: AYF_2 | P57: =Aktina*(-epsilon^2*COS(epsilon*XRONOS)*COS(D*XRONOS)+2*epsilon*D*SIN(epsilon*XRONOS)*SIN(D*XRONOS)-D^2*COS(epsilon*XRONOS)*COS(D*XRONOS)) -> -5222.229552 | X57: CURVATURE
A58: 8 | B58: 0.08 | C58: =IF(B58<CALCULATIONS!$M$9,Alfa1*SIN(miia*B58)-Alfa2*SIN(miib*B58),CURRENTX) -> -1.434547187 | D58: =IF(B58<CALCULATIONS!$M$9,-(Alfa1*COS(miia*B58)-Alfa2*COS(miib*B58)),CURRENTY) -> 59.23933627 | G58: 8 | H58: 0.08 | I58: =IF(H58<CALCULATIONS!$M$9,Aktina*SIN(epsilon*H58)*COS(D*H58),Aktina*SIN(epsilon*XRONOS)*COS(D*XRONOS)) -> 9.877612925 | J58: =IF(H58<CALCULATIONS!$M$9,Aktina*COS(epsilon*H58)*COS(D*H58),Aktina*COS(epsilon*XRONOS)*COS(D*XRONOS)) -> 23.36275155 | W58: 0 | X58: =FCX+FCURV*COS(W58) -> -51.5592324 | Y58: =FCY+FCURV*SIN(W58) -> -66.52537748
A59: 9 | B59: 0.09 | C59: =IF(B59<CALCULATIONS!$M$9,Alfa1*SIN(miia*B59)-Alfa2*SIN(miib*B59),CURRENTX) -> -2.020763701 | D59: =IF(B59<CALCULATIONS!$M$9,-(Alfa1*COS(miia*B59)-Alfa2*COS(miib*B59)),CURRENTY) -> 56.52509737 | G59: 9 | H59: 0.09 | I59: =IF(H59<CALCULATIONS!$M$9,Aktina*SIN(epsilon*H59)*COS(D*H59),Aktina*SIN(epsilon*XRONOS)*COS(D*XRONOS)) -> 6.668225244 | J59: =IF(H59<CALCULATIONS!$M$9,Aktina*COS(epsilon*H59)*COS(D*H59),Aktina*COS(epsilon*XRONOS)*COS(D*XRONOS)) -> 13.80427558 | W59: =W58+2*PI()/100 -> 0.06283185307 | X59: -51.43253775 | Y59: -70.55686635
A60: 10 | B60: 0.1 | C60: =IF(B60<CALCULATIONS!$M$9,Alfa1*SIN(miia*B60)-Alfa2*SIN(miib*B60),CURRENTX) -> -2.738868823 | D60: =IF(B60<CALCULATIONS!$M$9,-(Alfa1*COS(miia*B60)-Alfa2*COS(miib*B60)),CURRENTY) -> 53.56090669 | G60: 10 | H60: 0.1 | I60: =IF(H60<CALCULATIONS!$M$9,Aktina*SIN(epsilon*H60)*COS(D*H60),Aktina*SIN(epsilon*XRONOS)*COS(D*XRONOS)) -> 2.373925471 | J60: =IF(H60<CALCULATIONS!$M$9,Aktina*COS(epsilon*H60)*COS(D*H60),Aktina*COS(epsilon*XRONOS)*COS(D*XRONOS)) -> 4.345441426 | Q60: =FVX/10 -> 69.48417683 | R60: =FVY/10 -> -41.79975113 | S60: =AXF_2/100 -> -110.4144265 | T60: =AYF_2/100 -> -52.22229552 | W60: =W59+2*PI()/100 -> 0.1256637061 | X60: -51.05295383 | Y60: -74.57244478
A61: 11 | B61: 0.11 | C61: =IF(B61<CALCULATIONS!$M$9,Alfa1*SIN(miia*B61)-Alfa2*SIN(miib*B61),CURRENTX) -> -3.597232282 | D61: =IF(B61<CALCULATIONS!$M$9,-(Alfa1*COS(miia*B61)-Alfa2*COS(miib*B61)),CURRENTY) -> 50.3683872 | G61: 11 | H61: 0.11 | I61: =IF(H61<CALCULATIONS!$M$9,Aktina*SIN(epsilon*H61)*COS(D*H61),Aktina*SIN(epsilon*XRONOS)*COS(D*XRONOS)) -> -2.894883468 | J61: =IF(H61<CALCULATIONS!$M$9,Aktina*COS(epsilon*H61)*COS(D*H61),Aktina*COS(epsilon*XRONOS)*COS(D*XRONOS)) -> -4.721674854 | W61: 0.1884955592 | X61: -50.42197868 | Y61: -78.55626511
A62: 12 | B62: 0.12 | C62: =IF(B62<CALCULATIONS!$M$9,Alfa1*SIN(miia*B62)-Alfa2*SIN(miib*B62),CURRENTX) -> -4.602403419 | D62: =IF(B62<CALCULATIONS!$M$9,-(Alfa1*COS(miia*B62)-Alfa2*COS(miib*B62)),CURRENTY) -> 46.9706763 | G62: 12 | H62: 0.12 | I62: =IF(H62<CALCULATIONS!$M$9,Aktina*SIN(epsilon*H62)*COS(D*H62),Aktina*SIN(epsilon*XRONOS)*COS(D*XRONOS)) -> -8.98015669 | J62: =IF(H62<CALCULATIONS!$M$9,Aktina*COS(epsilon*H62)*COS(D*H62),Aktina*COS(epsilon*XRONOS)*COS(D*XRONOS)) -> -13.12625864 | Q62: =FCUR_X -> 45.74311691 | R62: =FCUR_Y -> -11.50792087 | S62: =FCUR_X -> 45.74311691 | T62: =FCUR_Y -> -11.50792087 | W62: 0.2513274123 | X62: -49.54210247 | Y62: -82.49260502
A63: 13 | B63: 0.13 | C63: =IF(B63<CALCULATIONS!$M$9,Alfa1*SIN(miia*B63)-Alfa2*SIN(miib*B63),CURRENTX) -> -5.759007941 | D63: =IF(B63<CALCULATIONS!$M$9,-(Alfa1*COS(miia*B63)-Alfa2*COS(miib*B63)),CURRENTY) -> 43.3922166 | G63: 13 | H63: 0.13 | I63: =IF(H63<CALCULATIONS!$M$9,Aktina*SIN(epsilon*H63)*COS(D*H63),Aktina*SIN(epsilon*XRONOS)*COS(D*XRONOS)) -> -15.68198848 | J63: =IF(H63<CALCULATIONS!$M$9,Aktina*COS(epsilon*H63)*COS(D*H63),Aktina*COS(epsilon*XRONOS)*COS(D*XRONOS)) -> -20.62864737 | Q63: =Q62+Q60 -> 115.2272937 | R63: =R62+R60 -> -53.307672 | S63: =S62+S60 -> -64.67130959 | T63: =T62+T60 -> -63.7302164 | W63: 0.3141592654 | X63: -48.41679766 | Y63: -86.36592958
A64: 14 | B64: 0.14 | C64: =IF(B64<CALCULATIONS!$M$9,Alfa1*SIN(miia*B64)-Alfa2*SIN(miib*B64),CURRENTX) -> -7.069665038 | D64: =IF(B64<CALCULATIONS!$M$9,-(Alfa1*COS(miia*B64)-Alfa2*COS(miib*B64)),CURRENTY) -> 39.65853541 | G64: 14 | H64: 0.14 | I64: =IF(H64<CALCULATIONS!$M$9,Aktina*SIN(epsilon*H64)*COS(D*H64),Aktina*SIN(epsilon*XRONOS)*COS(D*XRONOS)) -> -22.76615529 | J64: =IF(H64<CALCULATIONS!$M$9,Aktina*COS(epsilon*H64)*COS(D*H64),Aktina*COS(epsilon*XRONOS)*COS(D*XRONOS)) -> -27.02893192 | Q64: =-1/20*R60+18/20*Q60+Q62 -> 110.3688636 | R64: =1/20*Q60+18/20*R60+R62 -> -45.65348805 | S64: =-1/20*T60+18/20*S60+S62 -> -51.01875216 | T64: =1/20*S60+18/20*T60+T62 -> -64.02870817 | W64: 0.3769911184 | X64: -47.05050532 | Y64: -90.16095254
A65: 15 | B65: 0.15 | C65: =IF(B65<CALCULATIONS!$M$9,Alfa1*SIN(miia*B65)-Alfa2*SIN(miib*B65),CURRENTX) -> -8.53492578 | D65: =IF(B65<CALCULATIONS!$M$9,-(Alfa1*COS(miia*B65)-Alfa2*COS(miib*B65)),CURRENTY) -> 35.79601525 | G65: 15 | H65: 0.15 | I65: =IF(H65<CALCULATIONS!$M$9,Aktina*SIN(epsilon*H65)*COS(D*H65),Aktina*SIN(epsilon*XRONOS)*COS(D*XRONOS)) -> -29.97312425 | J65: =IF(H65<CALCULATIONS!$M$9,Aktina*COS(epsilon*H65)*COS(D*H65),Aktina*COS(epsilon*XRONOS)*COS(D*XRONOS)) -> -32.17393532 | Q65: =1/20*R60+18/20*Q60+Q62 -> 106.1888885 | R65: =-1/20*Q60+18/20*R60+R62 -> -52.60190573 | S65: =1/20*T60+18/20*S60+S62 -> -56.24098171 | T65: =-1/20*S60+18/20*T60+T62 -> -52.98726552 | W65: 0.4398229715 | X65: -45.44861758 | Y65: -93.86269669
A66: 16 | B66: 0.16 | C66: =IF(B66<CALCULATIONS!$M$9,Alfa1*SIN(miia*B66)-Alfa2*SIN(miib*B66),CURRENTX) -> -10.1532335 | D66: =IF(B66<CALCULATIONS!$M$9,-(Alfa1*COS(miia*B66)-Alfa2*COS(miib*B66)),CURRENTY) -> 31.83165758 | G66: 16 | H66: 0.16 | I66: =IF(H66<CALCULATIONS!$M$9,Aktina*SIN(epsilon*H66)*COS(D*H66),Aktina*SIN(epsilon*XRONOS)*COS(D*XRONOS)) -> -37.02817113 | J66: =IF(H66<CALCULATIONS!$M$9,Aktina*COS(epsilon*H66)*COS(D*H66),Aktina*COS(epsilon*XRONOS)*COS(D*XRONOS)) -> -35.96230043 | Q66: =Q63 -> 115.2272937 | R66: =R63 -> -53.307672 | S66: =S63 -> -64.67130959 | T66: =T63 -> -63.7302164 | W66: 0.5026548246 | X66: -43.61745636 | Y66: -97.45655293
A67: 17 | B67: 0.17 | C67: =IF(B67<CALCULATIONS!$M$9,Alfa1*SIN(miia*B67)-Alfa2*SIN(miib*B67),CURRENTX) -> -11.92090666 | D67: =IF(B67<CALCULATIONS!$M$9,-(Alfa1*COS(miia*B67)-Alfa2*COS(miib*B67)),CURRENTY) -> 27.79284194 | G67: 17 | H67: 0.17 | I67: =IF(H67<CALCULATIONS!$M$9,Aktina*SIN(epsilon*H67)*COS(D*H67),Aktina*SIN(epsilon*XRONOS)*COS(D*XRONOS)) -> -43.65220694 | J67: =IF(H67<CALCULATIONS!$M$9,Aktina*COS(epsilon*H67)*COS(D*H67),Aktina*COS(epsilon*XRONOS)*COS(D*XRONOS)) -> -38.34749404 | W67: 0.5654866776 | X67: -41.56424843 | Y67: -100.9283379
A68: 18 | B68: 0.18 | C68: =IF(B68<CALCULATIONS!$M$9,Alfa1*SIN(miia*B68)-Alfa2*SIN(miib*B68),CURRENTX) -> -13.8321444 | D68: =IF(B68<CALCULATIONS!$M$9,-(Alfa1*COS(miia*B68)-Alfa2*COS(miib*B68)),CURRENTY) -> 23.70708298 | G68: 18 | H68: 0.18 | I68: =IF(H68<CALCULATIONS!$M$9,Aktina*SIN(epsilon*H68)*COS(D*H68),Aktina*SIN(epsilon*XRONOS)*COS(D*XRONOS)) -> -49.5728826 | J68: =IF(H68<CALCULATIONS!$M$9,Aktina*COS(epsilon*H68)*COS(D*H68),Aktina*COS(epsilon*XRONOS)*COS(D*XRONOS)) -> -39.33861789 | M68: d=SQRT(epsilon^2-4*lamda) | W68: 0.6283185307 | X68: -39.29709684 | Y68: -104.2643502
A69: 19 | B69: 0.19 | C69: =IF(B69<CALCULATIONS!$M$9,Alfa1*SIN(miia*B69)-Alfa2*SIN(miib*B69),CURRENTX) -> -15.87905484 | D69: =IF(B69<CALCULATIONS!$M$9,-(Alfa1*COS(miia*B69)-Alfa2*COS(miib*B69)),CURRENTY) -> 19.60178761 | G69: 19 | H69: 0.19 | I69: =IF(H69<CALCULATIONS!$M$9,Aktina*SIN(epsilon*H69)*COS(D*H69),Aktina*SIN(epsilon*XRONOS)*COS(D*XRONOS)) -> -54.53552925 | J69: =IF(H69<CALCULATIONS!$M$9,Aktina*COS(epsilon*H69)*COS(D*H69),Aktina*COS(epsilon*XRONOS)*COS(D*XRONOS)) -> -38.99900476 | W69: 0.6911503838 | X69: -36.82494902 | Y69: -107.451424
A70: 20 | B70: 0.2 | C70: =IF(B70<CALCULATIONS!$M$9,Alfa1*SIN(miia*B70)-Alfa2*SIN(miib*B70),CURRENTX) -> -18.051706 | D70: =IF(B70<CALCULATIONS!$M$9,-(Alfa1*COS(miia*B70)-Alfa2*COS(miib*B70)),CURRENTY) -> 15.50401475 | G70: 20 | H70: 0.2 | I70: =IF(H70<CALCULATIONS!$M$9,Aktina*SIN(epsilon*H70)*COS(D*H70),Aktina*SIN(epsilon*XRONOS)*COS(D*XRONOS)) -> -58.31349727 | J70: =IF(H70<CALCULATIONS!$M$9,Aktina*COS(epsilon*H70)*COS(D*H70),Aktina*COS(epsilon*XRONOS)*COS(D*XRONOS)) -> -37.44266601 | W70: 0.7539822369 | X70: -34.1575614 | Y70: -110.4769813
A71: 21 | B71: 0.21 | C71: =IF(B71<CALCULATIONS!$M$9,Alfa1*SIN(miia*B71)-Alfa2*SIN(miib*B71),CURRENTX) -> -20.33819864 | D71: =IF(B71<CALCULATIONS!$M$9,-(Alfa1*COS(miia*B71)-Alfa2*COS(miib*B71)),CURRENTY) -> 11.44023979 | G71: 21 | H71: 0.21 | I71: =IF(H71<CALCULATIONS!$M$9,Aktina*SIN(epsilon*H71)*COS(D*H71),Aktina*SIN(epsilon*XRONOS)*COS(D*XRONOS)) -> -60.71747987 | J71: =IF(H71<CALCULATIONS!$M$9,Aktina*COS(epsilon*H71)*COS(D*H71),Aktina*COS(epsilon*XRONOS)*COS(D*XRONOS)) -> -34.82874241 | W71: 0.8168140899 | X71: -31.30546094 | Y71: -113.3290818
A72: 22 | B72: 0.22 | C72: =IF(B72<CALCULATIONS!$M$9,Alfa1*SIN(miia*B72)-Alfa2*SIN(miib*B72),CURRENTX) -> -22.72476071 | D72: =IF(B72<CALCULATIONS!$M$9,-(Alfa1*COS(miia*B72)-Alfa2*COS(miib*B72)),CURRENTY) -> 7.436126264 | G72: 22 | H72: 0.22 | I72: =IF(H72<CALCULATIONS!$M$9,Aktina*SIN(epsilon*H72)*COS(D*H72),Aktina*SIN(epsilon*XRONOS)*COS(D*XRONOS)) -> -61.60344672 | J72: =IF(H72<CALCULATIONS!$M$9,Aktina*COS(epsilon*H72)*COS(D*H72),Aktina*COS(epsilon*XRONOS)*COS(D*XRONOS)) -> -31.35418955 | W72: 0.879645943 | X72: -28.27990358 | Y72: -115.9964694
A73: 23 | B73: 0.23 | C73: =IF(B73<CALCULATIONS!$M$9,Alfa1*SIN(miia*B73)-Alfa2*SIN(miib*B73),CURRENTX) -> -25.19586226 | D73: =IF(B73<CALCULATIONS!$M$9,-(Alfa1*COS(miia*B73)-Alfa2*COS(miib*B73)),CURRENTY) -> 3.516306745 | G73: 23 | H73: 0.23 | I73: =IF(H73<CALCULATIONS!$M$9,Aktina*SIN(epsilon*H73)*COS(D*H73),Aktina*SIN(epsilon*XRONOS)*COS(D*XRONOS)) -> -60.87886755 | J73: =IF(H73<CALCULATIONS!$M$9,Aktina*COS(epsilon*H73)*COS(D*H73),Aktina*COS(epsilon*XRONOS)*COS(D*XRONOS)) -> -27.24499919 | W73: 0.9424777961 | X73: -25.09282981 | Y73: -118.4686172
A74: 24 | B74: 0.24 | C74: =IF(B74<CALCULATIONS!$M$9,Alfa1*SIN(miia*B74)-Alfa2*SIN(miib*B74),CURRENTX) -> -27.7343498 | D74: =IF(B74<CALCULATIONS!$M$9,-(Alfa1*COS(miia*B74)-Alfa2*COS(miib*B74)),CURRENTY) -> -0.2958248204 | G74: 24 | H74: 0.24 | I74: =IF(H74<CALCULATIONS!$M$9,Aktina*SIN(epsilon*H74)*COS(D*H74),Aktina*SIN(epsilon*XRONOS)*COS(D*XRONOS)) -> -58.50697263 | J74: =IF(H74<CALCULATIONS!$M$9,Aktina*COS(epsilon*H74)*COS(D*H74),Aktina*COS(epsilon*XRONOS)*COS(D*XRONOS)) -> -22.74631562 | W74: 1.005309649 | X74: -21.75681756 | Y74: -120.7357688
A75: 25 | B75: 0.25 | C75: =IF(B75<CALCULATIONS!$M$9,Alfa1*SIN(miia*B75)-Alfa2*SIN(miib*B75),CURRENTX) -> -30.32159887 | D75: =IF(B75<CALCULATIONS!$M$9,-(Alfa1*COS(miia*B75)-Alfa2*COS(miib*B75)),CURRENTY) -> -3.978307451 | G75: 25 | H75: 0.25 | I75: =IF(H75<CALCULATIONS!$M$9,Aktina*SIN(epsilon*H75)*COS(D*H75),Aktina*SIN(epsilon*XRONOS)*COS(D*XRONOS)) -> -54.50887466 | J75: =IF(H75<CALCULATIONS!$M$9,Aktina*COS(epsilon*H75)*COS(D*H75),Aktina*COS(epsilon*XRONOS)*COS(D*XRONOS)) -> -18.11185005 | W75: 1.068141502 | X75: -18.28503254 | Y75: -122.7889768
A76: 26 | B76: 0.26 | C76: =IF(B76<CALCULATIONS!$M$9,Alfa1*SIN(miia*B76)-Alfa2*SIN(miib*B76),CURRENTX) -> -32.93768331 | D76: =IF(B76<CALCULATIONS!$M$9,-(Alfa1*COS(miia*B76)-Alfa2*COS(miib*B76)),CURRENTY) -> -7.510792243 | G76: 26 | H76: 0.26 | I76: =IF(H76<CALCULATIONS!$M$9,Aktina*SIN(epsilon*H76)*COS(D*H76),Aktina*SIN(epsilon*XRONOS)*COS(D*XRONOS)) -> -48.96346096 | J76: =IF(H76<CALCULATIONS!$M$9,Aktina*COS(epsilon*H76)*COS(D*H76),Aktina*COS(epsilon*XRONOS)*COS(D*XRONOS)) -> -13.59302287 | W76: 1.130973355 | X76: -14.6911763 | Y76: -124.620138
A77: 27 | B77: 0.27 | C77: =IF(B77<CALCULATIONS!$M$9,Alfa1*SIN(miia*B77)-Alfa2*SIN(miib*B77),CURRENTX) -> -35.56155949 | D77: =IF(B77<CALCULATIONS!$M$9,-(Alfa1*COS(miia*B77)-Alfa2*COS(miib*B77)),CURRENTY) -> -10.87470458 | G77: 27 | H77: 0.27 | I77: =IF(H77<CALCULATIONS!$M$9,Aktina*SIN(epsilon*H77)*COS(D*H77),Aktina*SIN(epsilon*XRONOS)*COS(D*XRONOS)) -> -42.00505287 | J77: =IF(H77<CALCULATIONS!$M$9,Aktina*COS(epsilon*H77)*COS(D*H77),Aktina*COS(epsilon*XRONOS)*COS(D*XRONOS)) -> -9.428274313 | W77: 1.193805208 | X77: -10.98943215 | Y77: -126.2220257
A78: 28 | B78: 0.28 | C78: =IF(B78<CALCULATIONS!$M$9,Alfa1*SIN(miia*B78)-Alfa2*SIN(miib*B78),CURRENTX) -> -38.1712639 | D78: =IF(B78<CALCULATIONS!$M$9,-(Alfa1*COS(miia*B78)-Alfa2*COS(miib*B78)),CURRENTY) -> -14.05338795 | G78: 28 | H78: 0.28 | I78: =IF(H78<CALCULATIONS!$M$9,Aktina*SIN(epsilon*H78)*COS(D*H78),Aktina*SIN(epsilon*XRONOS)*COS(D*XRONOS)) -> -33.81891758 | J78: =IF(H78<CALCULATIONS!$M$9,Aktina*COS(epsilon*H78)*COS(D*H78),Aktina*COS(epsilon*XRONOS)*COS(D*XRONOS)) -> -5.832976176 | W78: 1.256637061 | X78: -7.194409187 | Y78: -127.588318
A79: 29 | B79: 0.29 | C79: =IF(B79<CALCULATIONS!$M$9,Alfa1*SIN(miia*B79)-Alfa2*SIN(miib*B79),CURRENTX) -> -40.7441219 | D79: =IF(B79<CALCULATIONS!$M$9,-(Alfa1*COS(miia*B79)-Alfa2*COS(miib*B79)),CURRENTY) -> -17.03222795 | G79: 29 | H79: 0.29 | I79: =IF(H79<CALCULATIONS!$M$9,Aktina*SIN(epsilon*H79)*COS(D*H79),Aktina*SIN(epsilon*XRONOS)*COS(D*XRONOS)) -> -24.6348028 | J79: =IF(H79<CALCULATIONS!$M$9,Aktina*COS(epsilon*H79)*COS(D*H79),Aktina*COS(epsilon*XRONOS)*COS(D*XRONOS)) -> -2.990352687 | W79: 1.319468915 | X79: -3.321084627 | Y79: -128.7136229
A80: 30 | B80: 0.3 | C80: =IF(B80<CALCULATIONS!$M$9,Alfa1*SIN(miia*B80)-Alfa2*SIN(miib*B80),CURRENTX) -> -43.25696585 | D80: =IF(B80<CALCULATIONS!$M$9,-(Alfa1*COS(miia*B80)-Alfa2*COS(miib*B80)),CURRENTY) -> -19.79875551 | G80: 30 | H80: 0.3 | I80: =IF(H80<CALCULATIONS!$M$9,Aktina*SIN(epsilon*H80)*COS(D*H80),Aktina*SIN(epsilon*XRONOS)*COS(D*XRONOS)) -> -14.71874272 | J80: =IF(H80<CALCULATIONS!$M$9,Aktina*COS(epsilon*H80)*COS(D*H80),Aktina*COS(epsilon*XRONOS)*COS(D*XRONOS)) -> -1.043777348 | W80: 1.382300768 | X80: 0.6152552851 | Y80: -129.5934991
A81: 31 | B81: 0.31 | C81: =IF(B81<CALCULATIONS!$M$9,Alfa1*SIN(miia*B81)-Alfa2*SIN(miib*B81),CURRENTX) -> -45.68636021 | D81: =IF(B81<CALCULATIONS!$M$9,-(Alfa1*COS(miia*B81)-Alfa2*COS(miib*B81)),CURRENTY) -> -22.34272821 | G81: 31 | H81: 0.31 | I81: =IF(H81<CALCULATIONS!$M$9,Aktina*SIN(epsilon*H81)*COS(D*H81),Aktina*SIN(epsilon*XRONOS)*COS(D*XRONOS)) -> -4.363452284 | J81: =IF(H81<CALCULATIONS!$M$9,Aktina*COS(epsilon*H81)*COS(D*H81),Aktina*COS(epsilon*XRONOS)*COS(D*XRONOS)) -> -0.09075686375 | W81: 1.445132621 | X81: 4.599075614 | Y81: -130.2244742
A82: 32 | B82: 0.32 | C82: =IF(B82<CALCULATIONS!$M$9,Alfa1*SIN(miia*B82)-Alfa2*SIN(miib*B82),CURRENTX) -> -48.00883149 | D82: =IF(B82<CALCULATIONS!$M$9,-(Alfa1*COS(miia*B82)-Alfa2*COS(miib*B82)),CURRENTY) -> -24.65618914 | G82: 32 | H82: 0.32 | I82: =IF(H82<CALCULATIONS!$M$9,Aktina*SIN(epsilon*H82)*COS(D*H82),Aktina*SIN(epsilon*XRONOS)*COS(D*XRONOS)) -> 6.12231719 | J82: =IF(H82<CALCULATIONS!$M$9,Aktina*COS(epsilon*H82)*COS(D*H82),Aktina*COS(epsilon*XRONOS)*COS(D*XRONOS)) -> -0.1788449963 | W82: 1.507964474 | X82: 8.614654042 | Y82: -130.6040581
A83: 33 | B83: 0.33 | C83: =IF(B83<CALCULATIONS!$M$9,Alfa1*SIN(miia*B83)-Alfa2*SIN(miib*B83),CURRENTX) -> -50.20110086 | D83: =IF(B83<CALCULATIONS!$M$9,-(Alfa1*COS(miia*B83)-Alfa2*COS(miib*B83)),CURRENTY) -> -26.73350278 | G83: 33 | H83: 0.33 | I83: =IF(H83<CALCULATIONS!$M$9,Aktina*SIN(epsilon*H83)*COS(D*H83),Aktina*SIN(epsilon*XRONOS)*COS(D*XRONOS)) -> 16.42504702 | J83: =IF(H83<CALCULATIONS!$M$9,Aktina*COS(epsilon*H83)*COS(D*H83),Aktina*COS(epsilon*XRONOS)*COS(D*XRONOS)) -> -1.303651228 | W83: 1.570796327 | X83: 12.64614291 | Y83: -130.7307528
A84: 34 | B84: 0.34 | C84: =IF(B84<CALCULATIONS!$M$9,Alfa1*SIN(miia*B84)-Alfa2*SIN(miib*B84),CURRENTX) -> -52.24031687 | D84: =IF(B84<CALCULATIONS!$M$9,-(Alfa1*COS(miia*B84)-Alfa2*COS(miib*B84)),CURRENTY) -> -28.57136756 | G84: 34 | H84: 0.34 | I84: =IF(H84<CALCULATIONS!$M$9,Aktina*SIN(epsilon*H84)*COS(D*H84),Aktina*SIN(epsilon*XRONOS)*COS(D*XRONOS)) -> 26.23790586 | J84: =IF(H84<CALCULATIONS!$M$9,Aktina*COS(epsilon*H84)*COS(D*H84),Aktina*COS(epsilon*XRONOS)*COS(D*XRONOS)) -> -3.409024578 | W84: 1.63362818 | X84: 16.67763179 | Y84: -130.6040581
A85: 35 | B85: 0.35 | C85: =IF(B85<CALCULATIONS!$M$9,Alfa1*SIN(miia*B85)-Alfa2*SIN(miib*B85),CURRENTX) -> -54.10428617 | D85: =IF(B85<CALCULATIONS!$M$9,-(Alfa1*COS(miia*B85)-Alfa2*COS(miib*B85)),CURRENTY) -> -30.1688053 | G85: 35 | H85: 0.35 | I85: =IF(H85<CALCULATIONS!$M$9,Aktina*SIN(epsilon*H85)*COS(D*H85),Aktina*SIN(epsilon*XRONOS)*COS(D*XRONOS)) -> 35.27194392 | J85: =IF(H85<CALCULATIONS!$M$9,Aktina*COS(epsilon*H85)*COS(D*H85),Aktina*COS(epsilon*XRONOS)*COS(D*XRONOS)) -> -6.389405153 | L85: x=R/s(sin(et/2)cos(Dt/2)+cos(et/2)sin(Dt/2)+sin(et/2)cos(Dt/2)-cos(et/2)sin(Dt/2))=R*sin(et/2)*cos(Dt/2) | W85: 1.696460033 | X85: 20.69321021 | Y85: -130.2244742
A86: 36 | B86: 0.36 | C86: =IF(B86<CALCULATIONS!$M$9,Alfa1*SIN(miia*B86)-Alfa2*SIN(miib*B86),CURRENTX) -> -55.77169978 | D86: =IF(B86<CALCULATIONS!$M$9,-(Alfa1*COS(miia*B86)-Alfa2*COS(miib*B86)),CURRENTY) -> -31.52712747 | G86: 36 | H86: 0.36 | I86: =IF(H86<CALCULATIONS!$M$9,Aktina*SIN(epsilon*H86)*COS(D*H86),Aktina*SIN(epsilon*XRONOS)*COS(D*XRONOS)) -> 43.26659075 | J86: =IF(H86<CALCULATIONS!$M$9,Aktina*COS(epsilon*H86)*COS(D*H86),Aktina*COS(epsilon*XRONOS)*COS(D*XRONOS)) -> -10.09424856 | L86: y=-R(e-e+D)cos((e+D)t/2)-R(e-e-D_cos((e-D)t/2)= | W86: 1.759291886 | X86: 24.67703054 | Y86: -129.5934991
A87: 37 | B87: 0.37 | C87: =IF(B87<CALCULATIONS!$M$9,Alfa1*SIN(miia*B87)-Alfa2*SIN(miib*B87),CURRENTX) -> -57.22235276 | D87: =IF(B87<CALCULATIONS!$M$9,-(Alfa1*COS(miia*B87)-Alfa2*COS(miib*B87)),CURRENTY) -> -32.64987893 | G87: 37 | H87: 0.37 | I87: =IF(H87<CALCULATIONS!$M$9,Aktina*SIN(epsilon*H87)*COS(D*H87),Aktina*SIN(epsilon*XRONOS)*COS(D*XRONOS)) -> 49.99904829 | J87: =IF(H87<CALCULATIONS!$M$9,Aktina*COS(epsilon*H87)*COS(D*H87),Aktina*COS(epsilon*XRONOS)*COS(D*XRONOS)) -> -14.33434464 | W87: 1.822123739 | X87: 28.61337046 | Y87: -128.7136229
A88: 38 | B88: 0.38 | C88: =IF(B88<CALCULATIONS!$M$9,Alfa1*SIN(miia*B88)-Alfa2*SIN(miib*B88),CURRENTX) -> -58.43735488 | D88: =IF(B88<CALCULATIONS!$M$9,-(Alfa1*COS(miia*B88)-Alfa2*COS(miib*B88)),CURRENTY) -> -33.54275973 | G88: 38 | H88: 0.38 | I88: =IF(H88<CALCULATIONS!$M$9,Aktina*SIN(epsilon*H88)*COS(D*H88),Aktina*SIN(epsilon*XRONOS)*COS(D*XRONOS)) -> 55.2922147 | J88: =IF(H88<CALCULATIONS!$M$9,Aktina*COS(epsilon*H88)*COS(D*H88),Aktina*COS(epsilon*XRONOS)*COS(D*XRONOS)) -> -18.88977543 | W88: 1.884955592 | X88: 32.48669502 | Y88: -127.588318
A89: 39 | B89: 0.39 | C89: =IF(B89<CALCULATIONS!$M$9,Alfa1*SIN(miia*B89)-Alfa2*SIN(miib*B89),CURRENTX) -> -59.39933041 | D89: =IF(B89<CALCULATIONS!$M$9,-(Alfa1*COS(miia*B89)-Alfa2*COS(miib*B89)),CURRENTY) -> -34.21352589 | G89: 39 | H89: 0.39 | I89: =IF(H89<CALCULATIONS!$M$9,Aktina*SIN(epsilon*H89)*COS(D*H89),Aktina*SIN(epsilon*XRONOS)*COS(D*XRONOS)) -> 59.02083266 | J89: =IF(H89<CALCULATIONS!$M$9,Aktina*COS(epsilon*H89)*COS(D*H89),Aktina*COS(epsilon*XRONOS)*COS(D*XRONOS)) -> -23.51919093 | W89: 1.947787445 | X89: 36.28171798 | Y89: -126.2220257
A90: 40 | B90: 0.4 | C90: =IF(B90<CALCULATIONS!$M$9,Alfa1*SIN(miia*B90)-Alfa2*SIN(miib*B90),CURRENTX) -> -60.09260481 | D90: =IF(B90<CALCULATIONS!$M$9,-(Alfa1*COS(miia*B90)-Alfa2*COS(miib*B90)),CURRENTY) -> -34.67187019 | G90: 40 | H90: 0.4 | I90: =IF(H90<CALCULATIONS!$M$9,Aktina*SIN(epsilon*H90)*COS(D*H90),Aktina*SIN(epsilon*XRONOS)*COS(D*XRONOS)) -> 61.11562597 | J90: =IF(H90<CALCULATIONS!$M$9,Aktina*COS(epsilon*H90)*COS(D*H90),Aktina*COS(epsilon*XRONOS)*COS(D*XRONOS)) -> -27.97002791 | W90: 2.010619298 | X90: =FCX+FCURV*COS(W90) -> 39.98346213 | Y90: =FCY+FCURV*SIN(W90) -> -124.620138
A91: 41 | B91: 0.41 | C91: =IF(B91<CALCULATIONS!$M$9,Alfa1*SIN(miia*B91)-Alfa2*SIN(miib*B91),CURRENTX) -> -60.50337646 | D91: =IF(B91<CALCULATIONS!$M$9,-(Alfa1*COS(miia*B91)-Alfa2*COS(miib*B91)),CURRENTY) -> -34.92928435 | G91: 41 | H91: 0.41 | I91: =IF(H91<CALCULATIONS!$M$9,Aktina*SIN(epsilon*H91)*COS(D*H91),Aktina*SIN(epsilon*XRONOS)*COS(D*XRONOS)) -> 61.56526837 | J91: =IF(H91<CALCULATIONS!$M$9,Aktina*COS(epsilon*H91)*COS(D*H91),Aktina*COS(epsilon*XRONOS)*COS(D*XRONOS)) -> -31.98925826 | W91: 2.073451151 | X91: 43.57731837 | Y91: -122.7889768
A92: 42 | B92: 0.42 | C92: =IF(B92<CALCULATIONS!$M$9,Alfa1*SIN(miia*B92)-Alfa2*SIN(miib*B92),CURRENTX) -> -60.6198718 | D92: =IF(B92<CALCULATIONS!$M$9,-(Alfa1*COS(miia*B92)-Alfa2*COS(miib*B92)),CURRENTY) -> -34.99890405 | G92: 42 | H92: 0.42 | I92: =IF(H92<CALCULATIONS!$M$9,Aktina*SIN(epsilon*H92)*COS(D*H92),Aktina*SIN(epsilon*XRONOS)*COS(D*XRONOS)) -> 60.41611382 | J92: =IF(H92<CALCULATIONS!$M$9,Aktina*COS(epsilon*H92)*COS(D*H92),Aktina*COS(epsilon*XRONOS)*COS(D*XRONOS)) -> -35.33423164 | K92: sin( | W92: 2.136283004 | X92: 47.04910339 | Y92: -120.7357688
A93: 43 | B93: 0.43 | C93: =IF(B93<CALCULATIONS!$M$9,Alfa1*SIN(miia*B93)-Alfa2*SIN(miib*B93),CURRENTX) -> -60.43248209 | D93: =IF(B93<CALCULATIONS!$M$9,-(Alfa1*COS(miia*B93)-Alfa2*COS(miib*B93)),CURRENTY) -> -34.8953384 | G93: 43 | H93: 0.43 | I93: =IF(H93<CALCULATIONS!$M$9,Aktina*SIN(epsilon*H93)*COS(D*H93),Aktina*SIN(epsilon*XRONOS)*COS(D*XRONOS)) -> 57.76970621 | J93: =IF(H93<CALCULATIONS!$M$9,Aktina*COS(epsilon*H93)*COS(D*H93),Aktina*COS(epsilon*XRONOS)*COS(D*XRONOS)) -> -37.78317268 | W93: 2.199114858 | X93: 50.38511564 | Y93: -118.4686172
A94: 44 | B94: 0.44 | C94: =IF(B94<CALCULATIONS!$M$9,Alfa1*SIN(miia*B94)-Alfa2*SIN(miib*B94),CURRENTX) -> -59.93388057 | D94: =IF(B94<CALCULATIONS!$M$9,-(Alfa1*COS(miia*B94)-Alfa2*COS(miib*B94)),CURRENTY) -> -34.63448577 | G94: 44 | H94: 0.44 | I94: =IF(H94<CALCULATIONS!$M$9,Aktina*SIN(epsilon*H94)*COS(D*H94),Aktina*SIN(epsilon*XRONOS)*COS(D*XRONOS)) -> 53.77817434 | J94: =IF(H94<CALCULATIONS!$M$9,Aktina*COS(epsilon*H94)*COS(D*H94),Aktina*COS(epsilon*XRONOS)*COS(D*XRONOS)) -> -39.14490594 | W94: 2.261946711 | X94: 53.57218941 | Y94: -115.9964694
A95: 45 | B95: 0.45 | C95: =IF(B95<CALCULATIONS!$M$9,Alfa1*SIN(miia*B95)-Alfa2*SIN(miib*B95),CURRENTX) -> -59.1191186 | D95: =IF(B95<CALCULATIONS!$M$9,-(Alfa1*COS(miia*B95)-Alfa2*COS(miib*B95)),CURRENTY) -> -34.23333771 | G95: 45 | H95: 0.45 | I95: =IF(H95<CALCULATIONS!$M$9,Aktina*SIN(epsilon*H95)*COS(D*H95),Aktina*SIN(epsilon*XRONOS)*COS(D*XRONOS)) -> 48.6377011 | J95: =IF(H95<CALCULATIONS!$M$9,Aktina*COS(epsilon*H95)*COS(D*H95),Aktina*COS(epsilon*XRONOS)*COS(D*XRONOS)) -> -39.26741215 | W95: 2.324778564 | X95: 56.59774677 | Y95: -113.3290818
A96: 46 | B96: 0.46 | C96: =IF(B96<CALCULATIONS!$M$9,Alfa1*SIN(miia*B96)-Alfa2*SIN(miib*B96),CURRENTX) -> -57.98569999 | D96: =IF(B96<CALCULATIONS!$M$9,-(Alfa1*COS(miia*B96)-Alfa2*COS(miib*B96)),CURRENTY) -> -33.70977329 | G96: 46 | H96: 0.46 | I96: =IF(H96<CALCULATIONS!$M$9,Aktina*SIN(epsilon*H96)*COS(D*H96),Aktina*SIN(epsilon*XRONOS)*COS(D*XRONOS)) -> 42.58033212 | J96: =IF(H96<CALCULATIONS!$M$9,Aktina*COS(epsilon*H96)*COS(D*H96),Aktina*COS(epsilon*XRONOS)*COS(D*XRONOS)) -> -38.04486519 | W96: 2.387610417 | X96: 59.44984723 | Y96: -110.4769813
A97: 47 | B97: 0.47 | C97: =IF(B97<CALCULATIONS!$M$9,Alfa1*SIN(miia*B97)-Alfa2*SIN(miib*B97),CURRENTX) -> -56.53363247 | D97: =IF(B97<CALCULATIONS!$M$9,-(Alfa1*COS(miia*B97)-Alfa2*COS(miib*B97)),CURRENTY) -> -33.08234573 | G97: 47 | H97: 0.47 | I97: =IF(H97<CALCULATIONS!$M$9,Aktina*SIN(epsilon*H97)*COS(D*H97),Aktina*SIN(epsilon*XRONOS)*COS(D*XRONOS)) -> 35.86445391 | J97: =IF(H97<CALCULATIONS!$M$9,Aktina*COS(epsilon*H97)*COS(D*H97),Aktina*COS(epsilon*XRONOS)*COS(D*XRONOS)) -> -35.42285969 | W97: 2.45044227 | X97: 62.11723485 | Y97: -107.451424
A98: 48 | B98: 0.48 | C98: =IF(B98<CALCULATIONS!$M$9,Alfa1*SIN(miia*B98)-Alfa2*SIN(miib*B98),CURRENTX) -> -54.76545597 | D98: =IF(B98<CALCULATIONS!$M$9,-(Alfa1*COS(miia*B98)-Alfa2*COS(miib*B98)),CURRENTY) -> -32.37006378 | G98: 48 | H98: 0.48 | I98: =IF(H98<CALCULATIONS!$M$9,Aktina*SIN(epsilon*H98)*COS(D*H98),Aktina*SIN(epsilon*XRONOS)*COS(D*XRONOS)) -> 28.76432397 | J98: =IF(H98<CALCULATIONS!$M$9,Aktina*COS(epsilon*H98)*COS(D*H98),Aktina*COS(epsilon*XRONOS)*COS(D*XRONOS)) -> -31.40161053 | W98: 2.513274123 | X98: 64.58938267 | Y98: -104.2643502
A99: 49 | B99: 0.49 | C99: =IF(B99<CALCULATIONS!$M$9,Alfa1*SIN(miia*B99)-Alfa2*SIN(miib*B99),CURRENTX) -> -52.68624706 | D99: =IF(B99<CALCULATIONS!$M$9,-(Alfa1*COS(miia*B99)-Alfa2*COS(miib*B99)),CURRENTY) -> -31.5921699 | G99: 49 | H99: 0.49 | I99: =IF(H99<CALCULATIONS!$M$9,Aktina*SIN(epsilon*H99)*COS(D*H99),Aktina*SIN(epsilon*XRONOS)*COS(D*XRONOS)) -> 21.55907192 | J99: =IF(H99<CALCULATIONS!$M$9,Aktina*COS(epsilon*H99)*COS(D*H99),Aktina*COS(epsilon*XRONOS)*COS(D*XRONOS)) -> -26.03698659 | W99: 2.576105976 | X99: 66.85653426 | Y99: -100.9283379
A100: 50 | B100: 0.5 | C100: =IF(B100<CALCULATIONS!$M$9,Alfa1*SIN(miia*B100)-Alfa2*SIN(miib*B100),CURRENTX) -> -50.3035998 | D100: =IF(B100<CALCULATIONS!$M$9,-(Alfa1*COS(miia*B100)-Alfa2*COS(miib*B100)),CURRENTY) -> -30.76791773 | G100: 50 | H100: 0.5 | I100: =IF(H100<CALCULATIONS!$M$9,Aktina*SIN(epsilon*H100)*COS(D*H100),Aktina*SIN(epsilon*XRONOS)*COS(D*XRONOS)) -> 14.52161073 | J100: =IF(H100<CALCULATIONS!$M$9,Aktina*COS(epsilon*H100)*COS(D*H100),Aktina*COS(epsilon*XRONOS)*COS(D*XRONOS)) -> -19.43932703 | W100: 2.638937829 | X100: 68.90974219 | Y100: -97.45655293
A101: 51 | B101: 0.51 | C101: =IF(B101<CALCULATIONS!$M$9,Alfa1*SIN(miia*B101)-Alfa2*SIN(miib*B101),CURRENTX) -> -47.62758273 | D101: =IF(B101<CALCULATIONS!$M$9,-(Alfa1*COS(miia*B101)-Alfa2*COS(miib*B101)),CURRENTY) -> -29.91635098 | G101: 51 | H101: 0.51 | I101: =IF(H101<CALCULATIONS!$M$9,Aktina*SIN(epsilon*H101)*COS(D*H101),Aktina*SIN(epsilon*XRONOS)*COS(D*XRONOS)) -> 7.907899816 | J101: =IF(H101<CALCULATIONS!$M$9,Aktina*COS(epsilon*H101)*COS(D*H101),Aktina*COS(epsilon*XRONOS)*COS(D*XRONOS)) -> -11.77007683 | W101: 2.701769682 | X101: 70.74090341 | Y101: -93.86269669
A102: 52 | B102: 0.52 | C102: =IF(B102<CALCULATIONS!$M$9,Alfa1*SIN(miia*B102)-Alfa2*SIN(miib*B102),CURRENTX) -> -44.67067265 | D102: =IF(B102<CALCULATIONS!$M$9,-(Alfa1*COS(miia*B102)-Alfa2*COS(miib*B102)),CURRENTY) -> -29.05608616 | G102: 52 | H102: 0.52 | I102: =IF(H102<CALCULATIONS!$M$9,Aktina*SIN(epsilon*H102)*COS(D*H102),Aktina*SIN(epsilon*XRONOS)*COS(D*XRONOS)) -> 1.946986532 | J102: =IF(H102<CALCULATIONS!$M$9,Aktina*COS(epsilon*H102)*COS(D*H102),Aktina*COS(epsilon*XRONOS)*COS(D*XRONOS)) -> -3.236365514 | W102: 2.764601535 | X102: 72.34279115 | Y102: -90.16095254
A103: 53 | B103: 0.53 | C103: =IF(B103<CALCULATIONS!$M$9,Alfa1*SIN(miia*B103)-Alfa2*SIN(miib*B103),CURRENTX) -> -41.44766558 | D103: =IF(B103<CALCULATIONS!$M$9,-(Alfa1*COS(miia*B103)-Alfa2*COS(miib*B103)),CURRENTY) -> -28.2051013 | G103: 53 | H103: 0.53 | I103: =IF(H103<CALCULATIONS!$M$9,Aktina*SIN(epsilon*H103)*COS(D*H103),Aktina*SIN(epsilon*XRONOS)*COS(D*XRONOS)) -> -3.167779279 | J103: =IF(H103<CALCULATIONS!$M$9,Aktina*COS(epsilon*H103)*COS(D*H103),Aktina*COS(epsilon*XRONOS)*COS(D*XRONOS)) -> 5.916265089 | W103: 2.827433388 | X103: 73.70908348 | Y103: -86.36592958
A104: 54 | B104: 0.54 | C104: =IF(B104<CALCULATIONS!$M$9,Alfa1*SIN(miia*B104)-Alfa2*SIN(miib*B104),CURRENTX) -> -37.97556579 | D104: =IF(B104<CALCULATIONS!$M$9,-(Alfa1*COS(miia*B104)-Alfa2*COS(miib*B104)),CURRENTY) -> -27.38053286 | G104: 54 | H104: 0.54 | I104: =IF(H104<CALCULATIONS!$M$9,Aktina*SIN(epsilon*H104)*COS(D*H104),Aktina*SIN(epsilon*XRONOS)*COS(D*XRONOS)) -> -7.286010988 | J104: =IF(H104<CALCULATIONS!$M$9,Aktina*COS(epsilon*H104)*COS(D*H104),Aktina*COS(epsilon*XRONOS)*COS(D*XRONOS)) -> 15.41270393 | W104: 2.890265241 | X104: 74.83438829 | Y104: -82.49260502
A105: 55 | B105: 0.55 | C105: =IF(B105<CALCULATIONS!$M$9,Alfa1*SIN(miia*B105)-Alfa2*SIN(miib*B105),CURRENTX) -> -34.27345389 | D105: =IF(B105<CALCULATIONS!$M$9,-(Alfa1*COS(miia*B105)-Alfa2*COS(miib*B105)),CURRENTY) -> -26.59848294 | G105: 55 | H105: 0.55 | I105: =IF(H105<CALCULATIONS!$M$9,Aktina*SIN(epsilon*H105)*COS(D*H105),Aktina*SIN(epsilon*XRONOS)*COS(D*XRONOS)) -> -10.30574583 | J105: =IF(H105<CALCULATIONS!$M$9,Aktina*COS(epsilon*H105)*COS(D*H105),Aktina*COS(epsilon*XRONOS)*COS(D*XRONOS)) -> 24.95834153 | W105: 2.953097094 | X105: 75.71426451 | Y105: -78.55626511
A106: 56 | B106: 0.56 | C106: =IF(B106<CALCULATIONS!$M$9,Alfa1*SIN(miia*B106)-Alfa2*SIN(miib*B106),CURRENTX) -> -30.36233522 | D106: =IF(B106<CALCULATIONS!$M$9,-(Alfa1*COS(miia*B106)-Alfa2*COS(miib*B106)),CURRENTY) -> -25.87383873 | G106: 56 | H106: 0.56 | I106: =IF(H106<CALCULATIONS!$M$9,Aktina*SIN(epsilon*H106)*COS(D*H106),Aktina*SIN(epsilon*XRONOS)*COS(D*XRONOS)) -> -12.17688819 | J106: =IF(H106<CALCULATIONS!$M$9,Aktina*COS(epsilon*H106)*COS(D*H106),Aktina*COS(epsilon*XRONOS)*COS(D*XRONOS)) -> 34.24997598 | W106: 3.015928947 | X106: 76.34523966 | Y106: -74.57244478
A107: 57 | B107: 0.57 | C107: =IF(B107<CALCULATIONS!$M$9,Alfa1*SIN(miia*B107)-Alfa2*SIN(miib*B107),CURRENTX) -> -26.2649699 | D107: =IF(B107<CALCULATIONS!$M$9,-(Alfa1*COS(miia*B107)-Alfa2*COS(miib*B107)),CURRENTY) -> -25.22010611 | G107: 57 | H107: 0.57 | I107: =IF(H107<CALCULATIONS!$M$9,Aktina*SIN(epsilon*H107)*COS(D*H107),Aktina*SIN(epsilon*XRONOS)*COS(D*XRONOS)) -> -12.90250441 | J107: =IF(H107<CALCULATIONS!$M$9,Aktina*COS(epsilon*H107)*COS(D*H107),Aktina*COS(epsilon*XRONOS)*COS(D*XRONOS)) -> 42.98712779 | W107: 3.078760801 | X107: 76.72482358 | Y107: -70.55686635
A108: 58 | B108: 0.58 | C108: =IF(B108<CALCULATIONS!$M$9,Alfa1*SIN(miia*B108)-Alfa2*SIN(miib*B108),CURRENTX) -> -22.00568622 | D108: =IF(B108<CALCULATIONS!$M$9,-(Alfa1*COS(miia*B108)-Alfa2*COS(miib*B108)),CURRENTY) -> -24.64925898 | G108: 58 | H108: 0.58 | I108: =IF(H108<CALCULATIONS!$M$9,Aktina*SIN(epsilon*H108)*COS(D*H108),Aktina*SIN(epsilon*XRONOS)*COS(D*XRONOS)) -> -12.53792454 | J108: =IF(H108<CALCULATIONS!$M$9,Aktina*COS(epsilon*H108)*COS(D*H108),Aktina*COS(epsilon*XRONOS)*COS(D*XRONOS)) -> 50.88332013 | W108: 3.141592654 | X108: 76.85151822 | Y108: -66.52537748
A109: 59 | B109: 0.59 | C109: =IF(B109<CALCULATIONS!$M$9,Alfa1*SIN(miia*B109)-Alfa2*SIN(miib*B109),CURRENTX) -> -17.61017906 | D109: =IF(B109<CALCULATIONS!$M$9,-(Alfa1*COS(miia*B109)-Alfa2*COS(miib*B109)),CURRENTY) -> -24.17160609 | G109: 59 | H109: 0.59 | I109: =IF(H109<CALCULATIONS!$M$9,Aktina*SIN(epsilon*H109)*COS(D*H109),Aktina*SIN(epsilon*XRONOS)*COS(D*XRONOS)) -> -11.1876947 | J109: =IF(H109<CALCULATIONS!$M$9,Aktina*COS(epsilon*H109)*COS(D*H109),Aktina*COS(epsilon*XRONOS)*COS(D*XRONOS)) -> 57.67688184 | W109: 3.204424507 | X109: 76.72482358 | Y109: -62.4938886
A110: 60 | B110: 0.6 | C110: =IF(B110<CALCULATIONS!$M$9,Alfa1*SIN(miia*B110)-Alfa2*SIN(miib*B110),CURRENTX) -> -13.10529533 | D110: =IF(B110<CALCULATIONS!$M$9,-(Alfa1*COS(miia*B110)-Alfa2*COS(miib*B110)),CURRENTY) -> -23.79567649 | G110: 60 | H110: 0.6 | I110: =IF(H110<CALCULATIONS!$M$9,Aktina*SIN(epsilon*H110)*COS(D*H110),Aktina*SIN(epsilon*XRONOS)*COS(D*XRONOS)) -> -9.000509693 | J110: =IF(H110<CALCULATIONS!$M$9,Aktina*COS(epsilon*H110)*COS(D*H110),Aktina*COS(epsilon*XRONOS)*COS(D*XRONOS)) -> 63.14084859 | W110: 3.26725636 | X110: 76.34523966 | Y110: -58.47831018
A111: 61 | B111: 0.61 | C111: =IF(B111<CALCULATIONS!$M$9,Alfa1*SIN(miia*B111)-Alfa2*SIN(miib*B111),CURRENTX) -> -8.518808404 | D111: =IF(B111<CALCULATIONS!$M$9,-(Alfa1*COS(miia*B111)-Alfa2*COS(miib*B111)),CURRENTY) -> -23.52812491 | G111: 61 | H111: 0.61 | I111: =IF(H111<CALCULATIONS!$M$9,Aktina*SIN(epsilon*H111)*COS(D*H111),Aktina*SIN(epsilon*XRONOS)*COS(D*XRONOS)) -> -6.162337229 | J111: =IF(H111<CALCULATIONS!$M$9,Aktina*COS(epsilon*H111)*COS(D*H111),Aktina*COS(epsilon*XRONOS)*COS(D*XRONOS)) -> 67.09157289 | W111: 3.330088213 | X111: 75.71426451 | Y111: -54.49448985
A112: 62 | B112: 0.62 | C112: =IF(B112<CALCULATIONS!$M$9,Alfa1*SIN(miia*B112)-Alfa2*SIN(miib*B112),CURRENTX) -> -3.879183646 | D112: =IF(B112<CALCULATIONS!$M$9,-(Alfa1*COS(miia*B112)-Alfa2*COS(miib*B112)),CURRENTY) -> -23.37365808 | G112: 62 | H112: 0.62 | I112: =IF(H112<CALCULATIONS!$M$9,Aktina*SIN(epsilon*H112)*COS(D*H112),Aktina*SIN(epsilon*XRONOS)*COS(D*XRONOS)) -> -2.888017042 | J112: =IF(H112<CALCULATIONS!$M$9,Aktina*COS(epsilon*H112)*COS(D*H112),Aktina*COS(epsilon*XRONOS)*COS(D*XRONOS)) -> 69.39570398 | W112: 3.392920066 | X112: 74.83438829 | Y112: -50.55814994
A113: 63 | B113: 0.63 | C113: =IF(B113<CALCULATIONS!$M$9,Alfa1*SIN(miia*B113)-Alfa2*SIN(miib*B113),CURRENTX) -> 0.7846625551 | D113: =IF(B113<CALCULATIONS!$M$9,-(Alfa1*COS(miia*B113)-Alfa2*COS(miib*B113)),CURRENTY) -> -23.33498255 | G113: 63 | H113: 0.63 | I113: =IF(H113<CALCULATIONS!$M$9,Aktina*SIN(epsilon*H113)*COS(D*H113),Aktina*SIN(epsilon*XRONOS)*COS(D*XRONOS)) -> 0.5883201358 | J113: =IF(H113<CALCULATIONS!$M$9,Aktina*COS(epsilon*H113)*COS(D*H113),Aktina*COS(epsilon*XRONOS)*COS(D*XRONOS)) -> 69.97526277 | W113: 3.455751919 | X113: 73.70908348 | Y113: -46.68482538
A114: 64 | B114: 0.64 | C114: =IF(B114<CALCULATIONS!$M$9,Alfa1*SIN(miia*B114)-Alfa2*SIN(miib*B114),CURRENTX) -> 5.44360814 | D114: =IF(B114<CALCULATIONS!$M$9,-(Alfa1*COS(miia*B114)-Alfa2*COS(miib*B114)),CURRENTY) -> -23.41277477 | G114: 64 | H114: 0.64 | I114: =IF(H114<CALCULATIONS!$M$9,Aktina*SIN(epsilon*H114)*COS(D*H114),Aktina*SIN(epsilon*XRONOS)*COS(D*XRONOS)) -> 4.023621709 | J114: =IF(H114<CALCULATIONS!$M$9,Aktina*COS(epsilon*H114)*COS(D*H114),Aktina*COS(epsilon*XRONOS)*COS(D*XRONOS)) -> 68.81061196 | W114: 3.518583772 | X114: 72.34279115 | Y114: -42.88980241
A115: 65 | B115: =B114+dt -> 0.65 | C115: =IF(B115<CALCULATIONS!$M$9,Alfa1*SIN(miia*B115)-Alfa2*SIN(miib*B115),CURRENTX) -> 10.06857267 | D115: =IF(B115<CALCULATIONS!$M$9,-(Alfa1*COS(miia*B115)-Alfa2*COS(miib*B115)),CURRENTY) -> -23.60567362 | G115: 65 | H115: =H114+dt -> 0.65 | I115: =IF(H115<CALCULATIONS!$M$9,Aktina*SIN(epsilon*H115)*COS(D*H115),Aktina*SIN(epsilon*XRONOS)*COS(D*XRONOS)) -> 7.176646706 | J115: =IF(H115<CALCULATIONS!$M$9,Aktina*COS(epsilon*H115)*COS(D*H115),Aktina*COS(epsilon*XRONOS)*COS(D*XRONOS)) -> 65.94120425 | W115: 3.581415625 | X115: 70.74090341 | Y115: -39.18805826
A116: =A115+1 -> 66 | B116: 0.66 | C116: =IF(B116<CALCULATIONS!$M$9,Alfa1*SIN(miia*B116)-Alfa2*SIN(miib*B116),CURRENTX) -> 14.63076421 | D116: =IF(B116<CALCULATIONS!$M$9,-(Alfa1*COS(miia*B116)-Alfa2*COS(miib*B116)),CURRENTY) -> -23.91029545 | G116: =G115+1 -> 66 | H116: 0.66 | I116: =IF(H116<CALCULATIONS!$M$9,Aktina*SIN(epsilon*H116)*COS(D*H116),Aktina*SIN(epsilon*XRONOS)*COS(D*XRONOS)) -> 9.818625292 | J116: =IF(H116<CALCULATIONS!$M$9,Aktina*COS(epsilon*H116)*COS(D*H116),Aktina*COS(epsilon*XRONOS)*COS(D*XRONOS)) -> 61.46407924 | W116: 3.644247478 | X116: 68.90974219 | Y116: -35.59420202
A117: 67 | B117: 0.67 | C117: =IF(B117<CALCULATIONS!$M$9,Alfa1*SIN(miia*B117)-Alfa2*SIN(miib*B117),CURRENTX) -> 19.10192349 | D117: =IF(B117<CALCULATIONS!$M$9,-(Alfa1*COS(miia*B117)-Alfa2*COS(miib*B117)),CURRENTY) -> -24.32127154 | G117: 67 | H117: 0.67 | I117: =IF(H117<CALCULATIONS!$M$9,Aktina*SIN(epsilon*H117)*COS(D*H117),Aktina*SIN(epsilon*XRONOS)*COS(D*XRONOS)) -> 11.74340893 | J117: =IF(H117<CALCULATIONS!$M$9,Aktina*COS(epsilon*H117)*COS(D*H117),Aktina*COS(epsilon*XRONOS)*COS(D*XRONOS)) -> 55.53016811 | W117: 3.707079331 | X117: 66.85653426 | Y117: -32.122417
A118: 68 | B118: 0.68 | C118: =IF(B118<CALCULATIONS!$M$9,Alfa1*SIN(miia*B118)-Alfa2*SIN(miib*B118),CURRENTX) -> 23.45456295 | D118: =IF(B118<CALCULATIONS!$M$9,-(Alfa1*COS(miia*B118)-Alfa2*COS(miib*B118)),CURRENTY) -> -24.83130755 | G118: 68 | H118: 0.68 | I118: =IF(H118<CALCULATIONS!$M$9,Aktina*SIN(epsilon*H118)*COS(D*H118),Aktina*SIN(epsilon*XRONOS)*COS(D*XRONOS)) -> 12.77669623 | J118: =IF(H118<CALCULATIONS!$M$9,Aktina*COS(epsilon*H118)*COS(D*H118),Aktina*COS(epsilon*XRONOS)*COS(D*XRONOS)) -> 48.3385519 | W118: 3.769911184 | X118: 64.58938267 | Y118: -28.78640475
A119: 69 | B119: 0.69 | C119: =IF(B119<CALCULATIONS!$M$9,Alfa1*SIN(miia*B119)-Alfa2*SIN(miib*B119),CURRENTX) -> 27.66219843 | D119: =IF(B119<CALCULATIONS!$M$9,-(Alfa1*COS(miia*B119)-Alfa2*COS(miib*B119)),CURRENTY) -> -25.43126434 | G119: 69 | H119: 0.69 | I119: =IF(H119<CALCULATIONS!$M$9,Aktina*SIN(epsilon*H119)*COS(D*H119),Aktina*SIN(epsilon*XRONOS)*COS(D*XRONOS)) -> 12.78395668 | J119: =IF(H119<CALCULATIONS!$M$9,Aktina*COS(epsilon*H119)*COS(D*H119),Aktina*COS(epsilon*XRONOS)*COS(D*XRONOS)) -> 40.12889923 | W119: 3.832743037 | X119: 62.11723485 | Y119: -25.59933098
A120: 70 | B120: 0.7 | C120: =IF(B120<CALCULATIONS!$M$9,Alfa1*SIN(miia*B120)-Alfa2*SIN(miib*B120),CURRENTX) -> 31.69957126 | D120: =IF(B120<CALCULATIONS!$M$9,-(Alfa1*COS(miia*B120)-Alfa2*COS(miib*B120)),CURRENTY) -> -26.11025947 | G120: 70 | H120: 0.7 | I120: =IF(H120<CALCULATIONS!$M$9,Aktina*SIN(epsilon*H120)*COS(D*H120),Aktina*SIN(epsilon*XRONOS)*COS(D*XRONOS)) -> 11.67672649 | J120: =IF(H120<CALCULATIONS!$M$9,Aktina*COS(epsilon*H120)*COS(D*H120),Aktina*COS(epsilon*XRONOS)*COS(D*XRONOS)) -> 31.17238154 | W120: 3.89557489 | X120: 59.44984723 | Y120: -22.57377362
A121: 71 | B121: 0.71 | C121: =IF(B121<CALCULATIONS!$M$9,Alfa1*SIN(miia*B121)-Alfa2*SIN(miib*B121),CURRENTX) -> 35.54285874 | D121: =IF(B121<CALCULATIONS!$M$9,-(Alfa1*COS(miia*B121)-Alfa2*COS(miib*B121)),CURRENTY) -> -26.85578806 | G121: 71 | H121: 0.71 | I121: =IF(H121<CALCULATIONS!$M$9,Aktina*SIN(epsilon*H121)*COS(D*H121),Aktina*SIN(epsilon*XRONOS)*COS(D*XRONOS)) -> 9.417016441 | J121: =IF(H121<CALCULATIONS!$M$9,Aktina*COS(epsilon*H121)*COS(D*H121),Aktina*COS(epsilon*XRONOS)*COS(D*XRONOS)) -> 21.76142302 | W121: 3.958406744 | X121: 56.59774677 | Y121: -19.72167316
A122: 72 | B122: 0.72 | C122: =IF(B122<CALCULATIONS!$M$9,Alfa1*SIN(miia*B122)-Alfa2*SIN(miib*B122),CURRENTX) -> 39.16987084 | D122: =IF(B122<CALCULATIONS!$M$9,-(Alfa1*COS(miia*B122)-Alfa2*COS(miib*B122)),CURRENTY) -> -27.65386209 | G122: 72 | H122: 0.72 | I122: =IF(H122<CALCULATIONS!$M$9,Aktina*SIN(epsilon*H122)*COS(D*H122),Aktina*SIN(epsilon*XRONOS)*COS(D*XRONOS)) -> 6.019646945 | J122: =IF(H122<CALCULATIONS!$M$9,Aktina*COS(epsilon*H122)*COS(D*H122),Aktina*COS(epsilon*XRONOS)*COS(D*XRONOS)) -> 12.19868854 | W122: 4.021238597 | X122: =FCX+FCURV*COS(W122) -> 53.57218941 | Y122: =FCY+FCURV*SIN(W122) -> -17.05428554
A123: 73 | B123: 0.73 | C123: =IF(B123<CALCULATIONS!$M$9,Alfa1*SIN(miia*B123)-Alfa2*SIN(miib*B123),CURRENTX) -> 42.56023142 | D123: =IF(B123<CALCULATIONS!$M$9,-(Alfa1*COS(miia*B123)-Alfa2*COS(miib*B123)),CURRENTY) -> -28.48916649 | G123: 73 | H123: 0.73 | I123: =IF(H123<CALCULATIONS!$M$9,Aktina*SIN(epsilon*H123)*COS(D*H123),Aktina*SIN(epsilon*XRONOS)*COS(D*XRONOS)) -> 1.552409303 | J123: =IF(H123<CALCULATIONS!$M$9,Aktina*COS(epsilon*H123)*COS(D*H123),Aktina*COS(epsilon*XRONOS)*COS(D*XRONOS)) -> 2.785741909 | W123: 4.08407045 | X123: 50.38511564 | Y123: -14.58213772
A124: 74 | B124: 0.74 | C124: =IF(B124<CALCULATIONS!$M$9,Alfa1*SIN(miia*B124)-Alfa2*SIN(miib*B124),CURRENTX) -> 45.69554214 | D124: =IF(B124<CALCULATIONS!$M$9,-(Alfa1*COS(miia*B124)-Alfa2*COS(miib*B124)),CURRENTY) -> -29.3452305 | G124: 74 | H124: 0.74 | I124: =IF(H124<CALCULATIONS!$M$9,Aktina*SIN(epsilon*H124)*COS(D*H124),Aktina*SIN(epsilon*XRONOS)*COS(D*XRONOS)) -> -3.865960995 | J124: =IF(H124<CALCULATIONS!$M$9,Aktina*COS(epsilon*H124)*COS(D*H124),Aktina*COS(epsilon*XRONOS)*COS(D*XRONOS)) -> -6.188180438 | W124: =W123+2*PI()/100 -> 4.146902303 | X124: 47.04910339 | Y124: -12.31498614
A125: 75 | B125: 0.75 | C125: =IF(B125<CALCULATIONS!$M$9,Alfa1*SIN(miia*B125)-Alfa2*SIN(miib*B125),CURRENTX) -> 48.55952767 | D125: =IF(B125<CALCULATIONS!$M$9,-(Alfa1*COS(miia*B125)-Alfa2*COS(miib*B125)),CURRENTY) -> -30.20461259 | G125: 75 | H125: 0.75 | I125: =IF(H125<CALCULATIONS!$M$9,Aktina*SIN(epsilon*H125)*COS(D*H125),Aktina*SIN(epsilon*XRONOS)*COS(D*XRONOS)) -> -10.06992478 | J125: =IF(H125<CALCULATIONS!$M$9,Aktina*COS(epsilon*H125)*COS(D*H125),Aktina*COS(epsilon*XRONOS)*COS(D*XRONOS)) -> -14.45684083 | W125: 4.209734156 | X125: 43.57731837 | Y125: -10.2617782
A126: 76 | B126: 0.76 | C126: =IF(B126<CALCULATIONS!$M$9,Alfa1*SIN(miia*B126)-Alfa2*SIN(miib*B126),CURRENTX) -> 51.13816059 | D126: =IF(B126<CALCULATIONS!$M$9,-(Alfa1*COS(miia*B126)-Alfa2*COS(miib*B126)),CURRENTY) -> -31.0490969 | G126: 76 | H126: 0.76 | I126: =IF(H126<CALCULATIONS!$M$9,Aktina*SIN(epsilon*H126)*COS(D*H126),Aktina*SIN(epsilon*XRONOS)*COS(D*XRONOS)) -> -16.85323441 | J126: =IF(H126<CALCULATIONS!$M$9,Aktina*COS(epsilon*H126)*COS(D*H126),Aktina*COS(epsilon*XRONOS)*COS(D*XRONOS)) -> -21.78669992 | W126: 4.272566009 | X126: 39.98346213 | Y126: -8.430616983
A127: 77 | B127: 0.77 | C127: =IF(B127<CALCULATIONS!$M$9,Alfa1*SIN(miia*B127)-Alfa2*SIN(miib*B127),CURRENTX) -> 53.41976519 | D127: =IF(B127<CALCULATIONS!$M$9,-(Alfa1*COS(miia*B127)-Alfa2*COS(miib*B127)),CURRENTY) -> -31.85989931 | G127: 77 | H127: 0.77 | I127: =IF(H127<CALCULATIONS!$M$9,Aktina*SIN(epsilon*H127)*COS(D*H127),Aktina*SIN(epsilon*XRONOS)*COS(D*XRONOS)) -> -23.9767457 | J127: =IF(H127<CALCULATIONS!$M$9,Aktina*COS(epsilon*H127)*COS(D*H127),Aktina*COS(epsilon*XRONOS)*COS(D*XRONOS)) -> -27.98526692 | W127: 4.335397862 | X127: 36.28171798 | Y127: -6.828729246
A128: 78 | B128: 0.78 | C128: =IF(B128<CALCULATIONS!$M$9,Alfa1*SIN(miia*B128)-Alfa2*SIN(miib*B128),CURRENTX) -> 55.39509882 | D128: =IF(B128<CALCULATIONS!$M$9,-(Alfa1*COS(miia*B128)-Alfa2*COS(miib*B128)),CURRENTY) -> -32.61788105 | G128: 78 | H128: 0.78 | I128: =IF(H128<CALCULATIONS!$M$9,Aktina*SIN(epsilon*H128)*COS(D*H128),Aktina*SIN(epsilon*XRONOS)*COS(D*XRONOS)) -> -31.17763926 | J128: =IF(H128<CALCULATIONS!$M$9,Aktina*COS(epsilon*H128)*COS(D*H128),Aktina*COS(epsilon*XRONOS)*COS(D*XRONOS)) -> -32.90777716 | W128: 4.398229715 | X128: 32.48669502 | Y128: -5.462436907
A129: 79 | B129: 0.79 | C129: =IF(B129<CALCULATIONS!$M$9,Alfa1*SIN(miia*B129)-Alfa2*SIN(miib*B129),CURRENTX) -> 57.05741043 | D129: =IF(B129<CALCULATIONS!$M$9,-(Alfa1*COS(miia*B129)-Alfa2*COS(miib*B129)),CURRENTY) -> -33.30376744 | G129: 79 | H129: 0.79 | I129: =IF(H129<CALCULATIONS!$M$9,Aktina*SIN(epsilon*H129)*COS(D*H129),Aktina*SIN(epsilon*XRONOS)*COS(D*XRONOS)) -> -38.17968672 | J129: =IF(H129<CALCULATIONS!$M$9,Aktina*COS(epsilon*H129)*COS(D*H129),Aktina*COS(epsilon*XRONOS)*COS(D*XRONOS)) -> -36.46194071 | W129: 4.461061568 | X129: 28.61337046 | Y129: -4.337132098
A130: 80 | B130: 0.8 | C130: =IF(B130<CALCULATIONS!$M$9,Alfa1*SIN(miia*B130)-Alfa2*SIN(miib*B130),CURRENTX) -> 58.40247554 | D130: =IF(B130<CALCULATIONS!$M$9,-(Alfa1*COS(miia*B130)-Alfa2*COS(miib*B130)),CURRENTY) -> -33.89836976 | G130: 80 | H130: 0.8 | I130: =IF(H130<CALCULATIONS!$M$9,Aktina*SIN(epsilon*H130)*COS(D*H130),Aktina*SIN(epsilon*XRONOS)*COS(D*XRONOS)) -> -44.70415472 | J130: =IF(H130<CALCULATIONS!$M$9,Aktina*COS(epsilon*H130)*COS(D*H130),Aktina*COS(epsilon*XRONOS)*COS(D*XRONOS)) -> -38.61058299 | W130: 4.523893421 | X130: 24.67703054 | Y130: -3.457255882
A131: 81 | B131: 0.81 | C131: =IF(B131<CALCULATIONS!$M$9,Alfa1*SIN(miia*B131)-Alfa2*SIN(miib*B131),CURRENTX) -> 59.42860746 | D131: =IF(B131<CALCULATIONS!$M$9,-(Alfa1*COS(miia*B131)-Alfa2*COS(miib*B131)),CURRENTY) -> -34.38280783 | G131: 81 | H131: 0.81 | I131: =IF(H131<CALCULATIONS!$M$9,Aktina*SIN(epsilon*H131)*COS(D*H131),Aktina*SIN(epsilon*XRONOS)*COS(D*XRONOS)) -> -50.4809129 | J131: =IF(H131<CALCULATIONS!$M$9,Aktina*COS(epsilon*H131)*COS(D*H131),Aktina*COS(epsilon*XRONOS)*COS(D*XRONOS)) -> -39.37208254 | W131: 4.586725274 | X131: 20.69321021 | Y131: -2.826280728
A132: 82 | B132: 0.82 | C132: =IF(B132<CALCULATIONS!$M$9,Alfa1*SIN(miia*B132)-Alfa2*SIN(miib*B132),CURRENTX) -> 60.13664484 | D132: =IF(B132<CALCULATIONS!$M$9,-(Alfa1*COS(miia*B132)-Alfa2*COS(miib*B132)),CURRENTY) -> -34.73873093 | G132: 82 | H132: 0.82 | I132: =IF(H132<CALCULATIONS!$M$9,Aktina*SIN(epsilon*H132)*COS(D*H132),Aktina*SIN(epsilon*XRONOS)*COS(D*XRONOS)) -> -55.25930337 | J132: =IF(H132<CALCULATIONS!$M$9,Aktina*COS(epsilon*H132)*COS(D*H132),Aktina*COS(epsilon*XRONOS)*COS(D*XRONOS)) -> -38.81859875 | W132: 4.649557127 | X132: 16.67763179 | Y132: -2.446696809
A133: 83 | B133: 0.83 | C133: =IF(B133<CALCULATIONS!$M$9,Alfa1*SIN(miia*B133)-Alfa2*SIN(miib*B133),CURRENTX) -> 60.5299155 | D133: =IF(B133<CALCULATIONS!$M$9,-(Alfa1*COS(miia*B133)-Alfa2*COS(miib*B133)),CURRENTY) -> -34.948535 | G133: 83 | H133: 0.83 | I133: =IF(H133<CALCULATIONS!$M$9,Aktina*SIN(epsilon*H133)*COS(D*H133),Aktina*SIN(epsilon*XRONOS)*COS(D*XRONOS)) -> -58.81833693 | J133: =IF(H133<CALCULATIONS!$M$9,Aktina*COS(epsilon*H133)*COS(D*H133),Aktina*COS(epsilon*XRONOS)*COS(D*XRONOS)) -> -37.07217081 | W133: 4.71238898 | X133: 12.64614291 | Y133: -2.320002167
A134: 84 | B134: 0.84 | C134: =IF(B134<CALCULATIONS!$M$9,Alfa1*SIN(miia*B134)-Alfa2*SIN(miib*B134),CURRENTX) -> 60.61417723 | D134: =IF(B134<CALCULATIONS!$M$9,-(Alfa1*COS(miia*B134)-Alfa2*COS(miib*B134)),CURRENTY) -> -34.99557359 | G134: 84 | H134: 0.84 | I134: =IF(H134<CALCULATIONS!$M$9,Aktina*SIN(epsilon*H134)*COS(D*H134),Aktina*SIN(epsilon*XRONOS)*COS(D*XRONOS)) -> -60.97580796 | J134: =IF(H134<CALCULATIONS!$M$9,Aktina*COS(epsilon*H134)*COS(D*H134),Aktina*COS(epsilon*XRONOS)*COS(D*XRONOS)) -> -34.29885345 | W134: 4.775220833 | X134: 8.614654042 | Y134: -2.446696809
A135: 85 | B135: 0.85 | C135: =IF(B135<CALCULATIONS!$M$9,Alfa1*SIN(miia*B135)-Alfa2*SIN(miib*B135),CURRENTX) -> 60.39753601 | D135: =IF(B135<CALCULATIONS!$M$9,-(Alfa1*COS(miia*B135)-Alfa2*COS(miib*B135)),CURRENTY) -> -34.86436059 | G135: 85 | H135: 0.85 | I135: =IF(H135<CALCULATIONS!$M$9,Aktina*SIN(epsilon*H135)*COS(D*H135),Aktina*SIN(epsilon*XRONOS)*COS(D*XRONOS)) -> -61.59596116 | J135: =IF(H135<CALCULATIONS!$M$9,Aktina*COS(epsilon*H135)*COS(D*H135),Aktina*COS(epsilon*XRONOS)*COS(D*XRONOS)) -> -30.70113343 | W135: 4.838052687 | X135: 4.599075614 | Y135: -2.826280728
A136: 86 | B136: 0.86 | C136: =IF(B136<CALCULATIONS!$M$9,Alfa1*SIN(miia*B136)-Alfa2*SIN(miib*B136),CURRENTX) -> 59.89034267 | D136: =IF(B136<CALCULATIONS!$M$9,-(Alfa1*COS(miia*B136)-Alfa2*COS(miib*B136)),CURRENTY) -> -34.54076247 | G136: 86 | H136: 0.86 | I136: =IF(H136<CALCULATIONS!$M$9,Aktina*SIN(epsilon*H136)*COS(D*H136),Aktina*SIN(epsilon*XRONOS)*COS(D*XRONOS)) -> -60.59540074 | J136: =IF(H136<CALCULATIONS!$M$9,Aktina*COS(epsilon*H136)*COS(D*H136),Aktina*COS(epsilon*XRONOS)*COS(D*XRONOS)) -> -26.50893847 | W136: 4.90088454 | X136: 0.6152552851 | Y136: -3.457255882
A137: 87 | B137: 0.87 | C137: =IF(B137<CALCULATIONS!$M$9,Alfa1*SIN(miia*B137)-Alfa2*SIN(miib*B137),CURRENTX) -> 59.10506899 | D137: =IF(B137<CALCULATIONS!$M$9,-(Alfa1*COS(miia*B137)-Alfa2*COS(miib*B137)),CURRENTY) -> -34.0121781 | G137: 87 | H137: 0.87 | I137: =IF(H137<CALCULATIONS!$M$9,Aktina*SIN(epsilon*H137)*COS(D*H137),Aktina*SIN(epsilon*XRONOS)*COS(D*XRONOS)) -> -57.94700137 | J137: =IF(H137<CALCULATIONS!$M$9,Aktina*COS(epsilon*H137)*COS(D*H137),Aktina*COS(epsilon*XRONOS)*COS(D*XRONOS)) -> -21.9696066 | W137: 4.963716393 | X137: -3.321084627 | Y137: -4.337132098
A138: 88 | B138: 0.88 | C138: =IF(B138<CALCULATIONS!$M$9,Alfa1*SIN(miia*B138)-Alfa2*SIN(miib*B138),CURRENTX) -> 58.05616462 | D138: =IF(B138<CALCULATIONS!$M$9,-(Alfa1*COS(miia*B138)-Alfa2*COS(miib*B138)),CURRENTY) -> -33.26770426 | G138: 88 | H138: 0.88 | I138: =IF(H138<CALCULATIONS!$M$9,Aktina*SIN(epsilon*H138)*COS(D*H138),Aktina*SIN(epsilon*XRONOS)*COS(D*XRONOS)) -> -53.68165918 | J138: =IF(H138<CALCULATIONS!$M$9,Aktina*COS(epsilon*H138)*COS(D*H138),Aktina*COS(epsilon*XRONOS)*COS(D*XRONOS)) -> -17.33722407 | W138: 5.026548246 | X138: -7.194409187 | Y138: -5.462436907
A139: 89 | B139: 0.89 | C139: =IF(B139<CALCULATIONS!$M$9,Alfa1*SIN(miia*B139)-Alfa2*SIN(miib*B139),CURRENTX) -> 56.75989615 | D139: =IF(B139<CALCULATIONS!$M$9,-(Alfa1*COS(miia*B139)-Alfa2*COS(miib*B139)),CURRENTY) -> -32.29828501 | G139: 89 | H139: 0.89 | I139: =IF(H139<CALCULATIONS!$M$9,Aktina*SIN(epsilon*H139)*COS(D*H139),Aktina*SIN(epsilon*XRONOS)*COS(D*XRONOS)) -> -47.88780626 | J139: =IF(H139<CALCULATIONS!$M$9,Aktina*COS(epsilon*H139)*COS(D*H139),Aktina*COS(epsilon*XRONOS)*COS(D*XRONOS)) -> -12.86176523 | W139: 5.089380099 | X139: -10.98943215 | Y139: -6.828729246
A140: 90 | B140: 0.9 | C140: =IF(B140<CALCULATIONS!$M$9,Alfa1*SIN(miia*B140)-Alfa2*SIN(miib*B140),CURRENTX) -> 55.23417015 | D140: =IF(B140<CALCULATIONS!$M$9,-(Alfa1*COS(miia*B140)-Alfa2*COS(miib*B140)),CURRENTY) -> -31.09684342 | G140: 90 | H140: 0.9 | I140: =IF(H140<CALCULATIONS!$M$9,Aktina*SIN(epsilon*H140)*COS(D*H140),Aktina*SIN(epsilon*XRONOS)*COS(D*XRONOS)) -> -40.70870062 | J140: =IF(H140<CALCULATIONS!$M$9,Aktina*COS(epsilon*H140)*COS(D*H140),Aktina*COS(epsilon*XRONOS)*COS(D*XRONOS)) -> -8.778474377 | W140: 5.152211952 | X140: -14.6911763 | Y140: -8.430616983
A141: 91 | B141: 0.91 | C141: =IF(B141<CALCULATIONS!$M$9,Alfa1*SIN(miia*B141)-Alfa2*SIN(miib*B141),CURRENTX) -> 53.49834185 | D141: =IF(B141<CALCULATIONS!$M$9,-(Alfa1*COS(miia*B141)-Alfa2*COS(miib*B141)),CURRENTY) -> -29.65839415 | G141: 91 | H141: 0.91 | I141: =IF(H141<CALCULATIONS!$M$9,Aktina*SIN(epsilon*H141)*COS(D*H141),Aktina*SIN(epsilon*XRONOS)*COS(D*XRONOS)) -> -32.33759147 | J141: =IF(H141<CALCULATIONS!$M$9,Aktina*COS(epsilon*H141)*COS(D*H141),Aktina*COS(epsilon*XRONOS)*COS(D*XRONOS)) -> -5.297919614 | W141: 5.215043805 | X141: -18.28503254 | Y141: -10.2617782
A142: 92 | B142: 0.92 | C142: =IF(B142<CALCULATIONS!$M$9,Alfa1*SIN(miia*B142)-Alfa2*SIN(miib*B142),CURRENTX) -> 51.5730115 | D142: =IF(B142<CALCULATIONS!$M$9,-(Alfa1*COS(miia*B142)-Alfa2*COS(miib*B142)),CURRENTY) -> -27.98013576 | G142: 92 | H142: 0.92 | I142: =IF(H142<CALCULATIONS!$M$9,Aktina*SIN(epsilon*H142)*COS(D*H142),Aktina*SIN(epsilon*XRONOS)*COS(D*XRONOS)) -> -23.01094377 | J142: =IF(H142<CALCULATIONS!$M$9,Aktina*COS(epsilon*H142)*COS(D*H142),Aktina*COS(epsilon*XRONOS)*COS(D*XRONOS)) -> -2.597120716 | W142: 5.277875658 | X142: -21.75681756 | Y142: -12.31498614
A143: 93 | B143: 0.93 | C143: =IF(B143<CALCULATIONS!$M$9,Alfa1*SIN(miia*B143)-Alfa2*SIN(miib*B143),CURRENTX) -> 49.47981036 | D143: =IF(B143<CALCULATIONS!$M$9,-(Alfa1*COS(miia*B143)-Alfa2*COS(miib*B143)),CURRENTY) -> -26.06152161 | G143: 93 | H143: 0.93 | I143: =IF(H143<CALCULATIONS!$M$9,Aktina*SIN(epsilon*H143)*COS(D*H143),Aktina*SIN(epsilon*XRONOS)*COS(D*XRONOS)) -> -12.99998298 | J143: =IF(H143<CALCULATIONS!$M$9,Aktina*COS(epsilon*H143)*COS(D*H143),Aktina*COS(epsilon*XRONOS)*COS(D*XRONOS)) -> -0.812109638 | W143: 5.340707511 | X143: -25.09282981 | Y143: -14.58213772
A144: 94 | B144: 0.94 | C144: =IF(B144<CALCULATIONS!$M$9,Alfa1*SIN(miia*B144)-Alfa2*SIN(miib*B144),CURRENTX) -> 47.24117861 | D144: =IF(B144<CALCULATIONS!$M$9,-(Alfa1*COS(miia*B144)-Alfa2*COS(miib*B144)),CURRENTY) -> -23.90430861 | G144: 94 | H144: 0.94 | I144: =IF(H144<CALCULATIONS!$M$9,Aktina*SIN(epsilon*H144)*COS(D*H144),Aktina*SIN(epsilon*XRONOS)*COS(D*XRONOS)) -> -2.600887322 | J144: =IF(H144<CALCULATIONS!$M$9,Aktina*COS(epsilon*H144)*COS(D*H144),Aktina*COS(epsilon*XRONOS)*COS(D*XRONOS)) -> -0.03222399068 | W144: 5.403539364 | X144: -28.27990358 | Y144: -17.05428554
A145: 95 | B145: 0.95 | C145: =IF(B145<CALCULATIONS!$M$9,Alfa1*SIN(miia*B145)-Alfa2*SIN(miib*B145),CURRENTX) -> 44.88013734 | D145: =IF(B145<CALCULATIONS!$M$9,-(Alfa1*COS(miia*B145)-Alfa2*COS(miib*B145)),CURRENTY) -> -21.51258318 | G145: 95 | H145: 0.95 | I145: =IF(H145<CALCULATIONS!$M$9,Aktina*SIN(epsilon*H145)*COS(D*H145),Aktina*SIN(epsilon*XRONOS)*COS(D*XRONOS)) -> 7.875991554 | J145: =IF(H145<CALCULATIONS!$M$9,Aktina*COS(epsilon*H145)*COS(D*H145),Aktina*COS(epsilon*XRONOS)*COS(D*XRONOS)) -> -0.2963638303 | W145: 5.466371217 | X145: -31.30546094 | Y145: -19.72167316
A146: 96 | B146: 0.96 | C146: =IF(B146<CALCULATIONS!$M$9,Alfa1*SIN(miia*B146)-Alfa2*SIN(miib*B146),CURRENTX) -> 42.42005685 | D146: =IF(B146<CALCULATIONS!$M$9,-(Alfa1*COS(miia*B146)-Alfa2*COS(miib*B146)),CURRENTY) -> -18.89276407 | G146: 96 | H146: 0.96 | I146: =IF(H146<CALCULATIONS!$M$9,Aktina*SIN(epsilon*H146)*COS(D*H146),Aktina*SIN(epsilon*XRONOS)*COS(D*XRONOS)) -> 18.11745985 | J146: =IF(H146<CALCULATIONS!$M$9,Aktina*COS(epsilon*H146)*COS(D*H146),Aktina*COS(epsilon*XRONOS)*COS(D*XRONOS)) -> -1.591362818 | W146: 5.52920307 | X146: -34.1575614 | Y146: -22.57377362
A147: 97 | B147: 0.97 | C147: =IF(B147<CALCULATIONS!$M$9,Alfa1*SIN(miia*B147)-Alfa2*SIN(miib*B147),CURRENTX) -> 39.88442373 | D147: =IF(B147<CALCULATIONS!$M$9,-(Alfa1*COS(miia*B147)-Alfa2*COS(miib*B147)),CURRENTY) -> -16.05358196 | G147: 97 | H147: 0.97 | I147: =IF(H147<CALCULATIONS!$M$9,Aktina*SIN(epsilon*H147)*COS(D*H147),Aktina*SIN(epsilon*XRONOS)*COS(D*XRONOS)) -> 27.8189237 | J147: =IF(H147<CALCULATIONS!$M$9,Aktina*COS(epsilon*H147)*COS(D*H147),Aktina*COS(epsilon*XRONOS)*COS(D*XRONOS)) -> -3.852539459 | W147: 5.592034923 | X147: -36.82494902 | Y147: -25.59933098
A148: 98 | B148: 0.98 | C148: =IF(B148<CALCULATIONS!$M$9,Alfa1*SIN(miia*B148)-Alfa2*SIN(miib*B148),CURRENTX) -> 37.29660891 | D148: =IF(B148<CALCULATIONS!$M$9,-(Alfa1*COS(miia*B148)-Alfa2*COS(miib*B148)),CURRENTY) -> -13.00603578 | G148: 98 | H148: 0.98 | I148: =IF(H148<CALCULATIONS!$M$9,Aktina*SIN(epsilon*H148)*COS(D*H148),Aktina*SIN(epsilon*XRONOS)*COS(D*XRONOS)) -> 36.69549623 | J148: =IF(H148<CALCULATIONS!$M$9,Aktina*COS(epsilon*H148)*COS(D*H148),Aktina*COS(epsilon*XRONOS)*COS(D*XRONOS)) -> -6.966406176 | W148: 5.654866776 | X148: -39.29709684 | Y148: -28.78640475
A149: 99 | B149: 0.99 | C149: =IF(B149<CALCULATIONS!$M$9,Alfa1*SIN(miia*B149)-Alfa2*SIN(miib*B149),CURRENTX) -> 34.67963905 | D149: =IF(B149<CALCULATIONS!$M$9,-(Alfa1*COS(miia*B149)-Alfa2*COS(miib*B149)),CURRENTY) -> -9.763326223 | G149: 99 | H149: 0.99 | I149: =IF(H149<CALCULATIONS!$M$9,Aktina*SIN(epsilon*H149)*COS(D*H149),Aktina*SIN(epsilon*XRONOS)*COS(D*XRONOS)) -> 44.49233709 | J149: =IF(H149<CALCULATIONS!$M$9,Aktina*COS(epsilon*H149)*COS(D*H149),Aktina*COS(epsilon*XRONOS)*COS(D*XRONOS)) -> -10.77542693 | W149: 5.71769863 | X149: -41.56424843 | Y149: -32.122417
A150: 100 | B150: 1 | C150: =IF(B150<CALCULATIONS!$M$9,Alfa1*SIN(miia*B150)-Alfa2*SIN(miib*B150),CURRENTX) -> 32.05597356 | D150: =IF(B150<CALCULATIONS!$M$9,-(Alfa1*COS(miia*B150)-Alfa2*COS(miib*B150)),CURRENTY) -> -6.340767023 | G150: 100 | H150: 1 | I150: =IF(H150<CALCULATIONS!$M$9,Aktina*SIN(epsilon*H150)*COS(D*H150),Aktina*SIN(epsilon*XRONOS)*COS(D*XRONOS)) -> 50.99382266 | J150: =IF(H150<CALCULATIONS!$M$9,Aktina*COS(epsilon*H150)*COS(D*H150),Aktina*COS(epsilon*XRONOS)*COS(D*XRONOS)) -> -15.08463135 | W150: 5.780530483 | X150: -43.61745636 | Y150: -35.59420202
A151: 101 | B151: 1.01 | C151: =IF(B151<CALCULATIONS!$M$9,Alfa1*SIN(miia*B151)-Alfa2*SIN(miib*B151),CURRENTX) -> 29.4472894 | D151: =IF(B151<CALCULATIONS!$M$9,-(Alfa1*COS(miia*B151)-Alfa2*COS(miib*B151)),CURRENTY) -> -2.755674593 | G151: 101 | H151: 1.01 | I151: =IF(H151<CALCULATIONS!$M$9,Aktina*SIN(epsilon*H151)*COS(D*H151),Aktina*SIN(epsilon*XRONOS)*COS(D*XRONOS)) -> 56.03119083 | J151: =IF(H151<CALCULATIONS!$M$9,Aktina*COS(epsilon*H151)*COS(D*H151),Aktina*COS(epsilon*XRONOS)*COS(D*XRONOS)) -> -19.66981843 | W151: 5.843362336 | X151: -45.44861758 | Y151: -39.18805826
A152: 102 | B152: 1.02 | C152: =IF(B152<CALCULATIONS!$M$9,Alfa1*SIN(miia*B152)-Alfa2*SIN(miib*B152),CURRENTX) -> 26.8742758 | D152: =IF(B152<CALCULATIONS!$M$9,-(Alfa1*COS(miia*B152)-Alfa2*COS(miib*B152)),CURRENTY) -> 0.9727627793 | G152: 102 | H152: 1.02 | I152: =IF(H152<CALCULATIONS!$M$9,Aktina*SIN(epsilon*H152)*COS(D*H152),Aktina*SIN(epsilon*XRONOS)*COS(D*XRONOS)) -> 59.48836557 | J152: =IF(H152<CALCULATIONS!$M$9,Aktina*COS(epsilon*H152)*COS(D*H152),Aktina*COS(epsilon*XRONOS)*COS(D*XRONOS)) -> -24.2870183 | W152: 5.906194189 | X152: -47.05050532 | Y152: -42.88980241
A153: 103 | B153: 1.03 | C153: =IF(B153<CALCULATIONS!$M$9,Alfa1*SIN(miia*B153)-Alfa2*SIN(miib*B153),CURRENTX) -> 24.35644104 | D153: =IF(B153<CALCULATIONS!$M$9,-(Alfa1*COS(miia*B153)-Alfa2*COS(miib*B153)),CURRENTY) -> 4.823635081 | G153: 103 | H153: 1.03 | I153: =IF(H153<CALCULATIONS!$M$9,Aktina*SIN(epsilon*H153)*COS(D*H153),Aktina*SIN(epsilon*XRONOS)*COS(D*XRONOS)) -> 61.30573765 | J153: =IF(H153<CALCULATIONS!$M$9,Aktina*COS(epsilon*H153)*COS(D*H153),Aktina*COS(epsilon*XRONOS)*COS(D*XRONOS)) -> -28.68282979 | W153: 5.969026042 | X153: -48.41679766 | Y153: -46.68482538
A154: 104 | B154: 1.04 | C154: =IF(B154<CALCULATIONS!$M$9,Alfa1*SIN(miia*B154)-Alfa2*SIN(miib*B154),CURRENTX) -> 21.91193299 | D154: =IF(B154<CALCULATIONS!$M$9,-(Alfa1*COS(miia*B154)-Alfa2*COS(miib*B154)),CURRENTY) -> 8.774478654 | G154: 104 | H154: 1.04 | I154: =IF(H154<CALCULATIONS!$M$9,Aktina*SIN(epsilon*H154)*COS(D*H154),Aktina*SIN(epsilon*XRONOS)*COS(D*XRONOS)) -> 61.48175961 | J154: =IF(H154<CALCULATIONS!$M$9,Aktina*COS(epsilon*H154)*COS(D*H154),Aktina*COS(epsilon*XRONOS)*COS(D*XRONOS)) -> -32.60521541 | W154: 6.031857895 | X154: =FCX+FCURV*COS(W154) -> -49.54210247 | Y154: -50.55814994
A155: 105 | B155: 1.05 | C155: =IF(B155<CALCULATIONS!$M$9,Alfa1*SIN(miia*B155)-Alfa2*SIN(miib*B155),CURRENTX) -> 19.55737529 | D155: =IF(B155<CALCULATIONS!$M$9,-(Alfa1*COS(miia*B155)-Alfa2*COS(miib*B155)),CURRENTY) -> 12.80146062 | G155: 105 | H155: 1.05 | I155: =IF(H155<CALCULATIONS!$M$9,Aktina*SIN(epsilon*H155)*COS(D*H155),Aktina*SIN(epsilon*XRONOS)*COS(D*XRONOS)) -> 60.07229895 | J155: =IF(H155<CALCULATIONS!$M$9,Aktina*COS(epsilon*H155)*COS(D*H155),Aktina*COS(epsilon*XRONOS)*COS(D*XRONOS)) -> -35.81431659 | W155: 6.094689748 | X155: =FCX+FCURV*COS(W155) -> -50.42197868 | Y155: -54.49448985
A156: 106 | B156: 1.06 | C156: =IF(B156<CALCULATIONS!$M$9,Alfa1*SIN(miia*B156)-Alfa2*SIN(miib*B156),CURRENTX) -> 17.3077208 | D156: =IF(B156<CALCULATIONS!$M$9,-(Alfa1*COS(miia*B156)-Alfa2*COS(miib*B156)),CURRENTY) -> 16.8795779 | G156: 106 | H156: 1.06 | I156: =IF(H156<CALCULATIONS!$M$9,Aktina*SIN(epsilon*H156)*COS(D*H156),Aktina*SIN(epsilon*XRONOS)*COS(D*XRONOS)) -> 57.18778256 | J156: =IF(H156<CALCULATIONS!$M$9,Aktina*COS(epsilon*H156)*COS(D*H156),Aktina*COS(epsilon*XRONOS)*COS(D*XRONOS)) -> -38.09285019 | W156: 6.157521601 | X156: =FCX+FCURV*COS(W156) -> -51.05295383 | Y156: -58.47831018
A157: 107 | B157: 1.07 | C157: =IF(B157<CALCULATIONS!$M$9,Alfa1*SIN(miia*B157)-Alfa2*SIN(miib*B157),CURRENTX) -> 15.17612356 | D157: =IF(B157<CALCULATIONS!$M$9,-(Alfa1*COS(miia*B157)-Alfa2*COS(miib*B157)),CURRENTY) -> 20.982869 | G157: 107 | H157: 1.07 | I157: =IF(H157<CALCULATIONS!$M$9,Aktina*SIN(epsilon*H157)*COS(D*H157),Aktina*SIN(epsilon*XRONOS)*COS(D*XRONOS)) -> 52.98825244 | J157: =IF(H157<CALCULATIONS!$M$9,Aktina*COS(epsilon*H157)*COS(D*H157),Aktina*COS(epsilon*XRONOS)*COS(D*XRONOS)) -> -39.25566367 | W157: 6.220353454 | X157: =FCX+FCURV*COS(W157) -> -51.43253775 | Y157: -62.4938886
A158: 108 | B158: 1.08 | C158: =IF(B158<CALCULATIONS!$M$9,Alfa1*SIN(miia*B158)-Alfa2*SIN(miib*B158),CURRENTX) -> 13.17383072 | D158: =IF(B158<CALCULATIONS!$M$9,-(Alfa1*COS(miia*B158)-Alfa2*COS(miib*B158)),CURRENTY) -> 25.08463639 | G158: 108 | H158: 1.08 | I158: =IF(H158<CALCULATIONS!$M$9,Aktina*SIN(epsilon*H158)*COS(D*H158),Aktina*SIN(epsilon*XRONOS)*COS(D*XRONOS)) -> 47.67653526 | J158: =IF(H158<CALCULATIONS!$M$9,Aktina*COS(epsilon*H158)*COS(D*H158),Aktina*COS(epsilon*XRONOS)*COS(D*XRONOS)) -> -39.15805885 | W158: 6.283185307 | X158: =FCX+FCURV*COS(W158) -> -51.5592324 | Y158: -66.52537748
A159: 109 | B159: 1.09 | C159: =IF(B159<CALCULATIONS!$M$9,Alfa1*SIN(miia*B159)-Alfa2*SIN(miib*B159),CURRENTX) -> 11.31009525 | D159: =IF(B159<CALCULATIONS!$M$9,-(Alfa1*COS(miia*B159)-Alfa2*COS(miib*B159)),CURRENTY) -> 29.15767758 | G159: 109 | H159: 1.09 | I159: =IF(H159<CALCULATIONS!$M$9,Aktina*SIN(epsilon*H159)*COS(D*H159),Aktina*SIN(epsilon*XRONOS)*COS(D*XRONOS)) -> 41.48980252 | J159: =IF(H159<CALCULATIONS!$M$9,Aktina*COS(epsilon*H159)*COS(D*H159),Aktina*COS(epsilon*XRONOS)*COS(D*XRONOS)) -> -37.70254319
A160: 110 | B160: 1.1 | C160: =IF(B160<CALCULATIONS!$M$9,Alfa1*SIN(miia*B160)-Alfa2*SIN(miib*B160),CURRENTX) -> 9.592110374 | D160: =IF(B160<CALCULATIONS!$M$9,-(Alfa1*COS(miia*B160)-Alfa2*COS(miib*B160)),CURRENTY) -> 33.17452242 | G160: 110 | H160: 1.1 | I160: =IF(H160<CALCULATIONS!$M$9,Aktina*SIN(epsilon*H160)*COS(D*H160),Aktina*SIN(epsilon*XRONOS)*COS(D*XRONOS)) -> 34.6898614 | J160: =IF(H160<CALCULATIONS!$M$9,Aktina*COS(epsilon*H160)*COS(D*H160),Aktina*COS(epsilon*XRONOS)*COS(D*XRONOS)) -> -34.84372949
A161: 111 | B161: 1.11 | C161: =IF(B161<CALCULATIONS!$M$9,Alfa1*SIN(miia*B161)-Alfa2*SIN(miib*B161),CURRENTX) -> 8.024966281 | D161: =IF(B161<CALCULATIONS!$M$9,-(Alfa1*COS(miia*B161)-Alfa2*COS(miib*B161)),CURRENTY) -> 37.10767454 | G161: 111 | H161: 1.11 | I161: =IF(H161<CALCULATIONS!$M$9,Aktina*SIN(epsilon*H161)*COS(D*H161),Aktina*SIN(epsilon*XRONOS)*COS(D*XRONOS)) -> 27.55256587 | J161: =IF(H161<CALCULATIONS!$M$9,Aktina*COS(epsilon*H161)*COS(D*H161),Aktina*COS(epsilon*XRONOS)*COS(D*XRONOS)) -> -30.59117861
A162: 112 | B162: 1.12 | C162: =IF(B162<CALCULATIONS!$M$9,Alfa1*SIN(miia*B162)-Alfa2*SIN(miib*B162),CURRENTX) -> 6.611629421 | D162: =IF(B162<CALCULATIONS!$M$9,-(Alfa1*COS(miia*B162)-Alfa2*COS(miib*B162)),CURRENTY) -> 40.92985449 | G162: 112 | H162: 1.12 | I162: =IF(H162<CALCULATIONS!$M$9,Aktina*SIN(epsilon*H162)*COS(D*H162),Aktina*SIN(epsilon*XRONOS)*COS(D*XRONOS)) -> 20.35677161 | J162: =IF(H162<CALCULATIONS!$M$9,Aktina*COS(epsilon*H162)*COS(D*H162),Aktina*COS(epsilon*XRONOS)*COS(D*XRONOS)) -> -25.01006153
A163: 113 | B163: 1.13 | C163: =IF(B163<CALCULATIONS!$M$9,Alfa1*SIN(miia*B163)-Alfa2*SIN(miib*B163),CURRENTX) -> 5.352944598 | D163: =IF(B163<CALCULATIONS!$M$9,-(Alfa1*COS(miia*B163)-Alfa2*COS(miib*B163)),CURRENTY) -> 44.61424226 | G163: 113 | H163: 1.13 | I163: =IF(H163<CALCULATIONS!$M$9,Aktina*SIN(epsilon*H163)*COS(D*H163),Aktina*SIN(epsilon*XRONOS)*COS(D*XRONOS)) -> 13.37327582 | J163: =IF(H163<CALCULATIONS!$M$9,Aktina*COS(epsilon*H163)*COS(D*H163),Aktina*COS(epsilon*XRONOS)*COS(D*XRONOS)) -> -18.21960403
A164: 114 | B164: 1.14 | C164: =IF(B164<CALCULATIONS!$M$9,Alfa1*SIN(miia*B164)-Alfa2*SIN(miib*B164),CURRENTX) -> 4.247659722 | D164: =IF(B164<CALCULATIONS!$M$9,-(Alfa1*COS(miia*B164)-Alfa2*COS(miib*B164)),CURRENTY) -> 48.13471684 | G164: 114 | H164: 1.14 | I164: =IF(H164<CALCULATIONS!$M$9,Aktina*SIN(epsilon*H164)*COS(D*H164),Aktina*SIN(epsilon*XRONOS)*COS(D*XRONOS)) -> 6.854181937 | J164: =IF(H164<CALCULATIONS!$M$9,Aktina*COS(epsilon*H164)*COS(D*H164),Aktina*COS(epsilon*XRONOS)*COS(D*XRONOS)) -> -10.38936534
A165: 115 | B165: 1.15 | C165: =IF(B165<CALCULATIONS!$M$9,Alfa1*SIN(miia*B165)-Alfa2*SIN(miib*B165),CURRENTX) -> 3.292472874 | D165: =IF(B165<CALCULATIONS!$M$9,-(Alfa1*COS(miia*B165)-Alfa2*COS(miib*B165)),CURRENTY) -> 51.46609051 | G165: 115 | H165: 1.15 | I165: =IF(H165<CALCULATIONS!$M$9,Aktina*SIN(epsilon*H165)*COS(D*H165),Aktina*SIN(epsilon*XRONOS)*COS(D*XRONOS)) -> 1.023111968 | J165: =IF(H165<CALCULATIONS!$M$9,Aktina*COS(epsilon*H165)*COS(D*H165),Aktina*COS(epsilon*XRONOS)*COS(D*XRONOS)) -> -1.733489155
A166: 116 | B166: 1.16 | C166: =IF(B166<CALCULATIONS!$M$9,Alfa1*SIN(miia*B166)-Alfa2*SIN(miib*B166),CURRENTX) -> 2.482101157 | D166: =IF(B166<CALCULATIONS!$M$9,-(Alfa1*COS(miia*B166)-Alfa2*COS(miib*B166)),CURRENTY) -> 54.58433549 | G166: 116 | H166: 1.16 | I166: =IF(H166<CALCULATIONS!$M$9,Aktina*SIN(epsilon*H166)*COS(D*H166),Aktina*SIN(epsilon*XRONOS)*COS(D*XRONOS)) -> -3.933346208 | J166: =IF(H166<CALCULATIONS!$M$9,Aktina*COS(epsilon*H166)*COS(D*H166),Aktina*COS(epsilon*XRONOS)*COS(D*XRONOS)) -> 7.496854273
A167: 117 | B167: 1.17 | C167: =IF(B167<CALCULATIONS!$M$9,Alfa1*SIN(miia*B167)-Alfa2*SIN(miib*B167),CURRENTX) -> 1.809370541 | D167: =IF(B167<CALCULATIONS!$M$9,-(Alfa1*COS(miia*B167)-Alfa2*COS(miib*B167)),CURRENTY) -> 57.46680093 | G167: 117 | H167: 1.17 | I167: =IF(H167<CALCULATIONS!$M$9,Aktina*SIN(epsilon*H167)*COS(D*H167),Aktina*SIN(epsilon*XRONOS)*COS(D*XRONOS)) -> -7.872619097 | J167: =IF(H167<CALCULATIONS!$M$9,Aktina*COS(epsilon*H167)*COS(D*H167),Aktina*COS(epsilon*XRONOS)*COS(D*XRONOS)) -> 17.0225431
A168: 118 | B168: 1.18 | C168: =IF(B168<CALCULATIONS!$M$9,Alfa1*SIN(miia*B168)-Alfa2*SIN(miib*B168),CURRENTX) -> 1.265325714 | D168: =IF(B168<CALCULATIONS!$M$9,-(Alfa1*COS(miia*B168)-Alfa2*COS(miib*B168)),CURRENTY) -> 60.09241794 | G168: 118 | H168: 1.18 | I168: =IF(H168<CALCULATIONS!$M$9,Aktina*SIN(epsilon*H168)*COS(D*H168),Aktina*SIN(epsilon*XRONOS)*COS(D*XRONOS)) -> -10.70128176 | J168: =IF(H168<CALCULATIONS!$M$9,Aktina*COS(epsilon*H168)*COS(D*H168),Aktina*COS(epsilon*XRONOS)*COS(D*XRONOS)) -> 26.54674374
A169: 119 | B169: 1.19 | C169: =IF(B169<CALCULATIONS!$M$9,Alfa1*SIN(miia*B169)-Alfa2*SIN(miib*B169),CURRENTX) -> 0.8393587417 | D169: =IF(B169<CALCULATIONS!$M$9,-(Alfa1*COS(miia*B169)-Alfa2*COS(miib*B169)),CURRENTY) -> 62.44189081 | G169: 119 | H169: 1.19 | I169: =IF(H169<CALCULATIONS!$M$9,Aktina*SIN(epsilon*H169)*COS(D*H169),Aktina*SIN(epsilon*XRONOS)*COS(D*XRONOS)) -> -12.37814667 | J169: =IF(H169<CALCULATIONS!$M$9,Aktina*COS(epsilon*H169)*COS(D*H169),Aktina*COS(epsilon*XRONOS)*COS(D*XRONOS)) -> 35.7659161
A170: 120 | B170: 1.2 | C170: =IF(B170<CALCULATIONS!$M$9,Alfa1*SIN(miia*B170)-Alfa2*SIN(miib*B170),CURRENTX) -> 0.5193551626 | D170: =IF(B170<CALCULATIONS!$M$9,-(Alfa1*COS(miia*B170)-Alfa2*COS(miib*B170)),CURRENTY) -> 64.49787241 | G170: 120 | H170: 1.2 | I170: =IF(H170<CALCULATIONS!$M$9,Aktina*SIN(epsilon*H170)*COS(D*H170),Aktina*SIN(epsilon*XRONOS)*COS(D*XRONOS)) -> -12.91519054 | J170: =IF(H170<CALCULATIONS!$M$9,Aktina*COS(epsilon*H170)*COS(D*H170),Aktina*COS(epsilon*XRONOS)*COS(D*XRONOS)) -> 44.38115381
A171: 121 | B171: 1.21 | C171: =IF(B171<CALCULATIONS!$M$9,Alfa1*SIN(miia*B171)-Alfa2*SIN(miib*B171),CURRENTX) -> 0.2918559482 | D171: =IF(B171<CALCULATIONS!$M$9,-(Alfa1*COS(miia*B171)-Alfa2*COS(miib*B171)),CURRENTY) -> 66.24512226 | G171: 121 | H171: 1.21 | I171: =IF(H171<CALCULATIONS!$M$9,Aktina*SIN(epsilon*H171)*COS(D*H171),Aktina*SIN(epsilon*XRONOS)*COS(D*XRONOS)) -> -12.37628918 | J171: =IF(H171<CALCULATIONS!$M$9,Aktina*COS(epsilon*H171)*COS(D*H171),Aktina*COS(epsilon*XRONOS)*COS(D*XRONOS)) -> 52.10941494
A172: 122 | B172: 1.22 | C172: =IF(B172<CALCULATIONS!$M$9,Alfa1*SIN(miia*B172)-Alfa2*SIN(miib*B172),CURRENTX) -> 0.1422336138 | D172: =IF(B172<CALCULATIONS!$M$9,-(Alfa1*COS(miia*B172)-Alfa2*COS(miib*B172)),CURRENTY) -> 67.67064549 | G172: 122 | H172: 1.22 | I172: =IF(H172<CALCULATIONS!$M$9,Aktina*SIN(epsilon*H172)*COS(D*H172),Aktina*SIN(epsilon*XRONOS)*COS(D*XRONOS)) -> -10.87381883 | J172: =IF(H172<CALCULATIONS!$M$9,Aktina*COS(epsilon*H172)*COS(D*H172),Aktina*COS(epsilon*XRONOS)*COS(D*XRONOS)) -> 58.69420224
A173: 123 | B173: 1.23 | C173: =IF(B173<CALCULATIONS!$M$9,Alfa1*SIN(miia*B173)-Alfa2*SIN(miib*B173),CURRENTX) -> 0.05488061458 | D173: =IF(B173<CALCULATIONS!$M$9,-(Alfa1*COS(miia*B173)-Alfa2*COS(miib*B173)),CURRENTY) -> 68.7638116 | G173: 123 | H173: 1.23 | I173: =IF(H173<CALCULATIONS!$M$9,Aktina*SIN(epsilon*H173)*COS(D*H173),Aktina*SIN(epsilon*XRONOS)*COS(D*XRONOS)) -> -8.563267966 | J173: =IF(H173<CALCULATIONS!$M$9,Aktina*COS(epsilon*H173)*COS(D*H173),Aktina*COS(epsilon*XRONOS)*COS(D*XRONOS)) -> 63.91527331
A174: 124 | B174: 1.24 | C174: =IF(B174<CALCULATIONS!$M$9,Alfa1*SIN(miia*B174)-Alfa2*SIN(miib*B174),CURRENTX) -> 0.01340803769 | D174: =IF(B174<CALCULATIONS!$M$9,-(Alfa1*COS(miia*B174)-Alfa2*COS(miib*B174)),CURRENTY) -> 69.51645158 | G174: 124 | H174: 1.24 | I174: =IF(H174<CALCULATIONS!$M$9,Aktina*SIN(epsilon*H174)*COS(D*H174),Aktina*SIN(epsilon*XRONOS)*COS(D*XRONOS)) -> -5.636083273 | J174: =IF(H174<CALCULATIONS!$M$9,Aktina*COS(epsilon*H174)*COS(D*H174),Aktina*COS(epsilon*XRONOS)*COS(D*XRONOS)) -> 67.59699857
A175: 125 | B175: 1.25 | C175: =IF(B175<CALCULATIONS!$M$9,Alfa1*SIN(miia*B175)-Alfa2*SIN(miib*B175),CURRENTX) -> 0.0008525006913 | D175: =IF(B175<CALCULATIONS!$M$9,-(Alfa1*COS(miia*B175)-Alfa2*COS(miib*B175)),CURRENTY) -> 69.9229327 | G175: 125 | H175: 1.25 | I175: =IF(H175<CALCULATIONS!$M$9,Aktina*SIN(epsilon*H175)*COS(D*H175),Aktina*SIN(epsilon*XRONOS)*COS(D*XRONOS)) -> -2.311044846 | J175: =IF(H175<CALCULATIONS!$M$9,Aktina*COS(epsilon*H175)*COS(D*H175),Aktina*COS(epsilon*XRONOS)*COS(D*XRONOS)) -> 69.61503819
A176: 126 | B176: 1.26 | C176: =IF(B176<CALCULATIONS!$M$9,Alfa1*SIN(miia*B176)-Alfa2*SIN(miib*B176),CURRENTX) -> -0.0001109207765 | D176: =IF(B176<CALCULATIONS!$M$9,-(Alfa1*COS(miia*B176)-Alfa2*COS(miib*B176)),CURRENTY) -> 69.98021003 | G176: 126 | H176: 1.26 | I176: =IF(H176<CALCULATIONS!$M$9,Aktina*SIN(epsilon*H176)*COS(D*H176),Aktina*SIN(epsilon*XRONOS)*COS(D*XRONOS)) -> 1.175475886 | J176: =IF(H176<CALCULATIONS!$M$9,Aktina*COS(epsilon*H176)*COS(D*H176),Aktina*COS(epsilon*XRONOS)*COS(D*XRONOS)) -> 69.90107484
A177: 127 | B177: 1.27 | C177: =IF(B177<CALCULATIONS!$M$9,Alfa1*SIN(miia*B177)-Alfa2*SIN(miib*B177),CURRENTX) -> -0.006951971207 | D177: =IF(B177<CALCULATIONS!$M$9,-(Alfa1*COS(miia*B177)-Alfa2*COS(miib*B177)),CURRENTY) -> 69.68785435 | G177: 127 | H177: 1.27 | I177: =IF(H177<CALCULATIONS!$M$9,Aktina*SIN(epsilon*H177)*COS(D*H177),Aktina*SIN(epsilon*XRONOS)*COS(D*XRONOS)) -> 4.579976799 | J177: =IF(H177<CALCULATIONS!$M$9,Aktina*COS(epsilon*H177)*COS(D*H177),Aktina*COS(epsilon*XRONOS)*COS(D*XRONOS)) -> 68.44541613
A178: 128 | B178: 1.28 | C178: =IF(B178<CALCULATIONS!$M$9,Alfa1*SIN(miia*B178)-Alfa2*SIN(miib*B178),CURRENTX) -> -0.03706697399 | D178: =IF(B178<CALCULATIONS!$M$9,-(Alfa1*COS(miia*B178)-Alfa2*COS(miib*B178)),CURRENTY) -> 69.04805607 | G178: 128 | H178: 1.28 | I178: =IF(H178<CALCULATIONS!$M$9,Aktina*SIN(epsilon*H178)*COS(D*H178),Aktina*SIN(epsilon*XRONOS)*COS(D*XRONOS)) -> 7.662576921 | J178: =IF(H178<CALCULATIONS!$M$9,Aktina*COS(epsilon*H178)*COS(D*H178),Aktina*COS(epsilon*XRONOS)*COS(D*XRONOS)) -> 65.29736386
A179: 129 | B179: =B178+dt -> 1.29 | C179: =IF(B179<CALCULATIONS!$M$9,Alfa1*SIN(miia*B179)-Alfa2*SIN(miib*B179),CURRENTX) -> -0.1075613605 | D179: =IF(B179<CALCULATIONS!$M$9,-(Alfa1*COS(miia*B179)-Alfa2*COS(miib*B179)),CURRENTY) -> 68.0656052 | G179: 129 | H179: =H178+dt -> 1.29 | I179: =IF(H179<CALCULATIONS!$M$9,Aktina*SIN(epsilon*H179)*COS(D*H179),Aktina*SIN(epsilon*XRONOS)*COS(D*XRONOS)) -> 10.1976204 | J179: =IF(H179<CALCULATIONS!$M$9,Aktina*COS(epsilon*H179)*COS(D*H179),Aktina*COS(epsilon*XRONOS)*COS(D*XRONOS)) -> 60.56333576
A180: =A179+1 -> 130 | B180: 1.3 | C180: =IF(B180<CALCULATIONS!$M$9,Alfa1*SIN(miia*B180)-Alfa2*SIN(miib*B180),CURRENTX) -> -0.2350352515 | D180: =IF(B180<CALCULATIONS!$M$9,-(Alfa1*COS(miia*B180)-Alfa2*COS(miib*B180)),CURRENTY) -> 66.74784743 | G180: =G179+1 -> 130 | H180: 1.3 | I180: =IF(H180<CALCULATIONS!$M$9,Aktina*SIN(epsilon*H180)*COS(D*H180),Aktina*SIN(epsilon*XRONOS)*COS(D*XRONOS)) -> 11.98369948 | J180: =IF(H180<CALCULATIONS!$M$9,Aktina*COS(epsilon*H180)*COS(D*H180),Aktina*COS(epsilon*XRONOS)*COS(D*XRONOS)) -> 54.40281363
A181: 131 | B181: 1.31 | C181: =IF(B181<CALCULATIONS!$M$9,Alfa1*SIN(miia*B181)-Alfa2*SIN(miib*B181),CURRENTX) -> -0.435374342 | D181: =IF(B181<CALCULATIONS!$M$9,-(Alfa1*COS(miia*B181)-Alfa2*COS(miib*B181)),CURRENTY) -> 65.10461699 | G181: 131 | H181: 1.31 | I181: =IF(H181<CALCULATIONS!$M$9,Aktina*SIN(epsilon*H181)*COS(D*H181),Aktina*SIN(epsilon*XRONOS)*COS(D*XRONOS)) -> 12.85268654 | J181: =IF(H181<CALCULATIONS!$M$9,Aktina*COS(epsilon*H181)*COS(D*H181),Aktina*COS(epsilon*XRONOS)*COS(D*XRONOS)) -> 47.0222776
A182: 132 | B182: 1.32 | C182: =IF(B182<CALCULATIONS!$M$9,Alfa1*SIN(miia*B182)-Alfa2*SIN(miib*B182),CURRENTX) -> -0.7235482875 | D182: =IF(B182<CALCULATIONS!$M$9,-(Alfa1*COS(miia*B182)-Alfa2*COS(miib*B182)),CURRENTY) -> 63.14814664 | G182: 132 | H182: 1.32 | I182: =IF(H182<CALCULATIONS!$M$9,Aktina*SIN(epsilon*H182)*COS(D*H182),Aktina*SIN(epsilon*XRONOS)*COS(D*XRONOS)) -> 12.67740529 | J182: =IF(H182<CALCULATIONS!$M$9,Aktina*COS(epsilon*H182)*COS(D*H182),Aktina*COS(epsilon*XRONOS)*COS(D*XRONOS)) -> 38.66736524
A183: 133 | B183: 1.33 | C183: =IF(B183<CALCULATIONS!$M$9,Alfa1*SIN(miia*B183)-Alfa2*SIN(miib*B183),CURRENTX) -> -1.113418712 | D183: =IF(B183<CALCULATIONS!$M$9,-(Alfa1*COS(miia*B183)-Alfa2*COS(miib*B183)),CURRENTY) -> 60.89295597 | G183: 133 | H183: 1.33 | I183: =IF(H183<CALCULATIONS!$M$9,Aktina*SIN(epsilon*H183)*COS(D*H183),Aktina*SIN(epsilon*XRONOS)*COS(D*XRONOS)) -> 11.37762541 | J183: =IF(H183<CALCULATIONS!$M$9,Aktina*COS(epsilon*H183)*COS(D*H183),Aktina*COS(epsilon*XRONOS)*COS(D*XRONOS)) -> 29.61356439
A184: 134 | B184: 1.34 | C184: =IF(B184<CALCULATIONS!$M$9,Alfa1*SIN(miia*B184)-Alfa2*SIN(miib*B184),CURRENTX) -> -1.617558863 | D184: =IF(B184<CALCULATIONS!$M$9,-(Alfa1*COS(miia*B184)-Alfa2*COS(miib*B184)),CURRENTY) -> 58.35571887 | G184: 134 | H184: 1.34 | I184: =IF(H184<CALCULATIONS!$M$9,Aktina*SIN(epsilon*H184)*COS(D*H184),Aktina*SIN(epsilon*XRONOS)*COS(D*XRONOS)) -> 8.924132524 | J184: =IF(H184<CALCULATIONS!$M$9,Aktina*COS(epsilon*H184)*COS(D*H184),Aktina*COS(epsilon*XRONOS)*COS(D*XRONOS)) -> 20.15580583
A185: 135 | B185: 1.35 | C185: =IF(B185<CALCULATIONS!$M$9,Alfa1*SIN(miia*B185)-Alfa2*SIN(miib*B185),CURRENTX) -> -2.247086824 | D185: =IF(B185<CALCULATIONS!$M$9,-(Alfa1*COS(miia*B185)-Alfa2*COS(miib*B185)),CURRENTY) -> 55.55511156 | G185: 135 | H185: 1.35 | I185: =IF(H185<CALCULATIONS!$M$9,Aktina*SIN(epsilon*H185)*COS(D*H185),Aktina*SIN(epsilon*XRONOS)*COS(D*XRONOS)) -> 5.340702565 | J185: =IF(H185<CALCULATIONS!$M$9,Aktina*COS(epsilon*H185)*COS(D*H185),Aktina*COS(epsilon*XRONOS)*COS(D*XRONOS)) -> 10.59736491
A186: 136 | B186: 1.36 | C186: =IF(B186<CALCULATIONS!$M$9,Alfa1*SIN(miia*B186)-Alfa2*SIN(miib*B186),CURRENTX) -> -3.01151404 | D186: =IF(B186<CALCULATIONS!$M$9,-(Alfa1*COS(miia*B186)-Alfa2*COS(miib*B186)),CURRENTY) -> 52.51164271 | G186: 136 | H186: 1.36 | I186: =IF(H186<CALCULATIONS!$M$9,Aktina*SIN(epsilon*H186)*COS(D*H186),Aktina*SIN(epsilon*XRONOS)*COS(D*XRONOS)) -> 0.7038936378 | J186: =IF(H186<CALCULATIONS!$M$9,Aktina*COS(epsilon*H186)*COS(D*H186),Aktina*COS(epsilon*XRONOS)*COS(D*XRONOS)) -> 1.238508048
A187: 137 | B187: 1.37 | C187: =IF(B187<CALCULATIONS!$M$9,Alfa1*SIN(miia*B187)-Alfa2*SIN(miib*B187),CURRENTX) -> -3.918610794 | D187: =IF(B187<CALCULATIONS!$M$9,-(Alfa1*COS(miia*B187)-Alfa2*COS(miib*B187)),CURRENTY) -> 49.24746714 | G187: 137 | H187: 1.37 | I187: =IF(H187<CALCULATIONS!$M$9,Aktina*SIN(epsilon*H187)*COS(D*H187),Aktina*SIN(epsilon*XRONOS)*COS(D*XRONOS)) -> -4.859343639 | J187: =IF(H187<CALCULATIONS!$M$9,Aktina*COS(epsilon*H187)*COS(D*H187),Aktina*COS(epsilon*XRONOS)*COS(D*XRONOS)) -> -7.634670602
A188: 138 | B188: 1.38 | C188: =IF(B188<CALCULATIONS!$M$9,Alfa1*SIN(miia*B188)-Alfa2*SIN(miib*B188),CURRENTX) -> -4.974290051 | D188: =IF(B188<CALCULATIONS!$M$9,-(Alfa1*COS(miia*B188)-Alfa2*COS(miib*B188)),CURRENTY) -> 45.78618516 | G188: 138 | H188: 1.38 | I188: =IF(H188<CALCULATIONS!$M$9,Aktina*SIN(epsilon*H188)*COS(D*H188),Aktina*SIN(epsilon*XRONOS)*COS(D*XRONOS)) -> -11.17614869 | J188: =IF(H188<CALCULATIONS!$M$9,Aktina*COS(epsilon*H188)*COS(D*H188),Aktina*COS(epsilon*XRONOS)*COS(D*XRONOS)) -> -15.76078543
A189: 139 | B189: 1.39 | C189: =IF(B189<CALCULATIONS!$M$9,Alfa1*SIN(miia*B189)-Alfa2*SIN(miib*B189),CURRENTX) -> -6.182510948 | D189: =IF(B189<CALCULATIONS!$M$9,-(Alfa1*COS(miia*B189)-Alfa2*COS(miib*B189)),CURRENTY) -> 42.15262924 | G189: 139 | H189: 1.39 | I189: =IF(H189<CALCULATIONS!$M$9,Aktina*SIN(epsilon*H189)*COS(D*H189),Aktina*SIN(epsilon*XRONOS)*COS(D*XRONOS)) -> -18.03415352 | J189: =IF(H189<CALCULATIONS!$M$9,Aktina*COS(epsilon*H189)*COS(D*H189),Aktina*COS(epsilon*XRONOS)*COS(D*XRONOS)) -> -22.91265714
A190: 140 | B190: 1.4 | C190: =IF(B190<CALCULATIONS!$M$9,Alfa1*SIN(miia*B190)-Alfa2*SIN(miib*B190),CURRENTX) -> -7.545202974 | D190: =IF(B190<CALCULATIONS!$M$9,-(Alfa1*COS(miia*B190)-Alfa2*COS(miib*B190)),CURRENTY) -> 38.37264029 | G190: 140 | H190: 1.4 | I190: =IF(H190<CALCULATIONS!$M$9,Aktina*SIN(epsilon*H190)*COS(D*H190),Aktina*SIN(epsilon*XRONOS)*COS(D*XRONOS)) -> -25.18955486 | J190: =IF(H190<CALCULATIONS!$M$9,Aktina*COS(epsilon*H190)*COS(D*H190),Aktina*COS(epsilon*XRONOS)*COS(D*XRONOS)) -> -28.90540268
A191: 141 | B191: 1.41 | C191: =IF(B191<CALCULATIONS!$M$9,Alfa1*SIN(miia*B191)-Alfa2*SIN(miib*B191),CURRENTX) -> -9.062211693 | D191: =IF(B191<CALCULATIONS!$M$9,-(Alfa1*COS(miia*B191)-Alfa2*COS(miib*B191)),CURRENTY) -> 34.47283564 | G191: 141 | H191: 1.41 | I191: =IF(H191<CALCULATIONS!$M$9,Aktina*SIN(epsilon*H191)*COS(D*H191),Aktina*SIN(epsilon*XRONOS)*COS(D*XRONOS)) -> -32.37653801 | J191: =IF(H191<CALCULATIONS!$M$9,Aktina*COS(epsilon*H191)*COS(D*H191),Aktina*COS(epsilon*XRONOS)*COS(D*XRONOS)) -> -33.60280434
A192: 142 | B192: 1.42 | C192: =IF(B192<CALCULATIONS!$M$9,Alfa1*SIN(miia*B192)-Alfa2*SIN(miib*B192),CURRENTX) -> -10.73126664 | D192: =IF(B192<CALCULATIONS!$M$9,-(Alfa1*COS(miia*B192)-Alfa2*COS(miib*B192)),CURRENTY) -> 30.4803709 | G192: 142 | H192: 1.42 | I192: =IF(H192<CALCULATIONS!$M$9,Aktina*SIN(epsilon*H192)*COS(D*H192),Aktina*SIN(epsilon*XRONOS)*COS(D*XRONOS)) -> -39.31767976 | J192: =IF(H192<CALCULATIONS!$M$9,Aktina*COS(epsilon*H192)*COS(D*H192),Aktina*COS(epsilon*XRONOS)*COS(D*XRONOS)) -> -36.92171427
A193: 143 | B193: 1.43 | C193: =IF(B193<CALCULATIONS!$M$9,Alfa1*SIN(miia*B193)-Alfa2*SIN(miib*B193),CURRENTX) -> -12.54797181 | D193: =IF(B193<CALCULATIONS!$M$9,-(Alfa1*COS(miia*B193)-Alfa2*COS(miib*B193)),CURRENTY) -> 26.42269822 | G193: 143 | H193: 1.43 | I193: =IF(H193<CALCULATIONS!$M$9,Aktina*SIN(epsilon*H193)*COS(D*H193),Aktina*SIN(epsilon*XRONOS)*COS(D*XRONOS)) -> -45.73491742 | J193: =IF(H193<CALCULATIONS!$M$9,Aktina*COS(epsilon*H193)*COS(D*H193),Aktina*COS(epsilon*XRONOS)*COS(D*XRONOS)) -> -38.83432894
A194: 144 | B194: 1.44 | C194: =IF(B194<CALCULATIONS!$M$9,Alfa1*SIN(miia*B194)-Alfa2*SIN(miib*B194),CURRENTX) -> -14.50581886 | D194: =IF(B194<CALCULATIONS!$M$9,-(Alfa1*COS(miia*B194)-Alfa2*COS(miib*B194)),CURRENTY) -> 22.32732303 | G194: 144 | H194: 1.44 | I194: =IF(H194<CALCULATIONS!$M$9,Aktina*SIN(epsilon*H194)*COS(D*H194),Aktina*SIN(epsilon*XRONOS)*COS(D*XRONOS)) -> -51.36064771 | J194: =IF(H194<CALCULATIONS!$M$9,Aktina*COS(epsilon*H194)*COS(D*H194),Aktina*COS(epsilon*XRONOS)*COS(D*XRONOS)) -> -39.36825337
A195: 145 | B195: 1.45 | C195: =IF(B195<CALCULATIONS!$M$9,Alfa1*SIN(miia*B195)-Alfa2*SIN(miib*B195),CURRENTX) -> -16.59622306 | D195: =IF(B195<CALCULATIONS!$M$9,-(Alfa1*COS(miia*B195)-Alfa2*COS(miib*B195)),CURRENTY) -> 18.22156186 | G195: 145 | H195: 1.45 | I195: =IF(H195<CALCULATIONS!$M$9,Aktina*SIN(epsilon*H195)*COS(D*H195),Aktina*SIN(epsilon*XRONOS)*COS(D*XRONOS)) -> -55.94851289 | J195: =IF(H195<CALCULATIONS!$M$9,Aktina*COS(epsilon*H195)*COS(D*H195),Aktina*COS(epsilon*XRONOS)*COS(D*XRONOS)) -> -38.60436288
A196: 146 | B196: 1.46 | C196: =IF(B196<CALCULATIONS!$M$9,Alfa1*SIN(miia*B196)-Alfa2*SIN(miib*B196),CURRENTX) -> -18.80858161 | D196: =IF(B196<CALCULATIONS!$M$9,-(Alfa1*COS(miia*B196)-Alfa2*COS(miib*B196)),CURRENTY) -> 14.13230334 | G196: 146 | H196: 1.46 | I196: =IF(H196<CALCULATIONS!$M$9,Aktina*SIN(epsilon*H196)*COS(D*H196),Aktina*SIN(epsilon*XRONOS)*COS(D*XRONOS)) -> -59.28344278 | J196: =IF(H196<CALCULATIONS!$M$9,Aktina*COS(epsilon*H196)*COS(D*H196),Aktina*COS(epsilon*XRONOS)*COS(D*XRONOS)) -> -36.67255812
A197: 147 | B197: 1.47 | C197: =IF(B197<CALCULATIONS!$M$9,Alfa1*SIN(miia*B197)-Alfa2*SIN(miib*B197),CURRENTX) -> -21.13035391 | D197: =IF(B197<CALCULATIONS!$M$9,-(Alfa1*COS(miia*B197)-Alfa2*COS(miib*B197)),CURRENTY) -> 10.08577492 | G197: 147 | H197: 1.47 | I197: =IF(H197<CALCULATIONS!$M$9,Aktina*SIN(epsilon*H197)*COS(D*H197),Aktina*SIN(epsilon*XRONOS)*COS(D*XRONOS)) -> -61.19055038 | J197: =IF(H197<CALCULATIONS!$M$9,Aktina*COS(epsilon*H197)*COS(D*H197),Aktina*COS(epsilon*XRONOS)*COS(D*XRONOS)) -> -33.7455927
A198: 148 | B198: 1.48 | C198: =IF(B198<CALCULATIONS!$M$9,Alfa1*SIN(miia*B198)-Alfa2*SIN(miib*B198),CURRENTX) -> -23.5471629 | D198: =IF(B198<CALCULATIONS!$M$9,-(Alfa1*COS(miia*B198)-Alfa2*COS(miib*B198)),CURRENTY) -> 6.107317351 | G198: 148 | H198: 1.48 | I198: =IF(H198<CALCULATIONS!$M$9,Aktina*SIN(epsilon*H198)*COS(D*H198),Aktina*SIN(epsilon*XRONOS)*COS(D*XRONOS)) -> -61.54252304 | J198: =IF(H198<CALCULATIONS!$M$9,Aktina*COS(epsilon*H198)*COS(D*H198),Aktina*COS(epsilon*XRONOS)*COS(D*XRONOS)) -> -30.03122942
A199: 149 | B199: 1.49 | C199: =IF(B199<CALCULATIONS!$M$9,Alfa1*SIN(miia*B199)-Alfa2*SIN(miib*B199),CURRENTX) -> -26.04291672 | D199: =IF(B199<CALCULATIONS!$M$9,-(Alfa1*COS(miia*B199)-Alfa2*COS(miib*B199)),CURRENTY) -> 2.221169216 | G199: 149 | H199: 1.49 | I199: =IF(H199<CALCULATIONS!$M$9,Aktina*SIN(epsilon*H199)*COS(D*H199),Aktina*SIN(epsilon*XRONOS)*COS(D*XRONOS)) -> -60.26521041 | J199: =IF(H199<CALCULATIONS!$M$9,Aktina*COS(epsilon*H199)*COS(D*H199),Aktina*COS(epsilon*XRONOS)*COS(D*XRONOS)) -> -25.76304751
A200: 150 | B200: 1.5 | C200: =IF(B200<CALCULATIONS!$M$9,Alfa1*SIN(miia*B200)-Alfa2*SIN(miib*B200),CURRENTX) -> -28.59994931 | D200: =IF(B200<CALCULATIONS!$M$9,-(Alfa1*COS(miia*B200)-Alfa2*COS(miib*B200)),CURRENTY) -> -1.549736468 | G200: 150 | H200: 1.5 | I200: =IF(H200<CALCULATIONS!$M$9,Aktina*SIN(epsilon*H200)*COS(D*H200),Aktina*SIN(epsilon*XRONOS)*COS(D*XRONOS)) -> -57.34118125 | J200: =IF(H200<CALCULATIONS!$M$9,Aktina*COS(epsilon*H200)*COS(D*H200),Aktina*COS(epsilon*XRONOS)*COS(D*XRONOS)) -> -21.1902762
A201: 151 | B201: 1.51 | C201: =IF(B201<CALCULATIONS!$M$9,Alfa1*SIN(miia*B201)-Alfa2*SIN(miib*B201),CURRENTX) -> -31.1991788 | D201: =IF(B201<CALCULATIONS!$M$9,-(Alfa1*COS(miia*B201)-Alfa2*COS(miib*B201)),CURRENTY) -> -5.183961669 | G201: 151 | H201: 1.51 | I201: =IF(H201<CALCULATIONS!$M$9,Aktina*SIN(epsilon*H201)*COS(D*H201),Aktina*SIN(epsilon*XRONOS)*COS(D*XRONOS)) -> -52.81110135 | J201: =IF(H201<CALCULATIONS!$M$9,Aktina*COS(epsilon*H201)*COS(D*H201),Aktina*COS(epsilon*XRONOS)*COS(D*XRONOS)) -> -16.56706878
A202: 152 | B202: 1.52 | C202: =IF(B202<CALCULATIONS!$M$9,Alfa1*SIN(miia*B202)-Alfa2*SIN(miib*B202),CURRENTX) -> -33.82028195 | D202: =IF(B202<CALCULATIONS!$M$9,-(Alfa1*COS(miia*B202)-Alfa2*COS(miib*B202)),CURRENTY) -> -8.66173695 | G202: 152 | H202: 1.52 | I202: =IF(H202<CALCULATIONS!$M$9,Aktina*SIN(epsilon*H202)*COS(D*H202),Aktina*SIN(epsilon*XRONOS)*COS(D*XRONOS)) -> -46.77287072 | J202: =IF(H202<CALCULATIONS!$M$9,Aktina*COS(epsilon*H202)*COS(D*H202),Aktina*COS(epsilon*XRONOS)*COS(D*XRONOS)) -> -12.14165232
A203: 153 | B203: 1.53 | C203: =IF(B203<CALCULATIONS!$M$9,Alfa1*SIN(miia*B203)-Alfa2*SIN(miib*B203),CURRENTX) -> -36.44188315 | D203: =IF(B203<CALCULATIONS!$M$9,-(Alfa1*COS(miia*B203)-Alfa2*COS(miib*B203)),CURRENTY) -> -11.96511765 | G203: 153 | H203: 1.53 | I203: =IF(H203<CALCULATIONS!$M$9,Aktina*SIN(epsilon*H203)*COS(D*H203),Aktina*SIN(epsilon*XRONOS)*COS(D*XRONOS)) -> -39.37854693 | J203: =IF(H203<CALCULATIONS!$M$9,Aktina*COS(epsilon*H203)*COS(D*H203),Aktina*COS(epsilon*XRONOS)*COS(D*XRONOS)) -> -8.14579308
A204: 154 | B204: 1.54 | C204: =IF(B204<CALCULATIONS!$M$9,Alfa1*SIN(miia*B204)-Alfa2*SIN(miib*B204),CURRENTX) -> -39.04175592 | D204: =IF(B204<CALCULATIONS!$M$9,-(Alfa1*COS(miia*B204)-Alfa2*COS(miib*B204)),CURRENTY) -> -15.07812117 | G204: 154 | H204: 1.54 | I204: =IF(H204<CALCULATIONS!$M$9,Aktina*SIN(epsilon*H204)*COS(D*H204),Aktina*SIN(epsilon*XRONOS)*COS(D*XRONOS)) -> -30.82916904 | J204: =IF(H204<CALCULATIONS!$M$9,Aktina*COS(epsilon*H204)*COS(D*H204),Aktina*COS(epsilon*XRONOS)*COS(D*XRONOS)) -> -4.785003765
A205: 155 | B205: 1.55 | C205: =IF(B205<CALCULATIONS!$M$9,Alfa1*SIN(miia*B205)-Alfa2*SIN(miib*B205),CURRENTX) -> -41.59703511 | D205: =IF(B205<CALCULATIONS!$M$9,-(Alfa1*COS(miia*B205)-Alfa2*COS(miib*B205)),CURRENTY) -> -17.98684413 | G205: 155 | H205: 1.55 | I205: =IF(H205<CALCULATIONS!$M$9,Aktina*SIN(epsilon*H205)*COS(D*H205),Aktina*SIN(epsilon*XRONOS)*COS(D*XRONOS)) -> -21.36767945 | J205: =IF(H205<CALCULATIONS!$M$9,Aktina*COS(epsilon*H205)*COS(D*H205),Aktina*COS(epsilon*XRONOS)*COS(D*XRONOS)) -> -2.229888676
A206: 156 | B206: 1.56 | C206: =IF(B206<CALCULATIONS!$M$9,Alfa1*SIN(miia*B206)-Alfa2*SIN(miib*B206),CURRENTX) -> -44.08443756 | D206: =IF(B206<CALCULATIONS!$M$9,-(Alfa1*COS(miia*B206)-Alfa2*COS(miib*B206)),CURRENTY) -> -20.67955829 | G206: 156 | H206: 1.56 | I206: =IF(H206<CALCULATIONS!$M$9,Aktina*SIN(epsilon*H206)*COS(D*H206),Aktina*SIN(epsilon*XRONOS)*COS(D*XRONOS)) -> -11.27021674 | J206: =IF(H206<CALCULATIONS!$M$9,Aktina*COS(epsilon*H206)*COS(D*H206),Aktina*COS(epsilon*XRONOS)*COS(D*XRONOS)) -> -0.6089763523
A207: 157 | B207: 1.57 | C207: =IF(B207<CALCULATIONS!$M$9,Alfa1*SIN(miia*B207)-Alfa2*SIN(miib*B207),CURRENTX) -> -46.48048913 | D207: =IF(B207<CALCULATIONS!$M$9,-(Alfa1*COS(miia*B207)-Alfa2*COS(miib*B207)),CURRENTY) -> -23.14678442 | G207: 157 | H207: 1.57 | I207: =IF(H207<CALCULATIONS!$M$9,Aktina*SIN(epsilon*H207)*COS(D*H207),Aktina*SIN(epsilon*XRONOS)*COS(D*XRONOS)) -> -0.8361166235 | J207: =IF(H207<CALCULATIONS!$M$9,Aktina*COS(epsilon*H207)*COS(D*H207),Aktina*COS(epsilon*XRONOS)*COS(D*XRONOS)) -> -0.003329127947
A208: 158 | B208: 1.58 | C208: =IF(B208<CALCULATIONS!$M$9,Alfa1*SIN(miia*B208)-Alfa2*SIN(miib*B208),CURRENTX) -> -48.76175579 | D208: =IF(B208<CALCULATIONS!$M$9,-(Alfa1*COS(miia*B208)-Alfa2*COS(miib*B208)),CURRENTY) -> -25.3813434 | G208: 158 | H208: 1.58 | I208: =IF(H208<CALCULATIONS!$M$9,Aktina*SIN(epsilon*H208)*COS(D*H208),Aktina*SIN(epsilon*XRONOS)*COS(D*XRONOS)) -> 9.622990272 | J208: =IF(H208<CALCULATIONS!$M$9,Aktina*COS(epsilon*H208)*COS(D*H208),Aktina*COS(epsilon*XRONOS)*COS(D*XRONOS)) -> -0.4431471489
A209: 159 | B209: 1.59 | C209: =IF(B209<CALCULATIONS!$M$9,Alfa1*SIN(miia*B209)-Alfa2*SIN(miib*B209),CURRENTX) -> -50.9050765 | D209: =IF(B209<CALCULATIONS!$M$9,-(Alfa1*COS(miia*B209)-Alfa2*COS(miib*B209)),CURRENTY) -> -27.37838438 | G209: 159 | H209: 1.59 | I209: =IF(H209<CALCULATIONS!$M$9,Aktina*SIN(epsilon*H209)*COS(D*H209),Aktina*SIN(epsilon*XRONOS)*COS(D*XRONOS)) -> 19.79455958 | J209: =IF(H209<CALCULATIONS!$M$9,Aktina*COS(epsilon*H209)*COS(D*H209),Aktina*COS(epsilon*XRONOS)*COS(D*XRONOS)) -> -1.906503892
A210: 160 | B210: 1.6 | C210: =IF(B210<CALCULATIONS!$M$9,Alfa1*SIN(miia*B210)-Alfa2*SIN(miib*B210),CURRENTX) -> -52.88779556 | D210: =IF(B210<CALCULATIONS!$M$9,-(Alfa1*COS(miia*B210)-Alfa2*COS(miib*B210)),CURRENTY) -> -29.13538945 | G210: 160 | H210: 1.6 | I210: =IF(H210<CALCULATIONS!$M$9,Aktina*SIN(epsilon*H210)*COS(D*H210),Aktina*SIN(epsilon*XRONOS)*COS(D*XRONOS)) -> 29.37654993 | J210: =IF(H210<CALCULATIONS!$M$9,Aktina*COS(epsilon*H210)*COS(D*H210),Aktina*COS(epsilon*XRONOS)*COS(D*XRONOS)) -> -4.320264194
A211: 161 | B211: 1.61 | C211: =IF(B211<CALCULATIONS!$M$9,Alfa1*SIN(miia*B211)-Alfa2*SIN(miib*B211),CURRENTX) -> -54.68799206 | D211: =IF(B211<CALCULATIONS!$M$9,-(Alfa1*COS(miia*B211)-Alfa2*COS(miib*B211)),CURRENTY) -> -30.65215533 | G211: 161 | H211: 1.61 | I211: =IF(H211<CALCULATIONS!$M$9,Aktina*SIN(epsilon*H211)*COS(D*H211),Aktina*SIN(epsilon*XRONOS)*COS(D*XRONOS)) -> 38.0884306 | J211: =IF(H211<CALCULATIONS!$M$9,Aktina*COS(epsilon*H211)*COS(D*H211),Aktina*COS(epsilon*XRONOS)*COS(D*XRONOS)) -> -7.563147751
A212: 162 | B212: 1.62 | C212: =IF(B212<CALCULATIONS!$M$9,Alfa1*SIN(miia*B212)-Alfa2*SIN(miib*B212),CURRENTX) -> -56.28470419 | D212: =IF(B212<CALCULATIONS!$M$9,-(Alfa1*COS(miia*B212)-Alfa2*COS(miib*B212)),CURRENTY) -> -31.93075195 | G212: 162 | H212: 1.62 | I212: =IF(H212<CALCULATIONS!$M$9,Aktina*SIN(epsilon*H212)*COS(D*H212),Aktina*SIN(epsilon*XRONOS)*COS(D*XRONOS)) -> 45.68135151 | J212: =IF(H212<CALCULATIONS!$M$9,Aktina*COS(epsilon*H212)*COS(D*H212),Aktina*COS(epsilon*XRONOS)*COS(D*XRONOS)) -> -11.47081449
A213: 163 | B213: 1.63 | C213: =IF(B213<CALCULATIONS!$M$9,Alfa1*SIN(miia*B213)-Alfa2*SIN(miib*B213),CURRENTX) -> -57.65814611 | D213: =IF(B213<CALCULATIONS!$M$9,-(Alfa1*COS(miia*B213)-Alfa2*COS(miib*B213)),CURRENTY) -> -32.97545874 | G213: 163 | H213: 1.63 | I213: =IF(H213<CALCULATIONS!$M$9,Aktina*SIN(epsilon*H213)*COS(D*H213),Aktina*SIN(epsilon*XRONOS)*COS(D*XRONOS)) -> 51.94708022 | J213: =IF(H213<CALCULATIONS!$M$9,Aktina*COS(epsilon*H213)*COS(D*H213),Aktina*COS(epsilon*XRONOS)*COS(D*XRONOS)) -> -15.84276656
A214: 164 | B214: 1.64 | C214: =IF(B214<CALCULATIONS!$M$9,Alfa1*SIN(miia*B214)-Alfa2*SIN(miib*B214),CURRENTX) -> -58.78991523 | D214: =IF(B214<CALCULATIONS!$M$9,-(Alfa1*COS(miia*B214)-Alfa2*COS(miib*B214)),CURRENTY) -> -33.79267926 | G214: 164 | H214: 1.64 | I214: =IF(H214<CALCULATIONS!$M$9,Aktina*SIN(epsilon*H214)*COS(D*H214),Aktina*SIN(epsilon*XRONOS)*COS(D*XRONOS)) -> 56.72535959 | J214: =IF(H214<CALCULATIONS!$M$9,Aktina*COS(epsilon*H214)*COS(D*H214),Aktina*COS(epsilon*XRONOS)*COS(D*XRONOS)) -> -20.45078828
A215: 165 | B215: 1.65 | C215: =IF(B215<CALCULATIONS!$M$9,Alfa1*SIN(miia*B215)-Alfa2*SIN(miib*B215),CURRENTX) -> -59.6631878 | D215: =IF(B215<CALCULATIONS!$M$9,-(Alfa1*COS(miia*B215)-Alfa2*COS(miib*B215)),CURRENTY) -> -34.39083509 | G215: 165 | H215: 1.65 | I215: =IF(H215<CALCULATIONS!$M$9,Aktina*SIN(epsilon*H215)*COS(D*H215),Aktina*SIN(epsilon*XRONOS)*COS(D*XRONOS)) -> 59.90940209 | J215: =IF(H215<CALCULATIONS!$M$9,Aktina*COS(epsilon*H215)*COS(D*H215),Aktina*COS(epsilon*XRONOS)*COS(D*XRONOS)) -> -25.04858317
A216: 166 | B216: 1.66 | C216: =IF(B216<CALCULATIONS!$M$9,Alfa1*SIN(miia*B216)-Alfa2*SIN(miib*B216),CURRENTX) -> -60.26290074 | D216: =IF(B216<CALCULATIONS!$M$9,-(Alfa1*COS(miia*B216)-Alfa2*COS(miib*B216)),CURRENTY) -> -34.78024025 | G216: 166 | H216: 1.66 | I216: =IF(H216<CALCULATIONS!$M$9,Aktina*SIN(epsilon*H216)*COS(D*H216),Aktina*SIN(epsilon*XRONOS)*COS(D*XRONOS)) -> 61.44931068 | J216: =IF(H216<CALCULATIONS!$M$9,Aktina*COS(epsilon*H216)*COS(D*H216),Aktina*COS(epsilon*XRONOS)*COS(D*XRONOS)) -> -29.3822183
A217: 167 | B217: 1.67 | C217: =IF(B217<CALCULATIONS!$M$9,Alfa1*SIN(miia*B217)-Alfa2*SIN(miib*B217),CURRENTX) -> -60.57591804 | D217: =IF(B217<CALCULATIONS!$M$9,-(Alfa1*COS(miia*B217)-Alfa2*COS(miib*B217)),CURRENTY) -> -34.97295743 | G217: 167 | H217: 1.67 | I217: =IF(H217<CALCULATIONS!$M$9,Aktina*SIN(epsilon*H217)*COS(D*H217),Aktina*SIN(epsilon*XRONOS)*COS(D*XRONOS)) -> 61.35329833 | J217: =IF(H217<CALCULATIONS!$M$9,Aktina*COS(epsilon*H217)*COS(D*H217),Aktina*COS(epsilon*XRONOS)*COS(D*XRONOS)) -> -33.20095365
A218: 168 | B218: 1.68 | C218: =IF(B218<CALCULATIONS!$M$9,Alfa1*SIN(miia*B218)-Alfa2*SIN(miib*B218),CURRENTX) -> -60.59117983 | D218: =IF(B218<CALCULATIONS!$M$9,-(Alfa1*COS(miia*B218)-Alfa2*COS(miib*B218)),CURRENTY) -> -34.98263757 | G218: 168 | H218: 1.68 | I218: =IF(H218<CALCULATIONS!$M$9,Aktina*SIN(epsilon*H218)*COS(D*H218),Aktina*SIN(epsilon*XRONOS)*COS(D*XRONOS)) -> 59.68666508 | J218: =IF(H218<CALCULATIONS!$M$9,Aktina*COS(epsilon*H218)*COS(D*H218),Aktina*COS(epsilon*XRONOS)*COS(D*XRONOS)) -> -36.2680173
A219: 169 | B219: 1.69 | C219: =IF(B219<CALCULATIONS!$M$9,Alfa1*SIN(miia*B219)-Alfa2*SIN(miib*B219),CURRENTX) -> -60.29983273 | D219: =IF(B219<CALCULATIONS!$M$9,-(Alfa1*COS(miia*B219)-Alfa2*COS(miib*B219)),CURRENTY) -> -34.82434452 | G219: 169 | H219: 1.69 | I219: =IF(H219<CALCULATIONS!$M$9,Aktina*SIN(epsilon*H219)*COS(D*H219),Aktina*SIN(epsilon*XRONOS)*COS(D*XRONOS)) -> 56.56858056 | J219: =IF(H219<CALCULATIONS!$M$9,Aktina*COS(epsilon*H219)*COS(D*H219),Aktina*COS(epsilon*XRONOS)*COS(D*XRONOS)) -> -38.37088941
A220: 170 | B220: 1.7 | C220: =IF(B220<CALCULATIONS!$M$9,Alfa1*SIN(miia*B220)-Alfa2*SIN(miib*B220),CURRENTX) -> -59.69534007 | D220: =IF(B220<CALCULATIONS!$M$9,-(Alfa1*COS(miia*B220)-Alfa2*COS(miib*B220)),CURRENTY) -> -34.51436668 | G220: 170 | H220: 1.7 | I220: =IF(H220<CALCULATIONS!$M$9,Aktina*SIN(epsilon*H220)*COS(D*H220),Aktina*SIN(epsilon*XRONOS)*COS(D*XRONOS)) -> 52.16680623 | J220: =IF(H220<CALCULATIONS!$M$9,Aktina*COS(epsilon*H220)*COS(D*H220),Aktina*COS(epsilon*XRONOS)*COS(D*XRONOS)) -> -39.33067645
A221: 171 | B221: 1.71 | C221: =IF(B221<CALCULATIONS!$M$9,Alfa1*SIN(miia*B221)-Alfa2*SIN(miib*B221),CURRENTX) -> -58.77357077 | D221: =IF(B221<CALCULATIONS!$M$9,-(Alfa1*COS(miia*B221)-Alfa2*COS(miib*B221)),CURRENTY) -> -34.07001746 | G221: 171 | H221: 1.71 | I221: =IF(H221<CALCULATIONS!$M$9,Aktina*SIN(epsilon*H221)*COS(D*H221),Aktina*SIN(epsilon*XRONOS)*COS(D*XRONOS)) -> 46.69057309 | J221: =IF(H221<CALCULATIONS!$M$9,Aktina*COS(epsilon*H221)*COS(D*H221),Aktina*COS(epsilon*XRONOS)*COS(D*XRONOS)) -> -39.01019289
A222: 172 | B222: 1.72 | C222: =IF(B222<CALCULATIONS!$M$9,Alfa1*SIN(miia*B222)-Alfa2*SIN(miib*B222),CURRENTX) -> -57.53286611 | D222: =IF(B222<CALCULATIONS!$M$9,-(Alfa1*COS(miia*B222)-Alfa2*COS(miib*B222)),CURRENTY) -> -33.50942675 | G222: 172 | H222: 1.72 | I222: =IF(H222<CALCULATIONS!$M$9,Aktina*SIN(epsilon*H222)*COS(D*H222),Aktina*SIN(epsilon*XRONOS)*COS(D*XRONOS)) -> 40.38190314 | J222: =IF(H222<CALCULATIONS!$M$9,Aktina*COS(epsilon*H222)*COS(D*H222),Aktina*COS(epsilon*XRONOS)*COS(D*XRONOS)) -> -37.32041873
A223: 173 | B223: 1.73 | C223: =IF(B223<CALCULATIONS!$M$9,Alfa1*SIN(miia*B223)-Alfa2*SIN(miib*B223),CURRENTX) -> -55.97408339 | D223: =IF(B223<CALCULATIONS!$M$9,-(Alfa1*COS(miia*B223)-Alfa2*COS(miib*B223)),CURRENTY) -> -32.85132558 | G223: 173 | H223: 1.73 | I223: =IF(H223<CALCULATIONS!$M$9,Aktina*SIN(epsilon*H223)*COS(D*H223),Aktina*SIN(epsilon*XRONOS)*COS(D*XRONOS)) -> 33.50572387 | J223: =IF(H223<CALCULATIONS!$M$9,Aktina*COS(epsilon*H223)*COS(D*H223),Aktina*COS(epsilon*XRONOS)*COS(D*XRONOS)) -> -34.22506563
A224: 174 | B224: 1.74 | C224: =IF(B224<CALCULATIONS!$M$9,Alfa1*SIN(miia*B224)-Alfa2*SIN(miib*B224),CURRENTX) -> -54.10061628 | D224: =IF(B224<CALCULATIONS!$M$9,-(Alfa1*COS(miia*B224)-Alfa2*COS(miib*B224)),CURRENTY) -> -32.11482613 | G224: 174 | H224: 1.74 | I224: =IF(H224<CALCULATIONS!$M$9,Aktina*SIN(epsilon*H224)*COS(D*H224),Aktina*SIN(epsilon*XRONOS)*COS(D*XRONOS)) -> 26.33917239 | J224: =IF(H224<CALCULATIONS!$M$9,Aktina*COS(epsilon*H224)*COS(D*H224),Aktina*COS(epsilon*XRONOS)*COS(D*XRONOS)) -> -29.7430592
A225: 175 | B225: 1.75 | C225: =IF(B225<CALCULATIONS!$M$9,Alfa1*SIN(miia*B225)-Alfa2*SIN(miib*B225),CURRENTX) -> -51.9183913 | D225: =IF(B225<CALCULATIONS!$M$9,-(Alfa1*COS(miia*B225)-Alfa2*COS(miib*B225)),CURRENTY) -> -31.31919943 | G225: 175 | H225: 1.75 | I225: =IF(H225<CALCULATIONS!$M$9,Aktina*SIN(epsilon*H225)*COS(D*H225),Aktina*SIN(epsilon*XRONOS)*COS(D*XRONOS)) -> 19.16051676 | J225: =IF(H225<CALCULATIONS!$M$9,Aktina*COS(epsilon*H225)*COS(D*H225),Aktina*COS(epsilon*XRONOS)*COS(D*XRONOS)) -> -23.94882847
A226: 176 | B226: 1.76 | C226: =IF(B226<CALCULATIONS!$M$9,Alfa1*SIN(miia*B226)-Alfa2*SIN(miib*B226),CURRENTX) -> -49.43584062 | D226: =IF(B226<CALCULATIONS!$M$9,-(Alfa1*COS(miia*B226)-Alfa2*COS(miib*B226)),CURRENTY) -> -30.48365304 | G226: 176 | H226: 1.76 | I226: =IF(H226<CALCULATIONS!$M$9,Aktina*SIN(epsilon*H226)*COS(D*H226),Aktina*SIN(epsilon*XRONOS)*COS(D*XRONOS)) -> 12.2381367 | J226: =IF(H226<CALCULATIONS!$M$9,Aktina*COS(epsilon*H226)*COS(D*H226),Aktina*COS(epsilon*XRONOS)*COS(D*XRONOS)) -> -16.97038026
A227: 177 | B227: 1.77 | C227: =IF(B227<CALCULATIONS!$M$9,Alfa1*SIN(miia*B227)-Alfa2*SIN(miib*B227),CURRENTX) -> -46.6638512 | D227: =IF(B227<CALCULATIONS!$M$9,-(Alfa1*COS(miia*B227)-Alfa2*COS(miib*B227)),CURRENTY) -> -29.62711102 | G227: 177 | H227: 1.77 | I227: =IF(H227<CALCULATIONS!$M$9,Aktina*SIN(epsilon*H227)*COS(D*H227),Aktina*SIN(epsilon*XRONOS)*COS(D*XRONOS)) -> 5.820002095 | J227: =IF(H227<CALCULATIONS!$M$9,Aktina*COS(epsilon*H227)*COS(D*H227),Aktina*COS(epsilon*XRONOS)*COS(D*XRONOS)) -> -8.985225058
A228: 178 | B228: 1.78 | C228: =IF(B228<CALCULATIONS!$M$9,Alfa1*SIN(miia*B228)-Alfa2*SIN(miib*B228),CURRENTX) -> -43.61569082 | D228: =IF(B228<CALCULATIONS!$M$9,-(Alfa1*COS(miia*B228)-Alfa2*COS(miib*B228)),CURRENTY) -> -28.76799837 | G228: 178 | H228: 1.78 | I228: =IF(H228<CALCULATIONS!$M$9,Aktina*SIN(epsilon*H228)*COS(D*H228),Aktina*SIN(epsilon*XRONOS)*COS(D*XRONOS)) -> 0.1240669777 | J228: =IF(H228<CALCULATIONS!$M$9,Aktina*COS(epsilon*H228)*COS(D*H228),Aktina*COS(epsilon*XRONOS)*COS(D*XRONOS)) -> -0.2143063097
A229: 179 | B229: 1.79 | C229: =IF(B229<CALCULATIONS!$M$9,Alfa1*SIN(miia*B229)-Alfa2*SIN(miib*B229),CURRENTX) -> -40.30691158 | D229: =IF(B229<CALCULATIONS!$M$9,-(Alfa1*COS(miia*B229)-Alfa2*COS(miib*B229)),CURRENTY) -> -27.92403229 | G229: 179 | H229: 1.79 | I229: =IF(H229<CALCULATIONS!$M$9,Aktina*SIN(epsilon*H229)*COS(D*H229),Aktina*SIN(epsilon*XRONOS)*COS(D*XRONOS)) -> -4.670040712 | J229: =IF(H229<CALCULATIONS!$M$9,Aktina*COS(epsilon*H229)*COS(D*H229),Aktina*COS(epsilon*XRONOS)*COS(D*XRONOS)) -> 9.085834657
A230: 180 | B230: 1.8 | C230: =IF(B230<CALCULATIONS!$M$9,Alfa1*SIN(miia*B230)-Alfa2*SIN(miib*B230),CURRENTX) -> -36.75523174 | D230: =IF(B230<CALCULATIONS!$M$9,-(Alfa1*COS(miia*B230)-Alfa2*COS(miib*B230)),CURRENTY) -> -27.11202236 | G230: 180 | H230: 1.8 | I230: =IF(H230<CALCULATIONS!$M$9,Aktina*SIN(epsilon*H230)*COS(D*H230),Aktina*SIN(epsilon*XRONOS)*COS(D*XRONOS)) -> -8.427706234 | J230: =IF(H230<CALCULATIONS!$M$9,Aktina*COS(epsilon*H230)*COS(D*H230),Aktina*COS(epsilon*XRONOS)*COS(D*XRONOS)) -> 18.63235565
A231: 181 | B231: 1.81 | C231: =IF(B231<CALCULATIONS!$M$9,Alfa1*SIN(miia*B231)-Alfa2*SIN(miib*B231),CURRENTX) -> -32.98039704 | D231: =IF(B231<CALCULATIONS!$M$9,-(Alfa1*COS(miia*B231)-Alfa2*COS(miib*B231)),CURRENTY) -> -26.34768159 | G231: 181 | H231: 1.81 | I231: =IF(H231<CALCULATIONS!$M$9,Aktina*SIN(epsilon*H231)*COS(D*H231),Aktina*SIN(epsilon*XRONOS)*COS(D*XRONOS)) -> -11.06413007 | J231: =IF(H231<CALCULATIONS!$M$9,Aktina*COS(epsilon*H231)*COS(D*H231),Aktina*COS(epsilon*XRONOS)*COS(D*XRONOS)) -> 28.12651112
A232: 182 | B232: 1.82 | C232: =IF(B232<CALCULATIONS!$M$9,Alfa1*SIN(miia*B232)-Alfa2*SIN(miib*B232),CURRENTX) -> -29.00402277 | D232: =IF(B232<CALCULATIONS!$M$9,-(Alfa1*COS(miia*B232)-Alfa2*COS(miib*B232)),CURRENTY) -> -25.64545046 | G232: 182 | H232: 1.82 | I232: =IF(H232<CALCULATIONS!$M$9,Aktina*SIN(epsilon*H232)*COS(D*H232),Aktina*SIN(epsilon*XRONOS)*COS(D*XRONOS)) -> -12.54705907 | J232: =IF(H232<CALCULATIONS!$M$9,Aktina*COS(epsilon*H232)*COS(D*H232),Aktina*COS(epsilon*XRONOS)*COS(D*XRONOS)) -> 37.26474445
A233: 183 | B233: 1.83 | C233: =IF(B233<CALCULATIONS!$M$9,Alfa1*SIN(miia*B233)-Alfa2*SIN(miib*B233),CURRENTX) -> -24.84941802 | D233: =IF(B233<CALCULATIONS!$M$9,-(Alfa1*COS(miia*B233)-Alfa2*COS(miib*B233)),CURRENTY) -> -25.01833562 | G233: 183 | H233: 1.83 | I233: =IF(H233<CALCULATIONS!$M$9,Aktina*SIN(epsilon*H233)*COS(D*H233),Aktina*SIN(epsilon*XRONOS)*COS(D*XRONOS)) -> -12.89734441 | J233: =IF(H233<CALCULATIONS!$M$9,Aktina*COS(epsilon*H233)*COS(D*H233),Aktina*COS(epsilon*XRONOS)*COS(D*XRONOS)) -> 45.75004093
A234: 184 | B234: 1.84 | C234: =IF(B234<CALCULATIONS!$M$9,Alfa1*SIN(miia*B234)-Alfa2*SIN(miib*B234),CURRENTX) -> -20.54139384 | D234: =IF(B234<CALCULATIONS!$M$9,-(Alfa1*COS(miia*B234)-Alfa2*COS(miib*B234)),CURRENTY) -> -24.47776498 | G234: 184 | H234: 1.84 | I234: =IF(H234<CALCULATIONS!$M$9,Aktina*SIN(epsilon*H234)*COS(D*H234),Aktina*SIN(epsilon*XRONOS)*COS(D*XRONOS)) -> -12.1873112 | J234: =IF(H234<CALCULATIONS!$M$9,Aktina*COS(epsilon*H234)*COS(D*H234),Aktina*COS(epsilon*XRONOS)*COS(D*XRONOS)) -> 53.30309644
A235: 185 | B235: 1.85 | C235: =IF(B235<CALCULATIONS!$M$9,Alfa1*SIN(miia*B235)-Alfa2*SIN(miib*B235),CURRENTX) -> -16.10605708 | D235: =IF(B235<CALCULATIONS!$M$9,-(Alfa1*COS(miia*B235)-Alfa2*COS(miib*B235)),CURRENTY) -> -24.03346057 | G235: 185 | H235: 1.85 | I235: =IF(H235<CALCULATIONS!$M$9,Aktina*SIN(epsilon*H235)*COS(D*H235),Aktina*SIN(epsilon*XRONOS)*COS(D*XRONOS)) -> -10.53701302 | J235: =IF(H235<CALCULATIONS!$M$9,Aktina*COS(epsilon*H235)*COS(D*H235),Aktina*COS(epsilon*XRONOS)*COS(D*XRONOS)) -> 59.6728631
A236: 186 | B236: 1.86 | C236: =IF(B236<CALCULATIONS!$M$9,Alfa1*SIN(miia*B236)-Alfa2*SIN(miib*B236),CURRENTX) -> -11.57059187 | D236: =IF(B236<CALCULATIONS!$M$9,-(Alfa1*COS(miia*B236)-Alfa2*COS(miib*B236)),CURRENTY) -> -23.69333069 | G236: 186 | H236: 1.86 | I236: =IF(H236<CALCULATIONS!$M$9,Aktina*SIN(epsilon*H236)*COS(D*H236),Aktina*SIN(epsilon*XRONOS)*COS(D*XRONOS)) -> -8.10852899 | J236: =IF(H236<CALCULATIONS!$M$9,Aktina*COS(epsilon*H236)*COS(D*H236),Aktina*COS(epsilon*XRONOS)*COS(D*XRONOS)) -> 64.64605748
A237: 187 | B237: 1.87 | C237: =IF(B237<CALCULATIONS!$M$9,Alfa1*SIN(miia*B237)-Alfa2*SIN(miib*B237),CURRENTX) -> -6.963030821 | D237: =IF(B237<CALCULATIONS!$M$9,-(Alfa1*COS(miia*B237)-Alfa2*COS(miib*B237)),CURRENTY) -> -23.46338211 | G237: 187 | H237: 1.87 | I237: =IF(H237<CALCULATIONS!$M$9,Aktina*SIN(epsilon*H237)*COS(D*H237),Aktina*SIN(epsilon*XRONOS)*COS(D*XRONOS)) -> -5.098540149 | J237: =IF(H237<CALCULATIONS!$M$9,Aktina*COS(epsilon*H237)*COS(D*H237),Aktina*COS(epsilon*XRONOS)*COS(D*XRONOS)) -> 68.05525732
A238: 188 | B238: 1.88 | C238: =IF(B238<CALCULATIONS!$M$9,Alfa1*SIN(miia*B238)-Alfa2*SIN(miib*B238),CURRENTX) -> -2.312018142 | D238: =IF(B238<CALCULATIONS!$M$9,-(Alfa1*COS(miia*B238)-Alfa2*COS(miib*B238)),CURRENTY) -> -23.34765364 | G238: 188 | H238: 1.88 | I238: =IF(H238<CALCULATIONS!$M$9,Aktina*SIN(epsilon*H238)*COS(D*H238),Aktina*SIN(epsilon*XRONOS)*COS(D*XRONOS)) -> -1.729490584 | J238: =IF(H238<CALCULATIONS!$M$9,Aktina*COS(epsilon*H238)*COS(D*H238),Aktina*COS(epsilon*XRONOS)*COS(D*XRONOS)) -> 69.7852679
A239: 189 | B239: 1.89 | C239: =IF(B239<CALCULATIONS!$M$9,Alfa1*SIN(miia*B239)-Alfa2*SIN(miib*B239),CURRENTX) -> 2.353433089 | D239: =IF(B239<CALCULATIONS!$M$9,-(Alfa1*COS(miia*B239)-Alfa2*COS(miib*B239)),CURRENTY) -> -23.34817136 | G239: 189 | H239: 1.89 | I239: =IF(H239<CALCULATIONS!$M$9,Aktina*SIN(epsilon*H239)*COS(D*H239),Aktina*SIN(epsilon*XRONOS)*COS(D*XRONOS)) -> 1.760304321 | J239: =IF(H239<CALCULATIONS!$M$9,Aktina*COS(epsilon*H239)*COS(D*H239),Aktina*COS(epsilon*XRONOS)*COS(D*XRONOS)) -> 69.77750753
A240: 190 | B240: 1.9 | C240: =IF(B240<CALCULATIONS!$M$9,Alfa1*SIN(miia*B240)-Alfa2*SIN(miib*B240),CURRENTX) -> 7.00418718 | D240: =IF(B240<CALCULATIONS!$M$9,-(Alfa1*COS(miia*B240)-Alfa2*COS(miib*B240)),CURRENTY) -> -23.4649262 | G240: 190 | H240: 1.9 | I240: =IF(H240<CALCULATIONS!$M$9,Aktina*SIN(epsilon*H240)*COS(D*H240),Aktina*SIN(epsilon*XRONOS)*COS(D*XRONOS)) -> 5.127197917 | J240: =IF(H240<CALCULATIONS!$M$9,Aktina*COS(epsilon*H240)*COS(D*H240),Aktina*COS(epsilon*XRONOS)*COS(D*XRONOS)) -> 68.03223918
A241: 191 | B241: 1.91 | C241: =IF(B241<CALCULATIONS!$M$9,Alfa1*SIN(miia*B241)-Alfa2*SIN(miib*B241),CURRENTX) -> 11.61123325 | D241: =IF(B241<CALCULATIONS!$M$9,-(Alfa1*COS(miia*B241)-Alfa2*COS(miib*B241)),CURRENTY) -> -23.69587408 | G241: 191 | H241: 1.91 | I241: =IF(H241<CALCULATIONS!$M$9,Aktina*SIN(epsilon*H241)*COS(D*H241),Aktina*SIN(epsilon*XRONOS)*COS(D*XRONOS)) -> 8.132970036 | J241: =IF(H241<CALCULATIONS!$M$9,Aktina*COS(epsilon*H241)*COS(D*H241),Aktina*COS(epsilon*XRONOS)*COS(D*XRONOS)) -> 64.60856045
A242: 192 | B242: 1.92 | C242: =IF(B242<CALCULATIONS!$M$9,Alfa1*SIN(miia*B242)-Alfa2*SIN(miib*B242),CURRENTX) -> 16.14593146 | D242: =IF(B242<CALCULATIONS!$M$9,-(Alfa1*COS(miia*B242)-Alfa2*COS(miib*B242)),CURRENTY) -> -24.03695851 | G242: 192 | H242: 1.92 | I242: =IF(H242<CALCULATIONS!$M$9,Aktina*SIN(epsilon*H242)*COS(D*H242),Aktina*SIN(epsilon*XRONOS)*COS(D*XRONOS)) -> 10.55536314 | J242: =IF(H242<CALCULATIONS!$M$9,Aktina*COS(epsilon*H242)*COS(D*H242),Aktina*COS(epsilon*XRONOS)*COS(D*XRONOS)) -> 59.62215231
A243: 193 | B243: =B242+dt -> 1.93 | C243: =IF(B243<CALCULATIONS!$M$9,Alfa1*SIN(miia*B243)-Alfa2*SIN(miib*B243),CURRENTX) -> 20.5802557 | D243: =IF(B243<CALCULATIONS!$M$9,-(Alfa1*COS(miia*B243)-Alfa2*COS(miib*B243)),CURRENTY) -> -24.48215547 | G243: 193 | H243: =H242+dt -> 1.93 | I243: =IF(H243<CALCULATIONS!$M$9,Aktina*SIN(epsilon*H243)*COS(D*H243),Aktina*SIN(epsilon*XRONOS)*COS(D*XRONOS)) -> 12.19796646 | J243: =IF(H243<CALCULATIONS!$M$9,Aktina*COS(epsilon*H243)*COS(D*H243),Aktina*COS(epsilon*XRONOS)*COS(D*XRONOS)) -> 53.24087513
A244: =A243+1 -> 194 | B244: 1.94 | C244: =IF(B244<CALCULATIONS!$M$9,Alfa1*SIN(miia*B244)-Alfa2*SIN(miib*B244),CURRENTX) -> 24.88703042 | D244: =IF(B244<CALCULATIONS!$M$9,-(Alfa1*COS(miia*B244)-Alfa2*COS(miib*B244)),CURRENTY) -> -25.02354017 | G244: =G243+1 -> 194 | H244: 1.94 | I244: =IF(H244<CALCULATIONS!$M$9,Aktina*SIN(epsilon*H244)*COS(D*H244),Aktina*SIN(epsilon*XRONOS)*COS(D*XRONOS)) -> 12.89904378 | J244: =IF(H244<CALCULATIONS!$M$9,Aktina*COS(epsilon*H244)*COS(D*H244),Aktina*COS(epsilon*XRONOS)*COS(D*XRONOS)) -> 45.67838571
A245: 195 | B245: 1.95 | C245: =IF(B245<CALCULATIONS!$M$9,Alfa1*SIN(miia*B245)-Alfa2*SIN(miib*B245),CURRENTX) -> 29.04015933 | D245: =IF(B245<CALCULATIONS!$M$9,-(Alfa1*COS(miia*B245)-Alfa2*COS(miib*B245)),CURRENTY) -> -25.65137489 | G245: 195 | H245: 1.95 | I245: =IF(H245<CALCULATIONS!$M$9,Aktina*SIN(epsilon*H245)*COS(D*H245),Aktina*SIN(epsilon*XRONOS)*COS(D*XRONOS)) -> 12.53894308 | J245: =IF(H245<CALCULATIONS!$M$9,Aktina*COS(epsilon*H245)*COS(D*H245),Aktina*COS(epsilon*XRONOS)*COS(D*XRONOS)) -> 37.18602658
A246: 196 | B246: 1.96 | C246: =IF(B246<CALCULATIONS!$M$9,Alfa1*SIN(miia*B246)-Alfa2*SIN(miib*B246),CURRENTX) -> 33.01484383 | D246: =IF(B246<CALCULATIONS!$M$9,-(Alfa1*COS(miia*B246)-Alfa2*COS(miib*B246)),CURRENTY) -> -26.35421713 | G246: 196 | H246: 1.96 | I246: =IF(H246<CALCULATIONS!$M$9,Aktina*SIN(epsilon*H246)*COS(D*H246),Aktina*SIN(epsilon*XRONOS)*COS(D*XRONOS)) -> 11.04578296 | J246: =IF(H246<CALCULATIONS!$M$9,Aktina*COS(epsilon*H246)*COS(D*H246),Aktina*COS(epsilon*XRONOS)*COS(D*XRONOS)) -> 28.04330681
A247: 197 | B247: 1.97 | C247: =IF(B247<CALCULATIONS!$M$9,Alfa1*SIN(miia*B247)-Alfa2*SIN(miib*B247),CURRENTX) -> 36.78778906 | D247: =IF(B247<CALCULATIONS!$M$9,-(Alfa1*COS(miia*B247)-Alfa2*COS(miib*B247)),CURRENTY) -> -27.11904685 | G247: 197 | H247: 1.97 | I247: =IF(H247<CALCULATIONS!$M$9,Aktina*SIN(epsilon*H247)*COS(D*H247),Aktina*SIN(epsilon*XRONOS)*COS(D*XRONOS)) -> 8.399179945 | J247: =IF(H247<CALCULATIONS!$M$9,Aktina*COS(epsilon*H247)*COS(D*H247),Aktina*COS(epsilon*XRONOS)*COS(D*XRONOS)) -> 18.54734896
A248: 198 | B248: 1.98 | C248: =IF(B248<CALCULATIONS!$M$9,Alfa1*SIN(miia*B248)-Alfa2*SIN(miib*B248),CURRENTX) -> 40.33739558 | D248: =IF(B248<CALCULATIONS!$M$9,-(Alfa1*COS(miia*B248)-Alfa2*COS(miib*B248)),CURRENTY) -> -27.93141151 | G248: 198 | H248: 1.98 | I248: =IF(H248<CALCULATIONS!$M$9,Aktina*SIN(epsilon*H248)*COS(D*H248),Aktina*SIN(epsilon*XRONOS)*COS(D*XRONOS)) -> 4.631859579 | J248: =IF(H248<CALCULATIONS!$M$9,Aktina*COS(epsilon*H248)*COS(D*H248),Aktina*COS(epsilon*XRONOS)*COS(D*XRONOS)) -> 9.001716836
A249: 199 | B249: 1.99 | C249: =IF(B249<CALCULATIONS!$M$9,Alfa1*SIN(miia*B249)-Alfa2*SIN(miib*B249),CURRENTX) -> 43.643935 | D249: =IF(B249<CALCULATIONS!$M$9,-(Alfa1*COS(miia*B249)-Alfa2*COS(miib*B249)),CURRENTY) -> -28.77558758 | G249: 199 | H249: 1.99 | I249: =IF(H249<CALCULATIONS!$M$9,Aktina*SIN(epsilon*H249)*COS(D*H249),Aktina*SIN(epsilon*XRONOS)*COS(D*XRONOS)) -> -0.1709209935 | J249: =IF(H249<CALCULATIONS!$M$9,Aktina*COS(epsilon*H249)*COS(D*H249),Aktina*COS(epsilon*XRONOS)*COS(D*XRONOS)) -> -0.294937156
... 661 more rows

Sheet Φύλλο3
